Workbook

Sheet How it fits together
C1: Spreadsheet Map
M2: V9
B30: Getting started
B34: Check the settings on the Options tab with your instructor
B36: Remove the dummy values on every page.
B38: Using Open Office or LibreOffice?
B39: This spreadsheet will not work with Libreoffice earlier than v4
B40: However, macros won't work. These macros are not necessary for normal use
B41: Using GST?
B42: Set GST on the Options tab
B43: Expenses include GST
B44: Sales include GST if you are using GST
B46: Capital Input
B47: You may need to put funds into the business
B48: You can do that via capital input near the top of the cashflow sheets (for Y1 and Y2)
B50: Works with
B51: Microsoft Office 2007, 2010 (Windows)
B52: Office 2011 (Mac)
B53: LibreOffice 3.4, 3.5
B54: NeoOffice (Mac)
B55: It may work with other older versions of software
B59: Printing
B60: Print only the sheets which start with a number.

Sheet Options
A1: Settings on this tab control the spreadsheet | D1: This is version 8r2 Oct 1, 2012
A3: NEIS (Set Yes if used for NEIS) | B3: Yes
A4: GST Rate (0% for non-GST business) | B4: 0
A5: Convert GST inclusive to GST Exclusive | C5: =1/(1+GSTRate) -> 1
A6: GST Part | C6: =1-GSTInclusiveToExclusive -> 0
A7: Tax Free threshold left-over for business | B7: 18200 | D7: Should be zero for companies: this only applies to sole traders. If you have part-timer work for which you claim tax-free threshold, lower this figure accordingly (eg if you earn $10000 then make this $18000-$10000)
A8: Tax Free threshold left-over for business, second year | B8: 18200
A9: TaxRate
A10: Minimum after-tax profit for NEIS | B10: 12500
A11: Your Business Name | B11: Test Business ABN 123456789
A12: Your Real Name | B12: Bob Bouwer
A13: Commencement date | B13: 2013-07-01
A14: Note that there are tax calculations on the Financials sheet for PAYG withholding which need to be checked by your instructor
A15: Business structure | B15: ="Sole Trader" -> Sole Trader
A16: Note: the "tax free threshold" may be less than the table's rate if the business owner has non-business income which consumes part of the tax free threshold (set in row 8 above)
A18: Table: Tax rates 2012-2013 upto 2015-2016 | I18: MONTHLY
A19: This table is for information only. It is not used by the spreadsheet | I19: Y1 | K19: Y2
A20: Tax scales | B20: FY13,FY14 | D20: 2015-2016 | G20: Incremental tax paid FY13,FY14 | H20: Incremental tax paid Y2 (FY13 & FY12 same) | I20: Threshold | K20: Threshold
B21: Threshold$ | C21: Marginal rate | D21: Threshold$ | E21: Marginal rate
A22: 1st rate | B22: 18201 | C22: 0.19 | D22: 19401 | E22: 0.19 | I22: =B22/12 -> 1516.75 | K22: =I22 -> 1516.75
A23: 2nd rate | B23: 37001 | C23: 0.325 | D23: 37001 | E23: 0.33 | G23: =(37001-TaxFreeThreshold)*0.19 -> 3572.19 | H23: =(B23-Y2TaxFreeThreshold)*C22 -> 3572.19 | I23: =B23/12 -> 3083.416667 | J23: =(I23-I22)*C22 -> 297.6666667 | K23: =I23 -> 3083.416667
A24: 3rd rate | B24: 80001 | C24: 0.37 | D24: 80001 | E24: 0.37 | G24: =G23+0.325*(80000-37000) -> 17547.19 | H24: =H23+(B24-B23)*C23 -> 17547.19 | I24: =B24/12 -> 6666.75 | J24: =J23+(I24-I23)*C23 -> 1462.25 | K24: =I24 -> 6666.75
A25: 4th rate | B25: 180001 | C25: 0.45 | D25: 180001 | E25: 0.45 | G25: =G24+0.37*(180000-80001) -> 54546.82 | H25: =H24+(B25-B24)*C24 -> 54547.19 | I25: =B25/12 -> 15000.08333 | J25: =J24+(I25-I24)*C24 -> 4545.583333 | K25: =I25 -> 15000.08333
A26: LITO | B26: Up to $445 | C26: 1.5% withdrawal rate on income over $37,000 | D26: Up to $300 | E26: 1% withdrawal rate on income over $37,000
A27: Effective tax-free threshold (adjusted for low-income tax offset) | B27: 20542 | D27: 20979
D31: 100000 | E31: band 1 | F31: =(37000-18200)*0.19 -> 3572
E32: band 2 | F32: =(80000-37001)*0.325 -> 13974.675
A50: GST Quarter Lookup
A51: Month | B51: Qtr
A52: 2 | B52: 2
A53: 4 | B53: 3
A54: 7 | B54: 4
A55: 10 | B55: 1

Sheet Dashboard
A2: Business Name | B2: =BusinessName -> Test Business ABN 123456789
A3: Starting on | B3: =GSTRate+StartDate -> 2013-07-01
A4: Short description | B4: Test business does environmental testing of consumer appliances
A11: Structure | B11: =BusStructure -> Sole Trader
A13: ="Year 1 Sales " & IF(GSTRate>0,"Excluding Gst","") -> Year 1 Sales | B13: ='9A Financials Y1'!F7 -> 0
A14: Margin % | B14: ='9A Financials Y1'!H19 -> 0
A15: Change in cash | B15: ='9A Financials Y1'!P6-'9A Financials Y1'!N6 -> 0
A16: Profit before tax | B16: ='9A Financials Y1'!F53 -> 0
A17: Profit after tax | B17: ='9A Financials Y1'!F57 -> 0
A18: Net assets end of Y1 | B18: ='9A Financials Y1'!R66 -> 0
A20: ="Year 2 Sales " & IF(GSTRate>0,"Excluding Gst","") -> Year 2 Sales | B20: ='9B Financials Y2'!F8 -> 0
A21: Margin % | B21: ='9B Financials Y2'!H19 -> 0
A22: Change in cash | B22: ='9B Financials Y2'!Q6-'9B Financials Y2'!N6 -> 0
A23: Profit before tax | B23: ='9B Financials Y2'!F53 -> 0
A24: Profit after tax | B24: ='9B Financials Y2'!F57 -> 0
A25: Net assets end of Y2 | B25: ='9B Financials Y2'!R66 -> 0
A27: Sales Growth | B27: =B20/B13-1 -> 

Sheet NEISReporting
A1: NEIS Reporting
A2: (Experimental)
A4: The quarterly NEIS reports are based on cash in and cash out, including asset purchases, GST and everything else
B6: =StartDate -> 2013-07-01 | C6: =DATE(YEAR(B6),MONTH(B6)+1,1) -> 2013-08-01 | D6: =DATE(YEAR(C6),MONTH(C6)+1,1) -> 2013-09-01 | E6: 2013-10-01 | F6: 2013-11-01 | G6: 2013-12-01 | H6: 2014-01-01 | I6: 2014-02-01 | J6: 2014-03-01 | K6: 2014-04-01 | L6: 2014-05-01 | M6: 2014-06-01
A7: Cash In | B7: ='8A Cash flow Y1'!C10 -> 0 | C7: ='8A Cash flow Y1'!D10 -> 0 | D7: ='8A Cash flow Y1'!E10 -> 0 | E7: ='8A Cash flow Y1'!F10 -> 0 | F7: ='8A Cash flow Y1'!G10 -> 0 | G7: ='8A Cash flow Y1'!H10 -> 0 | H7: ='8A Cash flow Y1'!I10 -> 0 | I7: ='8A Cash flow Y1'!J10 -> 0 | J7: ='8A Cash flow Y1'!K10 -> 0 | K7: ='8A Cash flow Y1'!L10 -> 0 | L7: ='8A Cash flow Y1'!M10 -> 0 | M7: ='8A Cash flow Y1'!N10 -> 0
A8: Cash out | B8: ='8A Cash flow Y1'!C61 -> 0 | C8: ='8A Cash flow Y1'!D61 -> 0 | D8: ='8A Cash flow Y1'!E61 -> 0 | E8: ='8A Cash flow Y1'!F61 -> 0 | F8: ='8A Cash flow Y1'!G61 -> 0 | G8: ='8A Cash flow Y1'!H61 -> 0 | H8: ='8A Cash flow Y1'!I61 -> 0 | I8: ='8A Cash flow Y1'!J61 -> 0 | J8: ='8A Cash flow Y1'!K61 -> 0 | K8: ='8A Cash flow Y1'!L61 -> 0 | L8: ='8A Cash flow Y1'!M61 -> 0 | M8: ='8A Cash flow Y1'!N61 -> 0
A9: Stock | B9: ='8A Cash flow Y1'!C78 -> 0 | C9: ='8A Cash flow Y1'!D78 -> 0 | D9: ='8A Cash flow Y1'!E78 -> 0 | E9: ='8A Cash flow Y1'!F78 -> 0 | F9: ='8A Cash flow Y1'!G78 -> 0 | G9: ='8A Cash flow Y1'!H78 -> 0 | H9: ='8A Cash flow Y1'!I78 -> 0 | I9: ='8A Cash flow Y1'!J78 -> 0 | J9: ='8A Cash flow Y1'!K78 -> 0 | K9: ='8A Cash flow Y1'!L78 -> 0 | L9: ='8A Cash flow Y1'!M78 -> 0 | M9: ='8A Cash flow Y1'!N78 -> 0
A10: Debtors | B10: ='7A Sales Y1'!D59 -> 0 | C10: ='7A Sales Y1'!E59 -> 0 | D10: ='7A Sales Y1'!F59 -> 0 | E10: ='7A Sales Y1'!G59 -> 0 | F10: ='7A Sales Y1'!H59 -> 0 | G10: ='7A Sales Y1'!I59 -> 0 | H10: ='7A Sales Y1'!J59 -> 0 | I10: ='7A Sales Y1'!K59 -> 0 | J10: ='7A Sales Y1'!L59 -> 0 | K10: ='7A Sales Y1'!M59 -> 0 | L10: ='7A Sales Y1'!N59 -> 0 | M10: ='7A Sales Y1'!O59 -> 0
A11: Start of new Qtr | B11: =INT(MONTH(B6-1)/3)=MONTH(B6-1)/3 -> TRUE | C11: FALSE | D11: FALSE | E11: TRUE | F11: FALSE | G11: FALSE | H11: TRUE | I11: FALSE | J11: FALSE | K11: TRUE | L11: FALSE | M11: FALSE
A12: NEIS Qtr | B12: 1 | C12: =B12+C11 -> 1 | D12: =C12+D11 -> 1 | E12: 2 | F12: 2 | G12: 2 | H12: 3 | I12: 3 | J12: 3 | K12: 4 | L12: 4 | M12: 4
A13: Last Month of Qtr | B13: =IF(C11,B12,"") ->  | C13: =IF(D11,C12,"") ->  | D13: =IF(E11,D12,"") -> 1 | E13: =IF(F11,E12,"") ->  | G13: 2 | J13: 3
A15: REPORTING SUMMARY
A16: NEIS QTR | B16: Plan Cash In | C16: Plan Cash Out | D16: Stock | E16: Debtors
A17: 1 | B17: =SUMIF($B$12:$M$12,$A17,$B$7:$M$7) -> 0 | C17: =SUMIF($B$12:$M$12,$A17,$B$8:$M$8) -> 0 | D17: =SUMIF($B$13:$M$13,$A17,$B$9:$M$9) -> 0 | E17: =SUMIF($B$13:$M$13,$A17,$B$10:$M$10) -> 0
A18: 2 | B18: =SUMIF($B$12:$M$12,$A18,$B$7:$M$7) -> 0 | C18: =SUMIF($B$12:$M$12,$A18,$B$8:$M$8) -> 0 | D18: =SUMIF($B$13:$M$13,$A18,$B$9:$M$9) -> 0 | E18: =SUMIF($B$13:$M$13,$A18,$B$10:$M$10) -> 0
A19: 3 | B19: =SUMIF($B$12:$M$12,$A19,$B$7:$M$7) -> 0 | C19: =SUMIF($B$12:$M$12,$A19,$B$8:$M$8) -> 0 | D19: =SUMIF($B$13:$M$13,$A19,$B$9:$M$9) -> 0 | E19: =SUMIF($B$13:$M$13,$A19,$B$10:$M$10) -> 0
A20: 4 | B20: =SUMIF($B$12:$M$12,$A20,$B$7:$M$7) -> 0 | C20: =SUMIF($B$12:$M$12,$A20,$B$8:$M$8) -> 0 | D20: =SUMIF($B$13:$M$13,$A20,$B$9:$M$9) -> 0 | E20: =SUMIF($B$13:$M$13,$A20,$B$10:$M$10) -> 0
A21: 5 | B21: =SUMIF($B$12:$M$12,$A21,$B$7:$M$7) -> 0 | C21: =SUMIF($B$12:$M$12,$A21,$B$8:$M$8) -> 0 | D21: =SUMIF($B$13:$M$13,$A21,$B$9:$M$9) -> 0 | E21: =SUMIF($B$13:$M$13,$A21,$B$10:$M$10) -> 0

Sheet 1A MAPa Y1
A1: APPENDIX 1A - MARKETING ACTION PLAN 1 FOR YEAR 1
A2: ACTIVITY | C2: ='8A Cash flow Y1'!$C$3 -> 2013-07-01 | D2: ='8A Cash flow Y1'!D3 -> 2013-08-01 | E2: ='8A Cash flow Y1'!E3 -> 2013-09-01 | F2: ='8A Cash flow Y1'!F3 -> 2013-10-01 | G2: ='8A Cash flow Y1'!G3 -> 2013-11-01 | H2: ='8A Cash flow Y1'!H3 -> 2013-12-01 | I2: ='8A Cash flow Y1'!I3 -> 2014-01-01 | J2: ='8A Cash flow Y1'!J3 -> 2014-02-01 | K2: ='8A Cash flow Y1'!K3 -> 2014-03-01 | L2: ='8A Cash flow Y1'!L3 -> 2014-04-01 | M2: ='8A Cash flow Y1'!M3 -> 2014-05-01 | N2: ='8A Cash flow Y1'!N3 -> 2014-06-01 | O2: COST | P2: WHO
A3: DATABASE MANAGEMENT (MAILING LIST)
A4: Warning: values go in $ rows. | B4: Timeline
A5: >Research / Prepare | B5: $ | O5: =SUM(C5:N5) -> 0
B6: Timeline
A7: >Maintain / Update | B7: $ | O7: 0
B8: Timeline
A9: >Special Mailouts | B9: $ | O9: 0
A10: PRESS RELEASES / EDITORIAL | B10: Timeline
B11: $ | O11: 0
A12: COLD CALLING / TELEMARKETING | B12: Timeline
B13: $ | O13: 0
A14: >Follow Up / Review | B14: Timeline
B15: $ | O15: 0
A16: SPECIAL EVENTS/PERF.
A17: >Planning | B17: Timeline
B18: $ | O18: =SUM(C18:N18) -> 0
A19: >Running Time | B19: Timeline
B20: $ | O20: =SUM(C20:N20) -> 0
A21: >Follow Up | B21: Timeline
B22: $ | O22: =SUM(C22:N22) -> 0
A23: >Evaluate | B23: Timeline
B24: $ | O24: =SUM(C24:N24) -> 0
A25: BUSINESS STATIONERY
A26: >Prepare | B26: Timeline
B27: $ | O27: =SUM(C27:N27) -> 0
A28: >Printing | B28: Timeline
B29: $ | O29: =SUM(C29:N29) -> 0
A30: CLIENT SURVEY
A31: Prepare survey | B31: Timeline
B32: $ | O32: =SUM(C32:N32) -> 0
A33: Conduct and analyse survey | B33: Timeline
B34: $ | O34: 0
A35: RESEARCH COMPETITION | B35: Timeline
B36: $ | O36: =SUM(C36:N36) -> 0
A37: RESEARCH INDUSTRY | B37: Timeline
B38: $ | O38: =SUM(C38:N38) -> 0
A39: ASSOCIATION MEMBERSHIP | B39: Timeline
B40: $ | O40: =SUM(C40:N40) -> 0
A41: EVENT / INDUSTRY NETWORKING | B41: Timeline
B42: $ | O42: =SUM(C42:N42) -> 0
A43: PROF DEVELOPMENT / SEMINARS | B43: Timeline
B44: $ | O44: =SUM(C44:N44) -> 0
A45: TOTAL ESTIMATED - PLAN 1 | C45: =SUM(C5,C7,C9,C11,C13,C15,C18,C20,C22,C24,C27,C29,C32,C34,C36,C38,C40,C42,C44) -> 0 | D45: =SUM(D5,D7,D9,D11,D13,D15,D18,D20,D22,D24,D27,D29,D32,D34,D36,D38,D40,D42,D44) -> 0 | E45: 0 | F45: 0 | G45: 0 | H45: 0 | I45: 0 | J45: 0 | K45: 0 | L45: 0 | M45: 0 | N45: 0 | O45: =SUM(C45:N45) -> 0

Sheet 1B MAPb Y1
A1: APPENDIX 1B - MARKETING ACTION PLAN 2 FOR YEAR 1
A2: ACTIVITY | C2: ='8A Cash flow Y1'!$C$3 -> 2013-07-01 | D2: ='8A Cash flow Y1'!D3 -> 2013-08-01 | E2: ='8A Cash flow Y1'!E3 -> 2013-09-01 | F2: ='8A Cash flow Y1'!F3 -> 2013-10-01 | G2: ='8A Cash flow Y1'!G3 -> 2013-11-01 | H2: ='8A Cash flow Y1'!H3 -> 2013-12-01 | I2: ='8A Cash flow Y1'!I3 -> 2014-01-01 | J2: ='8A Cash flow Y1'!J3 -> 2014-02-01 | K2: ='8A Cash flow Y1'!K3 -> 2014-03-01 | L2: ='8A Cash flow Y1'!L3 -> 2014-04-01 | M2: ='8A Cash flow Y1'!M3 -> 2014-05-01 | N2: ='8A Cash flow Y1'!N3 -> 2014-06-01 | O2: COST | P2: WHO
A3: PRINTED PROMOTION
A4: >Prepare | B4: Timeline
B5: $ | O5: =SUM(C5:N5) -> 0
A6: >Printing | B6: Timeline
B7: $ | O7: =SUM(C7:N7) -> 0
A8: >Distribution | B8: Timeline
B9: $ | O9: =SUM(C9:N9) -> 0
A10: >Follow Up Calls | B10: Timeline
B11: $ | O11: =SUM(C11:N11) -> 0
A12: >Evaluation | B12: Timeline
B13: $ | O13: =SUM(C13:N13) -> 0
A14: WEB PROMOTION
A15: >Prepare / Develop | B15: Timeline
B16: $ | O16: =SUM(C16:N16) -> 0
A17: >Maintain / Update Site | B17: Timeline
B18: $ | O18: =SUM(C18:N18) -> 0
A19: ADVERTISING
A20: >Newspaper | B20: Timeline
B21: $ | O21: =SUM(C21:N21) -> 0
A22: >Yellow Pages | B22: Timeline
B23: $ | O23: 0
A24: >Industry Publication | B24: Timeline
B25: $ | O25: 0
A26: >GoogleAdwords | B26: Timeline
B27: $ | O27: =SUM(C27:N27) -> 0
A28: >Facebook | B28: Timeline
B29: $ | O29: 0
A30: Build better mousetrap: Attend seminar | B30: Timeline
B31: $ | O31: 0
A32: REVIEW MARKETING SWOT | B32: Timeline
B33: $ | O33: 0
A34: REVIEW STAFFING | B34: Timeline
B35: $ | O35: 0
A36: REVIEW PROCEDURES | B36: Timeline
B37: $ | O37: 0
A38: PROMOTION
A39: >Research/Prepare | B39: Timeline
B40: $ | O40: =SUM(C40:N40) -> 0
A41: >Folio/Sample | B41: Timeline
B42: $ | O42: =SUM(C42:N42) -> 0
A43: SPECIAL OFFERS | B43: Timeline
B44: $ | O44: =SUM(C44:N44) -> 0
A45: OTHER eg. Qual check | B45: Timeline
B46: $ | O46: =SUM(C46:N46) -> 0
A47: EVALUATE MARKETING | B47: Timeline
B48: $ | O48: =SUM(C48:N48) -> 0
A49: TOTAL ESTIMATED - PLAN 2 | C49: =SUM(C5,C7,C9,C11,C13,C16,C18,C21,C23,C25,C27,C29,C31,C33,C35,C40,C42,C44,C46,C47)+C48+C37 -> 0 | D49: 0 | E49: 0 | F49: 0 | G49: 0 | H49: 0 | I49: 0 | J49: 0 | K49: 0 | L49: 0 | M49: 0 | N49: 0 | O49: =SUM(C49:N49) -> 0
A51: TOTAL ESTIMATED - PLAN 1 | C51: ='1A MAPa Y1'!C45 -> 0 | D51: ='1A MAPa Y1'!D45 -> 0 | E51: ='1A MAPa Y1'!E45 -> 0 | F51: ='1A MAPa Y1'!F45 -> 0 | G51: ='1A MAPa Y1'!G45 -> 0 | H51: ='1A MAPa Y1'!H45 -> 0 | I51: ='1A MAPa Y1'!I45 -> 0 | J51: ='1A MAPa Y1'!J45 -> 0 | K51: ='1A MAPa Y1'!K45 -> 0 | L51: ='1A MAPa Y1'!L45 -> 0 | M51: ='1A MAPa Y1'!M45 -> 0 | N51: ='1A MAPa Y1'!N45 -> 0 | O51: =SUM(C51:N51) -> 0
A53: TOTAL ESTIMATED - YEAR 1 | C53: =C49+C51 -> 0 | D53: =D49+D51 -> 0 | E53: 0 | F53: 0 | G53: 0 | H53: 0 | I53: 0 | J53: 0 | K53: 0 | L53: 0 | M53: 0 | N53: 0 | O53: =SUM(C53:N53) -> 0

Sheet 2 MAP Y2
A1: APPENDIX 2 - MARKETING ACTION PLAN FOR YEAR 2
A2: ACTIVITY | C2: ='8B Cash flow Y2'!C3 -> 2014-07-01 | D2: ='8B Cash flow Y2'!D3 -> 2014-08-01 | E2: ='8B Cash flow Y2'!E3 -> 2014-09-01 | F2: ='8B Cash flow Y2'!F3 -> 2014-10-01 | G2: ='8B Cash flow Y2'!G3 -> 2014-11-01 | H2: ='8B Cash flow Y2'!H3 -> 2014-12-01 | I2: ='8B Cash flow Y2'!I3 -> 2015-01-01 | J2: ='8B Cash flow Y2'!J3 -> 2015-02-01 | K2: ='8B Cash flow Y2'!K3 -> 2015-03-01 | L2: ='8B Cash flow Y2'!L3 -> 2015-04-01 | M2: ='8B Cash flow Y2'!M3 -> 2015-05-01 | N2: ='8B Cash flow Y2'!N3 -> 2015-06-01 | O2: COST | P2: WHO
A3: DATABASE MANAGEMENT (MAILING LIST) | B3: TIME LINE
B4: $ | O4: =SUM(C4:N4) -> 0
A5: PRESS RELEASES / EDITORIAL | B5: TIME LINE
B6: $ | O6: =SUM(C6:N6) -> 0
A7: COLD CALLING / TELEMARKETING | B7: TIME LINE
B8: $ | O8: =SUM(C8:N8) -> 0
A9: SPECIAL EVENTS/PERF. | B9: TIME LINE
B10: $ | O10: =SUM(C10:N10) -> 0
A11: BUSINESS STATIONERY | B11: TIME LINE
B12: $ | O12: =SUM(C12:N12) -> 0
A13: CLIENT SURVEY | B13: TIME LINE
B14: $ | O14: =SUM(C14:N14) -> 0
A15: RESEARCH COMPETITION | B15: TIME LINE
B16: $ | O16: =SUM(C16:N16) -> 0
A17: RESEARCH INDUSTRY | B17: TIME LINE
B18: $ | O18: =SUM(C18:N18) -> 0
A19: ASSOCIATION MEMBERSHIP | B19: TIME LINE
B20: $ | O20: =SUM(C20:N20) -> 0
A21: EVENT / INDUSTRY NETWORKING | B21: TIME LINE
B22: $ | O22: =SUM(C22:N22) -> 0
A23: PROF DEVELOPMENT / SEMINARS | B23: TIME LINE
B24: $ | O24: =SUM(C24:N24) -> 0
A25: PRINTED PROMOTION | B25: TIME LINE
B26: $ | O26: =SUM(C26:N26) -> 0
A27: WEB PROMOTION | B27: TIME LINE
B28: $ | O28: =SUM(C28:N28) -> 0
A29: ADVERTISING | B29: TIME LINE
B30: $ | O30: =SUM(C30:N30) -> 0
A31: TEST NEW PRODUCT | B31: TIME LINE
B32: $ | O32: =SUM(C32:N32) -> 0
A33: REVIEW MARKETING SWOT | B33: TIME LINE
B34: $ | O34: =SUM(C34:N34) -> 0
A35: REVIEW STAFFING | B35: TIME LINE
B36: $ | O36: =SUM(C36:N36) -> 0
A37: REVIEW PROCEDURES | B37: TIME LINE
B38: $ | O38: =SUM(C38:N38) -> 0
A39: PROMOTION | B39: TIME LINE
B40: $ | O40: =SUM(C40:N40) -> 0
A41: SPECIAL OFFERS | B41: TIME LINE
B42: $ | O42: =SUM(C42:N42) -> 0
A43: OTHER eg. Qual check | B43: TIME LINE
B44: $ | O44: =SUM(C44:N44) -> 0
A45: EVALUATE MARKETING | B45: TIME LINE
B46: $ | O46: =SUM(C46:N46) -> 0
A48: TOTAL ESTIMATED COST - YEAR 2 | C48: =SUM(C4,C6,C8,C10,C12,C14,C16,C18,C20,C22,C24,C26,C28,C30,C32,C34,C36,C38,C40,C42,C44,C46) -> 0 | D48: 0 | E48: 0 | F48: 0 | G48: 0 | H48: 0 | I48: 0 | J48: 0 | K48: 0 | L48: 0 | M48: 0 | N48: 0 | O48: =SUM(C48:N48) -> 0

Sheet 3 Assets & Liabilities
A1: APPENDIX 3
A2: Personal Financial Statements | C2: =BusinessName -> Test Business ABN 123456789
B4: =UserName -> Bob Bouwer
B6: =StartDate -> 2013-07-01
A8: Personal Assets ( You OWN) | E8: Personal Liabilities (You OWE)
A10: Cash on hand | E10: Store accounts
A11: Bank Account | E11: Credit Cards - Personal
A12: Household Contents | E12: Loans - Family / Personal
A13: Computer Equipment | D13: =100%-D43 -> 1 | E13: Hire Purchase Agreements
A14: Motor Vehicle - Private Portion | D14: =100%-D44 -> 1 | E14: Mortgage
A15: House | E15: HECS
A16: Caravan | E16: Spare
A17: Boat | E17: Spare
A18: Shares | E18: Spare
A19: Other items of value | C19: `` | E19: Spare
A20: Clothing | E20: Spare
A21: Tools - Household | E21: Spare
A22: Spare | E22: Spare
A23: Spare | E23: Spare
A24: Spare | E24: Spare
A25: Spare | E25: Spare
A26: Total Assets | C26: =SUM(C10:C25) -> 0 | E26: Total Liabilities | G26: =SUM(G10:G25) -> 0
A28: Nett Worth = Total Assets - Total Liabilities
A30: Nett Worth | C30: =+C26-G26 -> 0
A34: Business Financial Statements
A36: Business Assets brought into the business | E36: Business Liabilities brought into the business
A37: Don’t forget to set depreciation on sheet 4 | E37: Use with caution
A38: Bank Account (this becomes capital input month one) | E38: Creditors (suppliers)
A39: Debtors (customers) (not working properly yet) | E39: Other Creditors
A40: Office Furniture / Fittings (brought into) | E40: Credit Cards (Business)
A41: Trading Stock (Opening) | E41: Loans
A42: Tools of trade (brought into)
A43: Computer Equipment (brought into) | D43: =IF(ISERROR(C43/SUM(C43+C13)),0,C43/SUM(C43+C13)) -> 0
A44: Motor Vehicle Brought Into (Business Portion) | D44: =IF(ISERROR(C44/SUM(C44+C14)),0,C44/SUM(C44+C14)) -> 0
A45: new computer
A46: Spare1
A47: Spare2
A48: spare 3
A49: Total Assets | C49: =SUM(C38:C48) -> 0 | E49: Total Liabilities | G49: =SUM(G38:G48) -> 0
A51: Owners Equity = Total Assets - Total Liabilities
A53: Owners Equity | C53: =+C49-G49 -> 0

Sheet 4 Depr&Assets
A1: APPENDIX 4 Depreciation and new assets
A2: =BusinessName -> Test Business ABN 123456789
A5: Depreciation Schedule
A7: Description | B7: Owned (value) | L7: Life (Years) | N7: % Rate | P7: Dep'n p.a. Y1
A8: Existing Fixed Assets
A9: =+'3 Assets & Liabilities'!A40 -> Office Furniture / Fittings (brought into) | B9: =+'3 Assets & Liabilities'!C40 -> 0 | N9: =IF(ISERROR(1/L9),0,1/L9) -> 0 | P9: =(B9*N9) -> 0
A10: =+'3 Assets & Liabilities'!A42 -> Tools of trade (brought into) | B10: =+'3 Assets & Liabilities'!C42 -> 0 | N10: 0 | P10: =(B10*N10) -> 0
A11: =+'3 Assets & Liabilities'!A43 -> Computer Equipment (brought into) | B11: =+'3 Assets & Liabilities'!C43 -> 0 | N11: 0 | P11: 0
A12: =+'3 Assets & Liabilities'!A44 -> Motor Vehicle Brought Into (Business Portion) | B12: =+'3 Assets & Liabilities'!C44 -> 0 | N12: 0 | P12: 0
A13: =+'3 Assets & Liabilities'!A45 -> new computer | B13: =+'3 Assets & Liabilities'!C45 -> 0 | N13: 0 | P13: 0
A14: =+'3 Assets & Liabilities'!A46 -> Spare1 | B14: =+'3 Assets & Liabilities'!C46 -> 0 | N14: 0 | P14: 0
A15: =+'3 Assets & Liabilities'!A47 -> Spare2 | B15: =+'3 Assets & Liabilities'!C47 -> 0 | N15: 0 | P15: 0
A16: =+'3 Assets & Liabilities'!A48 -> spare 3 | B16: =+'3 Assets & Liabilities'!C48 -> 0 | N16: 0 | P16: 0
A18: New Assets | E18: GST is not used yet
A20: Commencement Date | B20: =+'3 Assets & Liabilities'!B6 -> 2013-07-01 | D20: Purchase Price before GST | E20: GST part | F20: Purchase Date | H20: MonthData | J20: Days of depreciation, Y1 | L20: Days of depreciation, Y2 | N20: Life (Years) | P20: =+N7 -> % Rate | T20: =+P7 -> Dep'n p.a. Y1 | V20: Dep'n Y2
A21: Assets to be purchased Y1 | T21: TOTAL | V21: TOTAL
A22: new computer Y1 | E22: =D22*(GSTRate) -> 0 | F22: =StartDate -> 2013-07-01 | H22: =MONTH(F22)-MONTH(StartDate)+12*(YEAR(F22)-YEAR(StartDate)) -> 0 | J22: =MIN(365,MAX(0,$B$20+365-F22)) -> 365 | L22: =MIN(365,MAX(0,($B$20+365)+365-$F22)) -> 365 | P22: =IF(ISERROR(1/N22),0,1/N22) -> 0 | T22: =((D22*P22)/365*J22) -> 0 | V22: =((D22*P22)/365*L22) -> 0
A23: digital video camera | E23: =D23*(GSTRate) -> 0 | F23: =StartDate -> 2013-07-01 | H23: =MONTH(F23)-MONTH(StartDate)+12*(YEAR(F23)-YEAR(StartDate)) -> 0 | J23: =MIN(365,MAX(0,$B$20+365-F23)) -> 365 | L23: =MIN(365,MAX(0,($B$20+365)+365-$F23)) -> 365 | P23: =IF(ISERROR(1/N23),0,1/N23) -> 0 | T23: =((D23*P23)/365*J23) -> 0 | V23: =((D23*P23)/365*L23) -> 0
A24: new tractor Y2 | E24: =D24*(GSTRate) -> 0 | F24: =DATE(YEAR(StartDate)+1,MONTH(StartDate),1) -> 2014-07-01 | H24: =MONTH(F24)-MONTH(StartDate)+12*(YEAR(F24)-YEAR(StartDate)) -> 12 | J24: =MIN(365,MAX(0,$B$20+365-F24)) -> 0 | L24: =MIN(365,MAX(0,($B$20+365)+365-$F24)) -> 365 | P24: =IF(ISERROR(1/N24),0,1/N24) -> 0 | T24: =((D24*P24)/365*J24) -> 0 | V24: =((D24*P24)/365*L24) -> 0
A25: spare | E25: =D25*(GSTRate) -> 0 | F25: =$B$20 -> 2013-07-01 | H25: =MONTH(F25)-MONTH(StartDate)+12*(YEAR(F25)-YEAR(StartDate)) -> 0 | J25: =MIN(365,MAX(0,$B$20+365-F25)) -> 365 | L25: =MIN(365,MAX(0,($B$20+365)+365-$F25)) -> 365 | P25: =IF(ISERROR(1/N25),0,1/N25) -> 0 | T25: =((D25*P25)/365*J25) -> 0 | V25: =((D25*P25)/365*L25) -> 0
A26: Spare | F26: =$B$20 -> 2013-07-01 | J26: =MIN(365,MAX(0,$B$20+365-F26)) -> 365 | L26: =MIN(365,MAX(0,($B$20+365)+365-$F26)) -> 365 | P26: =IF(ISERROR(1/N26),0,1/N26) -> 0 | T26: =((D26*P26)/365*J26) -> 0 | V26: =((D26*P26)/365*L26) -> 0
A27: Totals | B27: =SUM(B9:B16) -> 0 | D27: =SUM(D22:D26) -> 0 | E27: =SUM(E22:E26) -> 0 | R27: Total | T27: =SUM(P9:P16)+SUM(T22:T26) -> 0 | V27: =SUM(P9:P16)+SUM(V22:V26) -> 0
A30: Note
A31: This is only for rough depreciation estimates
A32: It does not allow for assets which become zero-value before the end of year 2
A33: If more than three rows are added then the profit and loss sheets need to be manually updated to pickup the extra assets
R40: Month by Month Helper
A41: General Depreciation Percentages | R41: ='6A HH Bud Y1'!B3 -> 2013-07-01 | S41: ='6A HH Bud Y1'!C3 -> 2013-08-01 | T41: ='6A HH Bud Y1'!D3 -> 2013-09-01 | U41: ='6A HH Bud Y1'!E3 -> 2013-10-01 | V41: ='6A HH Bud Y1'!F3 -> 2013-11-01 | W41: ='6A HH Bud Y1'!G3 -> 2013-12-01 | X41: ='6A HH Bud Y1'!H3 -> 2014-01-01 | Y41: ='6A HH Bud Y1'!I3 -> 2014-02-01 | Z41: ='6A HH Bud Y1'!J3 -> 2014-03-01 | AA41: ='6A HH Bud Y1'!K3 -> 2014-04-01 | AB41: ='6A HH Bud Y1'!L3 -> 2014-05-01 | AC41: ='6A HH Bud Y1'!M3 -> 2014-06-01
A42: Furniture / Fittings | N42: 0.1 | Q42: Y1
A43: Computers / Equipment | N43: 25-33% | Q43: Y2
A44: Motor Vehicle/s | N44: 15-25%
A45: Land / Buildings | N45: 3-5%

Sheet 5 Source of Funds
A1: APPENDIX 5
A3: =BusinessName -> Test Business ABN 123456789
A5: Loans to be acquired
A7: Formal Business Loan
L8: Month
A9: Name of lender | C9: NAB | G9: Date of Loan | I9: =StartDate -> 2013-07-01 | J9: Loans should start in Y1 | L9: =MONTH(I9)-MONTH(StartDate)+12*(YEAR(I9)-YEAR(StartDate)) -> 0
A11: Estimated Loan | G11: Total Loan | K11: =+D15 -> 0
A12: Stamp Duty | G12: Loan Term (years)
A13: Application Fees | G13: Interest Rate | I13: %
A14: Other Loan Costs | G14: Payments Per Year | K14: 12
A15: Total Required | D15: =SUM(D11:D14) -> 0 | G15: Monthly Payments $ | K15: =IF(ISERROR(PMT(K13/K14,K12*K14,K11)*-1),0,PMT(K13/K14,K12*K14,K11)*-1) -> 0
G16: Total Owing | K16: =K15*K14*K12 -> 0
G17: Total Interest | K17: =K16-K11 -> 0
G18: Total repaid each year | K18: =K15*K14 -> 0
G19: Repaid by | K19: =(I9+(K12*365.25)) -> 2013-07-01
A22: Non Formal / Other loan
L23: Month
A24: Name of lender | C24: Big Sister | G24: Date of Loan | I24: =StartDate -> 2013-07-01 | J24: Loans should start in Y1 | L24: =MONTH(I24)-MONTH(StartDate)+12*(YEAR(I24)-YEAR(StartDate)) -> 0
A25: (Optional)
A27: Estimated Loan | G27: Total Loan | K27: =+D31 -> 0
A28: Stamp Duty | G28: =+G12 -> Loan Term (years)
A29: Application Fees | G29: =+G13 -> Interest Rate | I29: %
A30: Other Loan Costs | G30: Payments Per Year | K30: =12 -> 12
A31: Total Required | D31: =SUM(D27:D30) -> 0 | G31: Monthly Payments $ | K31: =IF(ISERROR(PMT(K29/K30,K28*K30,K27)*-1),0,PMT(K29/K30,K28*K30,K27)*-1) -> 0
G32: Total Owing | K32: =K31*K30*K28 -> 0
G33: Total Interest | K33: =K32-K27 -> 0
G34: Total repaid each year | K34: =K31*K30 -> 0
G35: Repaid by | K35: =(I24+(K28*365.25)) -> 2013-07-01

Sheet 6A HH Bud Y1
A1: APPENDIX 6A
A2: Household Budget - Year 1 | E2: =+'3 Assets & Liabilities'!C2 -> Test Business ABN 123456789 | O2: as % of Income
A3: Receipts | B3: =StartDate -> 2013-07-01 | C3: =DATE(YEAR(B3),MONTH(B3)+1,1) -> 2013-08-01 | D3: =DATE(YEAR(C3),MONTH(C3)+1,1) -> 2013-09-01 | E3: 2013-10-01 | F3: 2013-11-01 | G3: 2013-12-01 | H3: 2014-01-01 | I3: 2014-02-01 | J3: 2014-03-01 | K3: 2014-04-01 | L3: 2014-05-01 | M3: 2014-06-01 | N3: Total
A4: Wages 1 P/T casual work | N4: =SUM(B4:M4) -> 0 | O4: =IF(ISERROR((N4/$N$13)*100),0,(N4/$N$13)*100) -> 0
A5: Wages Spouse / partner | N5: =SUM(B5:M5) -> 0 | O5: =IF(ISERROR((N5/$N$13)*100),0,(N5/$N$13)*100) -> 0
A6: Govt Payments eg Rent Ast | N6: 0 | O6: =IF(ISERROR((N6/$N$13)*100),0,(N6/$N$13)*100) -> 0
A7: =IF(NEISYesNo="Yes","NEIS Allowance","Spare") -> NEIS Allowance | N7: 0 | O7: =IF(ISERROR((N7/$N$13)*100),0,(N7/$N$13)*100) -> 0
A8: Any Other Income | N8: 0 | O8: 0
A9: Drawings (if sole trader) | N9: 0 | O9: 0
A10: Owner's salary after tax (if company) | N10: 0 | O10: 0
A11: Hobby Income | N11: 0 | O11: =IF(ISERROR((N11/$N$13)*100),0,(N11/$N$13)*100) -> 0
A12: spare | N12: 0 | O12: =IF(ISERROR((N12/$N$13)*100),0,(N12/$N$13)*100) -> 0
A13: Total Receipts | B13: =SUM(B4:B12) -> 0 | C13: =SUM(C4:C12) -> 0 | D13: 0 | E13: 0 | F13: 0 | G13: 0 | H13: 0 | I13: 0 | J13: 0 | K13: 0 | L13: 0 | M13: 0 | N13: 0 | O13: =SUM(O4:O12) -> 0
O14: as % of Income
A15: Payments | N15: =+N3 -> Total
A16: Rent / Mortgage | N16: =SUM(B16:M16) -> 0 | O16: =IF(ISERROR((N16/$N$13)*100),0,(N16/$N$13)*100) -> 0
A17: Food | N17: =SUM(B17:M17) -> 0 | O17: 0
A18: Gas | N18: 0 | O18: 0
A19: Electricity | N19: 0 | O19: 0
A20: Home Insurance | N20: 0 | O20: 0
A21: Rates / Water | N21: 0 | O21: 0
A22: Telephone | N22: 0 | O22: 0
A23: Mobile | N23: 0 | O23: 0
A24: Internet | N24: 0 | O24: 0
A25: =+'8A Cash flow Y1'!B20 -> Car Insurance | N25: 0 | O25: 0
A26: =+'8A Cash flow Y1'!B21 -> Car Registration | N26: 0 | O26: 0
A27: =+'8A Cash flow Y1'!B22 -> Petrol & Servicing | N27: 0 | O27: 0
A28: Fares | N28: 0 | O28: 0
A29: Children - School etc | N29: 0 | O29: 0
A30: Clothes | N30: 0 | O30: 0
A31: Entertainment | N31: 0 | O31: 0
A32: Newspapers, Magazines | N32: 0 | O32: 0
A33: Vices | N33: 0 | O33: 0
A34: Repayment of Loans | N34: 0 | O34: 0
A35: Medical Insurance | N35: 0 | O35: 0
A36: Bank charges | N36: 0 | O36: 0
A37: Spare | N37: 0 | O37: 0
A38: Spare | N38: 0 | O38: 0
A39: Spare | N39: 0 | O39: 0
A40: Spare | N40: 0 | O40: 0
A41: Total Payments | B41: =SUM(B16:B40) -> 0 | C41: =SUM(C16:C40) -> 0 | D41: 0 | E41: 0 | F41: 0 | G41: 0 | H41: 0 | I41: 0 | J41: 0 | K41: 0 | L41: 0 | M41: 0 | N41: =SUM(N16:N40) -> 0 | O41: =SUM(O16:O40) -> 0
O42: =IF(N41>N13,"you need more income","") -> 
A43: Diff. = Recpts - Pmnts | B43: =+B13-B41 -> 0 | C43: 0 | D43: 0 | E43: 0 | F43: 0 | G43: 0 | H43: 0 | I43: 0 | J43: =+J13-J41 -> 0 | K43: 0 | L43: 0 | M43: 0 | N43: 0
A45: Bank Open | B45: ='3 Assets & Liabilities'!C10 -> 0 | C45: =+B46 -> 0 | D45: =+C46 -> 0 | E45: 0 | F45: 0 | G45: 0 | H45: 0 | I45: 0 | J45: 0 | K45: 0 | L45: 0 | M45: 0 | N45: =+B45 -> 0
A46: Bank Close | B46: =+B43+B45 -> 0 | C46: =+C43+C45 -> 0 | D46: 0 | E46: 0 | F46: 0 | G46: 0 | H46: 0 | I46: 0 | J46: 0 | K46: 0 | L46: 0 | M46: 0 | N46: 0

Sheet 7A Sales Y1
B1: APPENDIX 7A
B2: Sales Forecast and Banking Details - First Year | H2: =BusinessName -> Test Business ABN 123456789
D3: =+'6A HH Bud Y1'!B3 -> 2013-07-01 | E3: =+'6A HH Bud Y1'!C3 -> 2013-08-01 | F3: =+'6A HH Bud Y1'!D3 -> 2013-09-01 | G3: =+'6A HH Bud Y1'!E3 -> 2013-10-01 | H3: =+'6A HH Bud Y1'!F3 -> 2013-11-01 | I3: =+'6A HH Bud Y1'!G3 -> 2013-12-01 | J3: =+'6A HH Bud Y1'!H3 -> 2014-01-01 | K3: =+'6A HH Bud Y1'!I3 -> 2014-02-01 | L3: =+'6A HH Bud Y1'!J3 -> 2014-03-01 | M3: =+'6A HH Bud Y1'!K3 -> 2014-04-01 | N3: =+'6A HH Bud Y1'!L3 -> 2014-05-01 | O3: =+'6A HH Bud Y1'!M3 -> 2014-06-01 | P3: Totals | Q3: % of Sales
B4: Sales (incl GST) | C4: Unit SP | D4: Qty | E4: Qty | F4: Qty | G4: Qty | H4: Qty | I4: Qty | J4: Qty | K4: Qty | L4: Qty | M4: Qty | N4: Qty | O4: Qty
B5: small film clip
D6: =$C$5*D5 -> 0 | E6: =$C$5*E5 -> 0 | F6: 0 | G6: 0 | H6: 0 | I6: 0 | J6: 0 | K6: 0 | L6: 0 | M6: 0 | N6: 0 | O6: 0 | P6: =SUM(D6:O6) -> 0 | Q6: =IF(ISERROR(P6/$P$25),0,P6/$P$25) -> 0
B7: medium clips
D8: =$C$7*D7 -> 0 | E8: =$C$7*E7 -> 0 | F8: 0 | G8: 0 | H8: 0 | I8: 0 | J8: 0 | K8: 0 | L8: 0 | M8: 0 | N8: 0 | O8: 0 | P8: =SUM(D8:O8) -> 0 | Q8: =IF(ISERROR(P8/$P$25),0,P8/$P$25) -> 0
B9: large budget clips
D10: =$C$9*D9 -> 0 | E10: =$C$9*E9 -> 0 | F10: 0 | G10: 0 | H10: 0 | I10: 0 | J10: 0 | K10: 0 | L10: 0 | M10: 0 | N10: 0 | O10: 0 | P10: =SUM(D10:O10) -> 0 | Q10: =IF(ISERROR(P10/$P$25),0,P10/$P$25) -> 0
D12: =$C$11*D11 -> 0 | E12: =$C$11*E11 -> 0 | F12: 0 | G12: 0 | H12: 0 | I12: 0 | J12: 0 | K12: 0 | L12: 0 | M12: 0 | N12: 0 | O12: 0 | P12: =SUM(D12:O12) -> 0 | Q12: =IF(ISERROR(P12/$P$25),0,P12/$P$25) -> 0
D14: =$C$13*D13 -> 0 | E14: =$C$13*E13 -> 0 | F14: 0 | G14: 0 | H14: 0 | I14: 0 | J14: 0 | K14: 0 | L14: 0 | M14: 0 | N14: 0 | O14: 0 | P14: =SUM(D14:O14) -> 0 | Q14: =IF(ISERROR(P14/$P$25),0,P14/$P$25) -> 0
D16: =$C$15*D15 -> 0 | E16: =$C$15*E15 -> 0 | F16: 0 | G16: 0 | H16: 0 | I16: 0 | J16: 0 | K16: 0 | L16: 0 | M16: 0 | N16: 0 | O16: 0 | P16: =SUM(D16:O16) -> 0 | Q16: =IF(ISERROR(P16/$P$25),0,P16/$P$25) -> 0
D18: =$C$17*D17 -> 0 | E18: =$C$17*E17 -> 0 | F18: =$C$17*F17 -> 0 | G18: 0 | H18: 0 | I18: 0 | J18: 0 | K18: 0 | L18: 0 | M18: 0 | N18: 0 | O18: 0 | P18: =SUM(D18:O18) -> 0 | Q18: =IF(ISERROR(P18/$P$25),0,P18/$P$25) -> 0
D20: =$C$19*D19 -> 0 | E20: =$C$19*E19 -> 0 | F20: =$C$19*F19 -> 0 | G20: 0 | H20: 0 | I20: 0 | J20: 0 | K20: 0 | L20: 0 | M20: 0 | N20: 0 | O20: 0 | P20: =SUM(D20:O20) -> 0 | Q20: =IF(ISERROR(P20/$P$25),0,P20/$P$25) -> 0
D22: =$C$21*D21 -> 0 | E22: =$C$21*E21 -> 0 | F22: 0 | G22: 0 | H22: 0 | I22: 0 | J22: 0 | K22: 0 | L22: 0 | M22: 0 | N22: 0 | O22: 0 | P22: =SUM(D22:O22) -> 0 | Q22: =IF(ISERROR(P22/$P$25),0,P22/$P$25) -> 0
D24: =$C$23*D23 -> 0 | E24: =$C$23*E23 -> 0 | F24: 0 | G24: 0 | H24: 0 | I24: 0 | J24: 0 | K24: 0 | L24: 0 | M24: 0 | N24: 0 | O24: 0 | P24: =SUM(D24:O24) -> 0 | Q24: =IF(ISERROR(P24/$P$25),0,P24/$P$25) -> 0
B25: Total Sales per Month | D25: =($C$5*D5)+($C$7*D7)+($C$9*D9)+($C$11*D11)+($C$13*D13)+($C$15*D15)+($C$17*D17)+($C$19*D19)+($C$21*D21)+($C$23*D23) -> 0 | E25: =($C$5*E5)+($C$7*E7)+($C$9*E9)+($C$11*E11)+($C$13*E13)+($C$15*E15)+($C$17*E17)+($C$19*E19)+($C$21*E21)+($C$23*E23) -> 0 | F25: =($C$5*F5)+($C$7*F7)+($C$9*F9)+($C$11*F11)+($C$13*F13)+($C$15*F15)+($C$17*F17)+($C$19*F19)+($C$21*F21)+($C$23*F23) -> 0 | G25: =($C$5*G5)+($C$7*G7)+($C$9*G9)+($C$11*G11)+($C$13*G13)+($C$15*G15)+($C$17*G17)+($C$19*G19)+($C$21*G21)+($C$23*G23) -> 0 | H25: 0 | I25: 0 | J25: 0 | K25: 0 | L25: 0 | M25: 0 | N25: 0 | O25: 0 | P25: =SUM(D25:O25) -> 0 | Q25: =SUM(Q6,Q8,Q10,Q12,Q14,Q16,Q18,Q20,Q22,Q24) -> 0
Q26: =IF(Q25<>100%,"Error","") -> Error
B27: Banked
B28: From this Month's sales | C28: 1 | D28: =D25*$C$28 -> 0 | E28: =E25*$C$28 -> 0 | F28: 0 | G28: 0 | H28: 0 | I28: 0 | J28: 0 | K28: 0 | L28: 0 | M28: 0 | N28: 0 | O28: 0 | P28: =SUM(D28:O28) -> 0 | Q28: =IF(ISERROR(P28/$P$25),0,P28/$P$25) -> 0
B29: From last Month's sales | E29: =D25*$C$29 -> 0 | F29: =E25*$C$29 -> 0 | G29: 0 | H29: 0 | I29: 0 | J29: 0 | K29: 0 | L29: 0 | M29: 0 | N29: 0 | O29: 0 | P29: =SUM(D29:O29) -> 0 | Q29: =IF(ISERROR(P29/$P$25),0,P29/$P$25) -> 0
B30: From the month before | D30: =IF(SUM(C28:C30)<>100%,"ERROR","") ->  | F30: =D25*$C$30 -> 0 | G30: =E25*$C$30 -> 0 | H30: 0 | I30: 0 | J30: 0 | K30: 0 | L30: 0 | M30: 0 | N30: 0 | O30: 0 | P30: =SUM(D30:O30) -> 0 | Q30: =IF(ISERROR(P30/$P$25),0,P30/$P$25) -> 0
B31: Total Banked per Month | D31: =SUM(D28:D30) -> 0 | E31: =SUM(E28:E30) -> 0 | F31: 0 | G31: 0 | H31: 0 | I31: 0 | J31: 0 | K31: 0 | L31: 0 | M31: 0 | N31: 0 | O31: 0 | P31: 0 | Q31: =IF(ISERROR(P31/$P$25),0,P31/$P$25) -> 0
B33: Variable Costs (inc GST) | C33: Unit CP | D33: Qty | E33: Qty | F33: Qty | G33: Qty | H33: Qty | I33: Qty | J33: Qty | K33: Qty | L33: Qty | M33: Qty | N33: Qty | O33: Qty
B34: =IF(ISBLANK(B5),"",B5) -> small film clip | D34: =D5 -> 0 | E34: =E5 -> 0 | F34: 0 | G34: 0 | H34: 0 | I34: 0 | J34: 0 | K34: 0 | L34: 0 | M34: 0 | N34: 0 | O34: 0
D35: =$C$34*D34 -> 0 | E35: =$C$34*E34 -> 0 | F35: 0 | G35: 0 | H35: 0 | I35: 0 | J35: 0 | K35: 0 | L35: 0 | M35: 0 | N35: 0 | O35: 0 | P35: =SUM(D35:O35) -> 0 | Q35: =IF(ISERROR(P35/$P$54),0,P35/$P$54) -> 0
B36: =IF(ISBLANK(B7),"",B7) -> medium clips | D36: =D7 -> 0 | E36: =E7 -> 0 | F36: =F7 -> 0 | G36: 0 | H36: 0 | I36: 0 | J36: 0 | K36: 0 | L36: 0 | M36: 0 | N36: 0 | O36: 0
D37: =$C$36*D36 -> 0 | E37: =$C$36*E36 -> 0 | F37: 0 | G37: 0 | H37: 0 | I37: 0 | J37: 0 | K37: 0 | L37: 0 | M37: 0 | N37: 0 | O37: 0 | P37: =SUM(D37:O37) -> 0 | Q37: =IF(ISERROR(P37/$P$54),0,P37/$P$54) -> 0
B38: =IF(ISBLANK(B9),"",B9) -> large budget clips | D38: =D9 -> 0 | E38: =E9 -> 0 | F38: 0 | G38: 0 | H38: 0 | I38: 0 | J38: 0 | K38: 0 | L38: 0 | M38: 0 | N38: 0 | O38: 0
D39: =$C$38*D38 -> 0 | E39: =$C$38*E38 -> 0 | F39: 0 | G39: 0 | H39: 0 | I39: 0 | J39: 0 | K39: 0 | L39: 0 | M39: 0 | N39: 0 | O39: 0 | P39: =SUM(D39:O39) -> 0 | Q39: =IF(ISERROR(P39/$P$54),0,P39/$P$54) -> 0
B40: =IF(ISBLANK(B11),"",B11) ->  | D40: =D11 -> 0 | E40: 0 | F40: 0 | G40: 0 | H40: 0 | I40: 0 | J40: 0 | K40: 0 | L40: 0 | M40: 0 | N40: 0 | O40: 0
D41: =$C$40*D40 -> 0 | E41: =$C$40*E40 -> 0 | F41: 0 | G41: 0 | H41: 0 | I41: 0 | J41: 0 | K41: 0 | L41: 0 | M41: 0 | N41: 0 | O41: 0 | P41: =SUM(D41:O41) -> 0 | Q41: =IF(ISERROR(P41/$P$54),0,P41/$P$54) -> 0
B42: =IF(ISBLANK(B13),"",B13) ->  | D42: =D13 -> 0 | E42: 0 | F42: 0 | G42: 0 | H42: 0 | I42: 0 | J42: 0 | K42: 0 | L42: 0 | M42: 0 | N42: 0 | O42: 0
D43: =$C$42*D42 -> 0 | E43: =$C$42*E42 -> 0 | F43: =$C$42*F42 -> 0 | G43: 0 | H43: 0 | I43: 0 | J43: 0 | K43: 0 | L43: 0 | M43: 0 | N43: 0 | O43: 0 | P43: =SUM(D43:O43) -> 0 | Q43: =IF(ISERROR(P43/$P$54),0,P43/$P$54) -> 0
B44: =IF(ISBLANK(B15),"",B15) ->  | D44: =D15 -> 0 | E44: 0 | F44: 0 | G44: 0 | H44: 0 | I44: 0 | J44: 0 | K44: 0 | L44: 0 | M44: 0 | N44: 0 | O44: 0
D45: =$C$44*D44 -> 0 | E45: =$C$44*E44 -> 0 | F45: =$C$44*F44 -> 0 | G45: 0 | H45: 0 | I45: 0 | J45: 0 | K45: 0 | L45: 0 | M45: 0 | N45: 0 | O45: 0 | P45: =SUM(D45:O45) -> 0 | Q45: =IF(ISERROR(P45/$P$54),0,P45/$P$54) -> 0
B46: =IF(ISBLANK(B17),"",B17) ->  | D46: =D17 -> 0 | E46: 0 | F46: 0 | G46: 0 | H46: 0 | I46: 0 | J46: 0 | K46: 0 | L46: 0 | M46: 0 | N46: 0 | O46: 0
D47: =$C$46*D46 -> 0 | E47: =$C$46*E46 -> 0 | F47: 0 | G47: 0 | H47: 0 | I47: 0 | J47: 0 | K47: 0 | L47: 0 | M47: 0 | N47: 0 | O47: 0 | P47: =SUM(D47:O47) -> 0 | Q47: =IF(ISERROR(P47/$P$54),0,P47/$P$54) -> 0
B48: =IF(ISBLANK(B19),"",B19) ->  | D48: =D19 -> 0 | E48: 0 | F48: 0 | G48: 0 | H48: 0 | I48: 0 | J48: 0 | K48: 0 | L48: 0 | M48: 0 | N48: 0 | O48: 0
D49: =$C$48*D48 -> 0 | E49: =$C$48*E48 -> 0 | F49: 0 | G49: 0 | H49: 0 | I49: 0 | J49: 0 | K49: 0 | L49: 0 | M49: 0 | N49: 0 | O49: 0 | P49: =SUM(D49:O49) -> 0 | Q49: =IF(ISERROR(P49/$P$54),0,P49/$P$54) -> 0
B50: =IF(ISBLANK(B21),"",B21) ->  | D50: =D21 -> 0 | E50: 0 | F50: 0 | G50: 0 | H50: 0 | I50: 0 | J50: 0 | K50: 0 | L50: 0 | M50: 0 | N50: 0 | O50: 0
D51: =$C$50*D50 -> 0 | E51: =$C$50*E50 -> 0 | F51: 0 | G51: 0 | H51: 0 | I51: 0 | J51: 0 | K51: 0 | L51: 0 | M51: 0 | N51: 0 | O51: 0 | P51: =SUM(D51:O51) -> 0 | Q51: =IF(ISERROR(P51/$P$54),0,P51/$P$54) -> 0
B52: =IF(ISBLANK(B23),"",B23) ->  | D52: =D23 -> 0 | E52: 0 | F52: 0 | G52: 0 | H52: 0 | I52: 0 | J52: 0 | K52: 0 | L52: 0 | M52: 0 | N52: 0 | O52: 0
D53: =$C$52*D52 -> 0 | E53: =$C$52*E52 -> 0 | F53: 0 | G53: 0 | H53: 0 | I53: 0 | J53: 0 | K53: 0 | L53: 0 | M53: 0 | N53: 0 | O53: 0 | P53: =SUM(D53:O53) -> 0 | Q53: =IF(ISERROR(P53/$P$54),0,P53/$P$54) -> 0
B54: Total Paid | D54: =($C$34*D34)+($C$36*D36)+($C$38*D38)+($C$40*D40)+($C$42*D42)+($C$44*D44)+($C$46*D46)+($C$48*D48)+($C$50*D50)+($C$52*D52) -> 0 | E54: =($C$34*E34)+($C$36*E36)+($C$38*E38)+($C$40*E40)+($C$42*E42)+($C$44*E44)+($C$46*E46)+($C$48*E48)+($C$50*E50)+($C$52*E52) -> 0 | F54: 0 | G54: 0 | H54: 0 | I54: 0 | J54: 0 | K54: 0 | L54: 0 | M54: 0 | N54: 0 | O54: 0 | P54: =SUM(D54:O54) -> 0 | Q54: =+Q35+Q37+Q39+Q41+Q43+Q45+Q47+Q49+Q51+Q53 -> 0
B55: Gross Margin % | D55: =IF(ISERROR((D25-D54)/D25),0,(D25-D54)/D25) -> 0 | E55: =IF(ISERROR((E25-E54)/E25),0,(E25-E54)/E25) -> 0 | F55: 0 | G55: 0 | H55: 0 | I55: 0 | J55: 0 | K55: 0 | L55: 0 | M55: 0 | N55: 0 | O55: 0 | P55: 0 | Q55: =IF(AND(Q54>0,Q54<>100%),"Error","") -> 
B56: Markup% | D56: =IF(ISERROR(D25/D54-1),"",D25/D54-1) ->  | E56: =IF(ISERROR(E25/E54-1),"",E25/E54-1) -> 
B57: Sales ex GST | D57: =D25*GSTInclusiveToExclusive -> 0 | E57: 0 | F57: 0 | G57: 0 | H57: 0 | I57: 0 | J57: 0 | K57: 0 | L57: 0 | M57: 0 | N57: 0 | O57: 0 | P57: =SUM(D57:O57) -> 0
B59: Debtors | C59: ='3 Assets & Liabilities'!C39 -> 0 | D59: =$C$59+SUM($D25:D25)-SUM($D31:D31) -> 0 | E59: =$C$59+SUM($D25:E25)-SUM($D31:E31) -> 0 | F59: =$C$59+SUM($D25:F25)-SUM($D31:F31) -> 0 | G59: =$C$59+SUM($D25:G25)-SUM($D31:G31) -> 0 | H59: =$C$59+SUM($D25:H25)-SUM($D31:H31) -> 0 | I59: =$C$59+SUM($D25:I25)-SUM($D31:I31) -> 0 | J59: =$C$59+SUM($D25:J25)-SUM($D31:J31) -> 0 | K59: =$C$59+SUM($D25:K25)-SUM($D31:K31) -> 0 | L59: =$C$59+SUM($D25:L25)-SUM($D31:L31) -> 0 | M59: =$C$59+SUM($D25:M25)-SUM($D31:M31) -> 0 | N59: =$C$59+SUM($D25:N25)-SUM($D31:N31) -> 0 | O59: =$C$59+SUM($D25:O25)-SUM($D31:O31) -> 0
D61: Tips
D62: Try to find three to five products which represent your business quite well.
D63: Too many, and the spreadsheet becomes quite complex.
D65: Your quantities
D66: At the end of the first year, imagine being very busy. Take 80% of that, and make that your quantity sold in the final month
D67: Then ramp up to that volume steadily during the year.
D68: Some businesses will need to adjust for seasonality: is winter or January very quiet?

Sheet 8A Cash flow Y1
B1: APPENDIX 8A | D1: Note: Apparent rounding errors are possible because this spreadsheet shows whole dollars even if the real numbers include cents.
B2: CASHFLOW BUDGET | D2: First Year | F2: =+'7A Sales Y1'!H2 -> Test Business ABN 123456789
B3: Receipts | C3: ='7A Sales Y1'!D3 -> 2013-07-01 | D3: ='7A Sales Y1'!E3 -> 2013-08-01 | E3: ='7A Sales Y1'!F3 -> 2013-09-01 | F3: ='7A Sales Y1'!G3 -> 2013-10-01 | G3: ='7A Sales Y1'!H3 -> 2013-11-01 | H3: ='7A Sales Y1'!I3 -> 2013-12-01 | I3: ='7A Sales Y1'!J3 -> 2014-01-01 | J3: ='7A Sales Y1'!K3 -> 2014-02-01 | K3: ='7A Sales Y1'!L3 -> 2014-03-01 | L3: ='7A Sales Y1'!M3 -> 2014-04-01 | M3: ='7A Sales Y1'!N3 -> 2014-05-01 | N3: ='7A Sales Y1'!O3 -> 2014-06-01 | O3: Totals | Q3: Check against sales
B4: Total Sales | C4: ='7A Sales Y1'!D31 -> 0 | D4: ='7A Sales Y1'!E31 -> 0 | E4: ='7A Sales Y1'!F31 -> 0 | F4: ='7A Sales Y1'!G31 -> 0 | G4: ='7A Sales Y1'!H31 -> 0 | H4: ='7A Sales Y1'!I31 -> 0 | I4: ='7A Sales Y1'!J31 -> 0 | J4: ='7A Sales Y1'!K31 -> 0 | K4: ='7A Sales Y1'!L31 -> 0 | L4: ='7A Sales Y1'!M31 -> 0 | M4: ='7A Sales Y1'!N31 -> 0 | N4: ='7A Sales Y1'!O31 -> 0 | O4: =SUM(C4:N4) -> 0 | Q4: ='7A Sales Y1'!P25 -> 0
B5: Loans | C5: =IF('5 Source of Funds'!$L$9=0,'5 Source of Funds'!$D$11,0)+IF('5 Source of Funds'!$L$24=0,'5 Source of Funds'!$D$27,0) -> 0 | D5: =IF('5 Source of Funds'!$L$9=1,'5 Source of Funds'!$D$11,0)+IF('5 Source of Funds'!$L$24=1,'5 Source of Funds'!$D$27,0) -> 0 | E5: =IF('5 Source of Funds'!$L$9=2,'5 Source of Funds'!$D$11,0)+IF('5 Source of Funds'!$L$24=2,'5 Source of Funds'!$D$27,0) -> 0 | F5: =IF('5 Source of Funds'!$L$9=3,'5 Source of Funds'!$D$11,0)+IF('5 Source of Funds'!$L$24=3,'5 Source of Funds'!$D$27,0) -> 0 | G5: =IF('5 Source of Funds'!$L$9=4,'5 Source of Funds'!$D$11,0)+IF('5 Source of Funds'!$L$24=4,'5 Source of Funds'!$D$27,0) -> 0 | H5: =IF('5 Source of Funds'!$L$9=5,'5 Source of Funds'!$D$11,0)+IF('5 Source of Funds'!$L$24=5,'5 Source of Funds'!$D$27,0) -> 0 | I5: =IF('5 Source of Funds'!$L$9=6,'5 Source of Funds'!$D$11,0)+IF('5 Source of Funds'!$L$24=6,'5 Source of Funds'!$D$27,0) -> 0 | J5: =IF('5 Source of Funds'!$L$9=7,'5 Source of Funds'!$D$11,0)+IF('5 Source of Funds'!$L$24=7,'5 Source of Funds'!$D$27,0) -> 0 | K5: =IF('5 Source of Funds'!$L$9=8,'5 Source of Funds'!$D$11,0)+IF('5 Source of Funds'!$L$24=8,'5 Source of Funds'!$D$27,0) -> 0 | L5: =IF('5 Source of Funds'!$L$9=9,'5 Source of Funds'!$D$11,0)+IF('5 Source of Funds'!$L$24=9,'5 Source of Funds'!$D$27,0) -> 0 | M5: =IF('5 Source of Funds'!$L$9=10,'5 Source of Funds'!$D$11,0)+IF('5 Source of Funds'!$L$24=10,'5 Source of Funds'!$D$27,0) -> 0 | N5: =IF('5 Source of Funds'!$L$9=11,'5 Source of Funds'!$D$11,0)+IF('5 Source of Funds'!$L$24=11,'5 Source of Funds'!$D$27,0) -> 0 | O5: =SUM(C5:N5) -> 0
B6: Loan - Interest only (seek advice)
B7: Capital input | C7: ='3 Assets & Liabilities'!C38 -> 0 | O7: =SUM(C7:N7) -> 0 | Q7: Receipts other than sales need to be linked to the profit and loss
O8: =SUM(C8:N8) -> 0
O9: =SUM(C9:N9) -> 0
B10: Total Cash Receipts | C10: =SUM(C4:C9)-C6 -> 0 | D10: =SUM(D4:D9)-D6 -> 0 | E10: 0 | F10: 0 | G10: 0 | H10: 0 | I10: 0 | J10: 0 | K10: 0 | L10: 0 | M10: 0 | N10: 0 | O10: =SUM(O4:O9) -> 0
B11: GST Collected | C11: =C4*GSTPart -> 0 | D11: =D4*GSTPart -> 0 | E11: 0 | F11: 0 | G11: 0 | H11: 0 | I11: 0 | J11: 0 | K11: 0 | L11: 0 | M11: 0 | N11: 0 | O11: =SUM(C11:N11) -> 0
B13: Variable Cash-out
B14: Variable cash-out from Sales sheet | C14: =+'7A Sales Y1'!D54 -> 0 | D14: =+'7A Sales Y1'!E54 -> 0 | E14: =+'7A Sales Y1'!F54 -> 0 | F14: =+'7A Sales Y1'!G54 -> 0 | G14: =+'7A Sales Y1'!H54 -> 0 | H14: =+'7A Sales Y1'!I54 -> 0 | I14: =+'7A Sales Y1'!J54 -> 0 | J14: =+'7A Sales Y1'!K54 -> 0 | K14: =+'7A Sales Y1'!L54 -> 0 | L14: =+'7A Sales Y1'!M54 -> 0 | M14: =+'7A Sales Y1'!N54 -> 0 | N14: =+'7A Sales Y1'!O54 -> 0 | O14: =SUM(C14:N14) -> 0
B15: GST Paid on Variable Cash-out | C15: =C14*GSTPart -> 0 | D15: =D14*GSTPart -> 0 | E15: 0 | F15: 0 | G15: 0 | H15: 0 | I15: 0 | J15: 0 | K15: 0 | L15: 0 | M15: 0 | N15: 0 | O15: =SUM(C15:N15) -> 0
P16: Assets / Liabilities % Split
B17: Overhead cash-out (inc GST)
B18: Accountant, Bookkeeper, Advisors | O18: =SUM(C18:N18) -> 0
B19: Advertising & Promotion | C19: ='1B MAPb Y1'!C53 -> 0 | D19: ='1B MAPb Y1'!D53 -> 0 | E19: ='1B MAPb Y1'!E53 -> 0 | F19: ='1B MAPb Y1'!F53 -> 0 | G19: ='1B MAPb Y1'!G53 -> 0 | H19: ='1B MAPb Y1'!H53 -> 0 | I19: ='1B MAPb Y1'!I53 -> 0 | J19: ='1B MAPb Y1'!J53 -> 0 | K19: ='1B MAPb Y1'!K53 -> 0 | L19: ='1B MAPb Y1'!L53 -> 0 | M19: ='1B MAPb Y1'!M53 -> 0 | N19: ='1B MAPb Y1'!N53 -> 0 | O19: =SUM(C19:N19) -> 0 | P19: Household | Q19: Business
B20: Car Insurance | O20: 0 | P20: =100%-Q20 -> 1 | Q20: =IF(ISERROR(O20/SUM('6A HH Bud Y1'!N25+'8A Cash flow Y1'!O20)),0,O20/SUM('6A HH Bud Y1'!N25+'8A Cash flow Y1'!O20)) -> 0 | R20: =IF(P20+Q20<>100%,"ERROR","OK") -> OK
B21: Car Registration | O21: 0 | P21: =100%-Q21 -> 1 | Q21: =IF(ISERROR(O21/SUM('6A HH Bud Y1'!N26+'8A Cash flow Y1'!O21)),0,O21/SUM('6A HH Bud Y1'!N26+'8A Cash flow Y1'!O21)) -> 0 | R21: =IF(P21+Q21<>100%,"ERROR","OK") -> OK
B22: Petrol & Servicing | O22: =ROUND(SUM(C22:N22),0) -> 0 | P22: =100%-Q22 -> 1 | Q22: =IF(ISERROR(O22/SUM('6A HH Bud Y1'!N27+'8A Cash flow Y1'!O22)),0,O22/SUM('6A HH Bud Y1'!N27+'8A Cash flow Y1'!O22)) -> 0 | R22: =IF(P22+Q22<>100%,"ERROR","OK") -> OK
B23: Heating & Lighting | O23: 0
B24: Fees & Licences | O24: 0
B25: Post, Printing,Stationery | O25: 0
B26: Telephone | O26: 0
B27: Internet / Web Hosting | O27: 0
B28: Mobile | O28: 0
B29: Rates | O29: 0
B30: Rent | O30: 0
B31: Taxi / Hire Car | O31: 0
B32: Spare | O32: 0
B33: Spare | O33: 0
B34: Bank Charges | O34: 0 | P34: GST FREE
B35: Gross Wages (of employees) | O35: 0 | P35: GST FREE
B36: Super Expense (of employees) | C36: =IF(C35<450,"",SUM(C35*0.09)) ->  | O36: =SUM(C36:N36) -> 0 | P36: GST FREE
B37: Drawings (Sole Trader only) | C37: =+'6A HH Bud Y1'!B9 -> 0 | D37: =+'6A HH Bud Y1'!C9 -> 0 | E37: =+'6A HH Bud Y1'!D9 -> 0 | F37: =+'6A HH Bud Y1'!E9 -> 0 | G37: =+'6A HH Bud Y1'!F9 -> 0 | H37: =+'6A HH Bud Y1'!G9 -> 0 | I37: =+'6A HH Bud Y1'!H9 -> 0 | J37: =+'6A HH Bud Y1'!I9 -> 0 | K37: =+'6A HH Bud Y1'!J9 -> 0 | L37: =+'6A HH Bud Y1'!K9 -> 0 | M37: =+'6A HH Bud Y1'!L9 -> 0 | N37: =+'6A HH Bud Y1'!M9 -> 0 | O37: 0 | P37: GST FREE
B38: Owner's net salary (companies only) | C38: =+'6A HH Bud Y1'!B10 -> 0 | D38: =+'6A HH Bud Y1'!C10 -> 0 | E38: =+'6A HH Bud Y1'!D10 -> 0 | F38: =+'6A HH Bud Y1'!E10 -> 0 | G38: =+'6A HH Bud Y1'!F10 -> 0 | H38: =+'6A HH Bud Y1'!G10 -> 0 | I38: =+'6A HH Bud Y1'!H10 -> 0 | J38: =+'6A HH Bud Y1'!I10 -> 0 | K38: =+'6A HH Bud Y1'!J10 -> 0 | L38: =+'6A HH Bud Y1'!K10 -> 0 | M38: =+'6A HH Bud Y1'!L10 -> 0 | N38: =+'6A HH Bud Y1'!M10 -> 0 | O38: 0 | P38: GST FREE
B39: Tax expense of owner's salary | C39: =IF(C38<TaxFreeThreshold/12,0,IF(C38<Options!$I$23,Options!$C$22*(C38-Options!$I$22),IF(C38<Options!$I$24,Options!$J$23+(C38-Options!$I$23)*Options!$C$23,IF(C38<Options!$I$25,Options!$J$24+(C38-Options!$I$24)*Options!$C$24,Options!$J$25+(C38-Options!$I$25)*Options!$C$25)))) -> 0 | D39: =IF(D38<Options!$I$22,0,IF(D38<Options!$I$23,Options!$C$22*(D38-Options!$I$22),IF(D38<Options!$I$24,Options!$J$23+(D38-Options!$I$23)*Options!$C$23,IF(D38<Options!$I$25,Options!$J$24+(D38-Options!$I$24)*Options!$C$24,Options!$J$25+(D38-Options!$I$25)*Options!$C$25)))) -> 0 | E39: =IF(E38<Options!$I$22,0,IF(E38<Options!$I$23,Options!$C$22*(E38-Options!$I$22),IF(E38<Options!$I$24,Options!$J$23+(E38-Options!$I$23)*Options!$C$23,IF(E38<Options!$I$25,Options!$J$24+(E38-Options!$I$24)*Options!$C$24,Options!$J$25+(E38-Options!$I$25)*Options!$C$25)))) -> 0 | F39: =IF(F38<Options!$I$22,0,IF(F38<Options!$I$23,Options!$C$22*(F38-Options!$I$22),IF(F38<Options!$I$24,Options!$J$23+(F38-Options!$I$23)*Options!$C$23,IF(F38<Options!$I$25,Options!$J$24+(F38-Options!$I$24)*Options!$C$24,Options!$J$25+(F38-Options!$I$25)*Options!$C$25)))) -> 0 | G39: =IF(G38<Options!$I$22,0,IF(G38<Options!$I$23,Options!$C$22*(G38-Options!$I$22),IF(G38<Options!$I$24,Options!$J$23+(G38-Options!$I$23)*Options!$C$23,IF(G38<Options!$I$25,Options!$J$24+(G38-Options!$I$24)*Options!$C$24,Options!$J$25+(G38-Options!$I$25)*Options!$C$25)))) -> 0 | H39: =IF(H38<Options!$I$22,0,IF(H38<Options!$I$23,Options!$C$22*(H38-Options!$I$22),IF(H38<Options!$I$24,Options!$J$23+(H38-Options!$I$23)*Options!$C$23,IF(H38<Options!$I$25,Options!$J$24+(H38-Options!$I$24)*Options!$C$24,Options!$J$25+(H38-Options!$I$25)*Options!$C$25)))) -> 0 | I39: =IF(I38<Options!$I$22,0,IF(I38<Options!$I$23,Options!$C$22*(I38-Options!$I$22),IF(I38<Options!$I$24,Options!$J$23+(I38-Options!$I$23)*Options!$C$23,IF(I38<Options!$I$25,Options!$J$24+(I38-Options!$I$24)*Options!$C$24,Options!$J$25+(I38-Options!$I$25)*Options!$C$25)))) -> 0 | J39: =IF(J38<Options!$I$22,0,IF(J38<Options!$I$23,Options!$C$22*(J38-Options!$I$22),IF(J38<Options!$I$24,Options!$J$23+(J38-Options!$I$23)*Options!$C$23,IF(J38<Options!$I$25,Options!$J$24+(J38-Options!$I$24)*Options!$C$24,Options!$J$25+(J38-Options!$I$25)*Options!$C$25)))) -> 0 | K39: =IF(K38<Options!$I$22,0,IF(K38<Options!$I$23,Options!$C$22*(K38-Options!$I$22),IF(K38<Options!$I$24,Options!$J$23+(K38-Options!$I$23)*Options!$C$23,IF(K38<Options!$I$25,Options!$J$24+(K38-Options!$I$24)*Options!$C$24,Options!$J$25+(K38-Options!$I$25)*Options!$C$25)))) -> 0 | L39: =IF(L38<Options!$I$22,0,IF(L38<Options!$I$23,Options!$C$22*(L38-Options!$I$22),IF(L38<Options!$I$24,Options!$J$23+(L38-Options!$I$23)*Options!$C$23,IF(L38<Options!$I$25,Options!$J$24+(L38-Options!$I$24)*Options!$C$24,Options!$J$25+(L38-Options!$I$25)*Options!$C$25)))) -> 0 | M39: =IF(M38<Options!$I$22,0,IF(M38<Options!$I$23,Options!$C$22*(M38-Options!$I$22),IF(M38<Options!$I$24,Options!$J$23+(M38-Options!$I$23)*Options!$C$23,IF(M38<Options!$I$25,Options!$J$24+(M38-Options!$I$24)*Options!$C$24,Options!$J$25+(M38-Options!$I$25)*Options!$C$25)))) -> 0 | N39: =IF(N38<Options!$I$22,0,IF(N38<Options!$I$23,Options!$C$22*(N38-Options!$I$22),IF(N38<Options!$I$24,Options!$J$23+(N38-Options!$I$23)*Options!$C$23,IF(N38<Options!$I$25,Options!$J$24+(N38-Options!$I$24)*Options!$C$24,Options!$J$25+(N38-Options!$I$25)*Options!$C$25)))) -> 0 | O39: 0 | P39: GST FREE
B40: Super expense, owner's salary | C40: =9%*(C38+C39) -> 0 | D40: =9%*(D38+D39) -> 0 | E40: 0 | F40: 0 | G40: 0 | H40: 0 | I40: 0 | J40: 0 | K40: 0 | L40: 0 | M40: 0 | N40: 0 | O40: 0 | P40: GST FREE
B41: Total Overhead Expenses | C41: =SUM(C18:C40) -> 0 | D41: =SUM(D18:D40) -> 0 | E41: 0 | F41: 0 | G41: 0 | H41: 0 | I41: 0 | J41: 0 | K41: 0 | L41: 0 | M41: 0 | N41: 0 | O41: =SUM(O18:O40) -> 0 | P41: Loan Amt owing at beginning of year | Q41: Interest paid this year | R41: Principal Paid this year | S41: Balance of principal
B42: Other expenses
B43: Formal Business Loan Pmts | C43: =IF('5 Source of Funds'!$L$9<=0,'5 Source of Funds'!$K$15,0) -> 0 | D43: =IF('5 Source of Funds'!$L$9<=1,'5 Source of Funds'!$K$15,0) -> 0 | E43: =IF('5 Source of Funds'!$L$9<=2,'5 Source of Funds'!$K$15,0) -> 0 | F43: =IF('5 Source of Funds'!$L$9<=3,'5 Source of Funds'!$K$15,0) -> 0 | G43: =IF('5 Source of Funds'!$L$9<=4,'5 Source of Funds'!$K$15,0) -> 0 | H43: =IF('5 Source of Funds'!$L$9<=5,'5 Source of Funds'!$K$15,0) -> 0 | I43: =IF('5 Source of Funds'!$L$9<=6,'5 Source of Funds'!$K$15,0) -> 0 | J43: =IF('5 Source of Funds'!$L$9<=7,'5 Source of Funds'!$K$15,0) -> 0 | K43: =IF('5 Source of Funds'!$L$9<=8,'5 Source of Funds'!$K$15,0) -> 0 | L43: =IF('5 Source of Funds'!$L$9<=9,'5 Source of Funds'!$K$15,0) -> 0 | M43: =IF('5 Source of Funds'!$L$9<=10,'5 Source of Funds'!$K$15,0) -> 0 | N43: =IF('5 Source of Funds'!$L$9<=11,'5 Source of Funds'!$K$15,0) -> 0 | O43: =SUM(C43:N43) -> 0 | P43: ='5 Source of Funds'!K11 -> 0 | Q43: =IF(ISERROR('5 Source of Funds'!K17/'5 Source of Funds'!K12),0,'5 Source of Funds'!K17/'5 Source of Funds'!K12) -> 0 | R43: =O43-Q43 -> 0 | S43: =P43-R43 -> 0
B44: Non Formal Loan Pmts | C44: =IF('5 Source of Funds'!$L$24<=0,'5 Source of Funds'!$K$31,0) -> 0 | D44: =IF('5 Source of Funds'!$L$24<=0,'5 Source of Funds'!$K$31,0) -> 0 | E44: =IF('5 Source of Funds'!$L$24<=0,'5 Source of Funds'!$K$31,0) -> 0 | F44: =IF('5 Source of Funds'!$L$24<=0,'5 Source of Funds'!$K$31,0) -> 0 | G44: =IF('5 Source of Funds'!$L$24<=0,'5 Source of Funds'!$K$31,0) -> 0 | H44: =IF('5 Source of Funds'!$L$24<=0,'5 Source of Funds'!$K$31,0) -> 0 | I44: =IF('5 Source of Funds'!$L$24<=0,'5 Source of Funds'!$K$31,0) -> 0 | J44: =IF('5 Source of Funds'!$L$24<=0,'5 Source of Funds'!$K$31,0) -> 0 | K44: =IF('5 Source of Funds'!$L$24<=0,'5 Source of Funds'!$K$31,0) -> 0 | L44: =IF('5 Source of Funds'!$L$24<=0,'5 Source of Funds'!$K$31,0) -> 0 | M44: =IF('5 Source of Funds'!$L$24<=0,'5 Source of Funds'!$K$31,0) -> 0 | N44: =IF('5 Source of Funds'!$L$24<=0,'5 Source of Funds'!$K$31,0) -> 0 | O44: 0 | P44: ='5 Source of Funds'!K27 -> 0 | Q44: =IF(ISERROR('5 Source of Funds'!K33/'5 Source of Funds'!K28),0,'5 Source of Funds'!K33/'5 Source of Funds'!K28) -> 0 | R44: =O44-Q44 -> 0 | S44: =P44-R44 -> 0
B45: Insurance (Prof Indemnity) | O45: 0 | P45: =IF(Q43<0,"Bus pmts exceed loan","") -> 
B46: Insurance Public Liability | O46: 0 | P46: =IF(Q44<0,"Non formal pmts exceed loan","") -> 
B47: Insurance (Specify *2) | O47: 0
B48: Spare1 | O48: 0
B49: Spare2 | O49: 0
B50: Spare3 | O50: 0
B51: Spare4 | O51: =SUM(C51:N51) -> 0
B52: Total Other Expenses | C52: =SUM(C43:C51) -> 0 | D52: =SUM(D43:D51) -> 0 | E52: 0 | F52: 0 | G52: 0 | H52: 0 | I52: 0 | J52: 0 | K52: 0 | L52: 0 | M52: 0 | N52: 0 | O52: 0
B53: Total Operational Cash-outs | C53: =C14+C41+C52 -> 0 | D53: 0 | E53: 0 | F53: 0 | G53: 0 | H53: 0 | I53: 0 | J53: 0 | K53: 0 | L53: 0 | M53: 0 | N53: 0 | O53: 0 | P53: =IF(O53>O10,"you need more income","") -> 
B54: GST Booked on Total Expenses | C54: =C15+((SUM(C18:C33)+SUM(C45:C51))*GSTPart) -> 0 | D54: 0 | E54: 0 | F54: 0 | G54: 0 | H54: 0 | I54: 0 | J54: 0 | K54: 0 | L54: 0 | M54: 0 | N54: 0 | O54: 0
B55: GST Booked on Assets Purchased | C55: =SUMIF('4 Depr&Assets'!$H$22:$H$26,0,'4 Depr&Assets'!$E$22:$E$26) -> 0 | D55: =SUMIF('4 Depr&Assets'!$H$22:$H$26,1,'4 Depr&Assets'!$E$22:$E$26) -> 0 | E55: =SUMIF('4 Depr&Assets'!$H$22:$H$26,2,'4 Depr&Assets'!$E$22:$E$26) -> 0 | F55: =SUMIF('4 Depr&Assets'!$H$22:$H$26,3,'4 Depr&Assets'!$E$22:$E$26) -> 0 | G55: =SUMIF('4 Depr&Assets'!$H$22:$H$26,4,'4 Depr&Assets'!$E$22:$E$26) -> 0 | H55: =SUMIF('4 Depr&Assets'!$H$22:$H$26,5,'4 Depr&Assets'!$E$22:$E$26) -> 0 | I55: =SUMIF('4 Depr&Assets'!$H$22:$H$26,6,'4 Depr&Assets'!$E$22:$E$26) -> 0 | J55: =SUMIF('4 Depr&Assets'!$H$22:$H$26,7,'4 Depr&Assets'!$E$22:$E$26) -> 0 | K55: =SUMIF('4 Depr&Assets'!$H$22:$H$26,8,'4 Depr&Assets'!$E$22:$E$26) -> 0 | L55: =SUMIF('4 Depr&Assets'!$H$22:$H$26,9,'4 Depr&Assets'!$E$22:$E$26) -> 0 | M55: =SUMIF('4 Depr&Assets'!$H$22:$H$26,10,'4 Depr&Assets'!$E$22:$E$26) -> 0 | N55: =SUMIF('4 Depr&Assets'!$H$22:$H$26,11,'4 Depr&Assets'!$E$22:$E$26) -> 0 | O55: 0
B56: GST Booked on stock build | C56: =C79 -> 0 | D56: =D79 -> 0 | E56: 0 | F56: 0 | G56: 0 | H56: 0 | I56: 0 | J56: 0 | K56: 0 | L56: 0 | M56: 0 | N56: 0 | O56: 0
B57: Quarterly GST Remitted to ATO | C57: =C73 -> 0 | D57: =D73 -> 0 | E57: 0 | F57: 0 | G57: 0 | H57: 0 | I57: 0 | J57: 0 | K57: 0 | L57: 0 | M57: 0 | N57: 0 | O57: 0
B58: Assets Bought, Bonds (from tab 4 Deprec) | C58: =SUMIF('4 Depr&Assets'!$H$22:$H$26,0,'4 Depr&Assets'!$D$22:$D$26)+N("the first month is numbered zero")+C55 -> 0 | D58: =SUMIF('4 Depr&Assets'!$H$22:$H$26,1,'4 Depr&Assets'!$D$22:$D$26)+N("the first month is numbered zero")+D55 -> 0 | E58: =SUMIF('4 Depr&Assets'!$H$22:$H$26,2,'4 Depr&Assets'!$D$22:$D$26)+N("the first month is numbered zero")+E55 -> 0 | F58: =SUMIF('4 Depr&Assets'!$H$22:$H$26,3,'4 Depr&Assets'!$D$22:$D$26)+N("the first month is numbered zero")+F55 -> 0 | G58: =SUMIF('4 Depr&Assets'!$H$22:$H$26,4,'4 Depr&Assets'!$D$22:$D$26)+N("the first month is numbered zero")+G55 -> 0 | H58: =SUMIF('4 Depr&Assets'!$H$22:$H$26,5,'4 Depr&Assets'!$D$22:$D$26)+N("the first month is numbered zero")+H55 -> 0 | I58: =SUMIF('4 Depr&Assets'!$H$22:$H$26,6,'4 Depr&Assets'!$D$22:$D$26)+N("the first month is numbered zero")+I55 -> 0 | J58: =SUMIF('4 Depr&Assets'!$H$22:$H$26,7,'4 Depr&Assets'!$D$22:$D$26)+N("the first month is numbered zero")+J55 -> 0 | K58: =SUMIF('4 Depr&Assets'!$H$22:$H$26,8,'4 Depr&Assets'!$D$22:$D$26)+N("the first month is numbered zero")+K55 -> 0 | L58: =SUMIF('4 Depr&Assets'!$H$22:$H$26,9,'4 Depr&Assets'!$D$22:$D$26)+N("the first month is numbered zero")+L55 -> 0 | M58: =SUMIF('4 Depr&Assets'!$H$22:$H$26,10,'4 Depr&Assets'!$D$22:$D$26)+N("the first month is numbered zero")+M55 -> 0 | N58: =SUMIF('4 Depr&Assets'!$H$22:$H$26,11,'4 Depr&Assets'!$D$22:$D$26)+N("the first month is numbered zero")+N55 -> 0 | O58: =SUM(C58:N58) -> 0
B59: Cash effect of inventory | C59: =C77+C56 -> 0 | D59: =D77+D56 -> 0 | E59: =E77+E56 -> 0 | F59: 0 | G59: 0 | H59: 0 | I59: 0 | J59: 0 | K59: 0 | L59: 0 | M59: 0 | N59: 0 | O59: =SUM(C59:N59) -> 0
B60: Provision/payment - Income Tax | O60: 0
B61: Total Cash Out | C61: =C53+C57+C58+C59+C60 -> 0 | D61: =D53+D57+D58+D59+D60 -> 0 | E61: 0 | F61: 0 | G61: 0 | H61: 0 | I61: 0 | J61: 0 | K61: 0 | L61: 0 | M61: 0 | N61: 0 | O61: 0
B63: Net Cash In/Out for Mnth | C63: =C10-C53-C58-C59-C60-C57 -> 0 | D63: 0 | E63: 0 | F63: 0 | G63: 0 | H63: 0 | I63: 0 | J63: 0 | K63: 0 | L63: 0 | M63: 0 | N63: 0 | O63: =SUM(C63:N63) -> 0
B65: Opening Balance | D65: =C66 -> 0 | E65: =D66 -> 0 | F65: 0 | G65: 0 | H65: 0 | I65: 0 | J65: 0 | K65: 0 | L65: 0 | M65: 0 | N65: 0 | O65: =+C65 -> 0
B66: Running Balance | C66: =C65+C63 -> 0 | D66: =D65+D63 -> 0 | E66: 0 | F66: 0 | G66: 0 | H66: 0 | I66: 0 | J66: 0 | K66: 0 | L66: 0 | M66: 0 | N66: 0 | O66: 0
B67: Loan - Interest only | C67: =C6 -> 0
B69: Accurate GST payment workings | O69: TOTALS
B70: Financial Year Quarter | C70: =INDEX({3,3,3,4,4,4,1,1,1,2,2,2},1,MONTH(C$3)) -> 1 | D70: =INDEX({3,3,3,4,4,4,1,1,1,2,2,2},1,MONTH(D3)) -> 1 | E70: =INDEX({3,3,3,4,4,4,1,1,1,2,2,2},1,MONTH(E3)) -> 1 | F70: =INDEX({3,3,3,4,4,4,1,1,1,2,2,2},1,MONTH(F3)) -> 2 | G70: =INDEX({3,3,3,4,4,4,1,1,1,2,2,2},1,MONTH(G3)) -> 2 | H70: =INDEX({3,3,3,4,4,4,1,1,1,2,2,2},1,MONTH(H3)) -> 2 | I70: =INDEX({3,3,3,4,4,4,1,1,1,2,2,2},1,MONTH(I3)) -> 3 | J70: =INDEX({3,3,3,4,4,4,1,1,1,2,2,2},1,MONTH(J3)) -> 3 | K70: =INDEX({3,3,3,4,4,4,1,1,1,2,2,2},1,MONTH(K3)) -> 3 | L70: =INDEX({3,3,3,4,4,4,1,1,1,2,2,2},1,MONTH(L3)) -> 4 | M70: =INDEX({3,3,3,4,4,4,1,1,1,2,2,2},1,MONTH(M3)) -> 4 | N70: =INDEX({3,3,3,4,4,4,1,1,1,2,2,2},1,MONTH(N3)) -> 4
B71: Pay GST Quarter | C71: =INDEX({0,2,0,3,0,0,4,0,0,1,0,0},1,MONTH(C$3)) -> 4 | D71: =INDEX({0,2,0,3,0,0,4,0,0,1,0,0},1,MONTH(D$3)) -> 0 | E71: =INDEX({0,2,0,3,0,0,4,0,0,1,0,0},1,MONTH(E$3)) -> 0 | F71: =INDEX({0,2,0,3,0,0,4,0,0,1,0,0},1,MONTH(F$3)) -> 1 | G71: =INDEX({0,2,0,3,0,0,4,0,0,1,0,0},1,MONTH(G$3)) -> 0 | H71: =INDEX({0,2,0,3,0,0,4,0,0,1,0,0},1,MONTH(H$3)) -> 0 | I71: =INDEX({0,2,0,3,0,0,4,0,0,1,0,0},1,MONTH(I$3)) -> 0 | J71: =INDEX({0,2,0,3,0,0,4,0,0,1,0,0},1,MONTH(J$3)) -> 2 | K71: =INDEX({0,2,0,3,0,0,4,0,0,1,0,0},1,MONTH(K$3)) -> 0 | L71: =INDEX({0,2,0,3,0,0,4,0,0,1,0,0},1,MONTH(L$3)) -> 3 | M71: =INDEX({0,2,0,3,0,0,4,0,0,1,0,0},1,MONTH(M$3)) -> 0 | N71: =INDEX({0,2,0,3,0,0,4,0,0,1,0,0},1,MONTH(N$3)) -> 0
B72: GST Owed this month | C72: =C11-SUM(C54:C56) -> 0 | D72: 0 | E72: 0 | F72: 0 | G72: 0 | H72: 0 | I72: 0 | J72: 0 | K72: 0 | L72: 0 | M72: 0 | N72: 0 | O72: =SUM(C72:N72) -> 0
B73: GST paid to ATO | C73: =SUMIF($C70:C70,C71,$C72:C72) -> 0 | D73: =SUMIF($C70:D70,D71,$C72:D72) -> 0 | E73: =SUMIF($C70:E70,E71,$C72:E72) -> 0 | F73: =SUMIF($C70:F70,F71,$C72:F72) -> 0 | G73: =SUMIF($C70:G70,G71,$C72:G72) -> 0 | H73: =SUMIF($C70:H70,H71,$C72:H72) -> 0 | I73: =SUMIF($C70:I70,I71,$C72:I72) -> 0 | J73: =SUMIF($C70:J70,J71,$C72:J72) -> 0 | K73: =SUMIF($C70:K70,K71,$C72:K72) -> 0 | L73: =SUMIF($C70:L70,L71,$C72:L72) -> 0 | M73: =SUMIF($C70:M70,M71,$C72:M72) -> 0 | N73: =SUMIF($C70:N70,N71,$C72:N72) -> 0 | O73: =SUM(C73:N73) -> 0
B75: Inventory Levels: Stock building if needed
B76: Opening stock (from tab 3) | C76: =OpeningStock -> 0 | D76: =C78 -> 0 | E76: =D78 -> 0 | F76: 0 | G76: 0 | H76: 0 | I76: 0 | J76: 0 | K76: 0 | L76: 0 | M76: 0 | N76: 0
B77: Change in stock (excluding GST)
B78: Closing stock | C78: =C76+C77 -> 0 | D78: =D76+D77 -> 0 | E78: 0 | F78: 0 | G78: 0 | H78: 0 | I78: 0 | J78: 0 | K78: 0 | L78: 0 | M78: 0 | N78: 0
B79: GST paid due to change in stock | C79: =C77*GSTRate -> 0 | D79: 0 | E79: 0 | F79: 0 | G79: 0 | H79: 0 | I79: 0 | J79: 0 | K79: 0 | L79: 0 | M79: 0 | N79: 0
B81: NEIS Reporting Month | C81: =INDEX({0,0,1,0,0,1,0,0,1,0,0,1},1,MONTH(C$3)) -> 0 | D81: =INDEX({0,0,1,0,0,1,0,0,1,0,0,1},1,MONTH(D$3)) -> 0 | E81: =INDEX({0,0,1,0,0,1,0,0,1,0,0,1},1,MONTH(E$3)) -> 1 | F81: =INDEX({0,0,1,0,0,1,0,0,1,0,0,1},1,MONTH(F$3)) -> 0 | G81: =INDEX({0,0,1,0,0,1,0,0,1,0,0,1},1,MONTH(G$3)) -> 0 | H81: =INDEX({0,0,1,0,0,1,0,0,1,0,0,1},1,MONTH(H$3)) -> 1 | I81: =INDEX({0,0,1,0,0,1,0,0,1,0,0,1},1,MONTH(I$3)) -> 0 | J81: =INDEX({0,0,1,0,0,1,0,0,1,0,0,1},1,MONTH(J$3)) -> 0 | K81: =INDEX({0,0,1,0,0,1,0,0,1,0,0,1},1,MONTH(K$3)) -> 1 | L81: =INDEX({0,0,1,0,0,1,0,0,1,0,0,1},1,MONTH(L$3)) -> 0 | M81: =INDEX({0,0,1,0,0,1,0,0,1,0,0,1},1,MONTH(M$3)) -> 0 | N81: =INDEX({0,0,1,0,0,1,0,0,1,0,0,1},1,MONTH(N$3)) -> 1

Sheet 9A Financials Y1
A1: APPENDIX 9A | K1: APPENDIX 10 A
A2: =+'8A Cash flow Y1'!F2 -> Test Business ABN 123456789 | K2: =+A2 -> Test Business ABN 123456789
A3: Anticipated Profit and Loss Statement for Year 1 | K3: Balance Sheet for Year 1
N4: Opening Balance | P4: Closing Balance
A5: Income | K5: Current Assets
A6: Sales | E6: ='7A Sales Y1'!P25 -> 0 | K6: Cash (Money in Bank) | N6: ='8A Cash flow Y1'!C65 -> 0 | P6: =+'8A Cash flow Y1'!O66 -> 0
A7: Less GST payable | E7: =E6*GSTPart -> 0 | F7: =E6-E7 -> 0 | K7: Debtors | N7: ='3 Assets & Liabilities'!C39 -> 0 | P7: ='7A Sales Y1'!P25-'7A Sales Y1'!P31+N7 -> 0
F8: =F7 -> 0 | K8: Trading Stock | N8: ='8A Cash flow Y1'!C76 -> 0 | P8: ='8A Cash flow Y1'!N78 -> 0
H9: % of Sales | M9: Total Current Assets | N9: =SUM(N6:N8) -> 0 | R9: =SUM(P6:P8) -> 0
A10: Less Variable Costs | K10: Non-Current Assets
K11: =+'4 Depr&Assets'!A9 -> Office Furniture / Fittings (brought into) | N11: =+'4 Depr&Assets'!B9 -> 0
A12: =+'8A Cash flow Y1'!B14 -> Variable cash-out from Sales sheet | D12: ='8A Cash flow Y1'!O14 -> 0 | K12: Less: Accum Depreciation | P12: =+'4 Depr&Assets'!P9 -> 0 | Q12: =N11-P12 -> 0
A13: Less GST recoverable | D13: ='8A Cash flow Y1'!O15 -> 0 | K13: =+'4 Depr&Assets'!A10 -> Tools of trade (brought into) | N13: =+'4 Depr&Assets'!B10 -> 0
K14: Less: Accum Depreciation | P14: =+'4 Depr&Assets'!P10 -> 0 | Q14: =N13-P14 -> 0
D15: =D12-D13 -> 0 | K15: ='4 Depr&Assets'!A11 -> Computer Equipment (brought into) | N15: =+'4 Depr&Assets'!B11 -> 0
A16: Total Variable Costs | F16: =D15 -> 0 | H16: =IF(ISERROR(F16/$F$8),0,F16/$F$8) -> 0 | K16: Less: Accum Depreciation | P16: =+'4 Depr&Assets'!P11 -> 0 | Q16: =N15-P16 -> 0
K17: ='4 Depr&Assets'!A12 -> Motor Vehicle Brought Into (Business Portion) | N17: =+'4 Depr&Assets'!B12 -> 0
K18: Less: Accum Depreciation | P18: =+'4 Depr&Assets'!P12 -> 0 | Q18: =N17-P18 -> 0
A19: Contribution Margin | F19: =F8-F16 -> 0 | H19: =IF(ISERROR(F19/$F$8),0,F19/$F$8) -> 0 | K19: ='4 Depr&Assets'!A13 -> new computer | N19: =+'4 Depr&Assets'!B13 -> 0
K20: Less: Accum Depreciation | P20: =+'4 Depr&Assets'!P13 -> 0 | Q20: =N19-P20 -> 0
A21: Less Expenses | K21: ='4 Depr&Assets'!A14 -> Spare1 | N21: =+'4 Depr&Assets'!B14 -> 0
B22: =+'8A Cash flow Y1'!B18 -> Accountant, Bookkeeper, Advisors | E22: =+'8A Cash flow Y1'!O18*GSTInclusiveToExclusive -> 0 | H22: =IF(ISERROR(E22/$F$8),0,E22/$F$8) -> 0 | K22: Less: Accum Depreciation | P22: =+'4 Depr&Assets'!P14 -> 0 | Q22: =N21-P22 -> 0
B23: =+'8A Cash flow Y1'!B19 -> Advertising & Promotion | E23: =+'8A Cash flow Y1'!O19*GSTInclusiveToExclusive -> 0 | H23: =IF(ISERROR(E23/$F$8),0,E23/$F$8) -> 0 | K23: ='4 Depr&Assets'!A15 -> Spare2 | N23: =+'4 Depr&Assets'!B15 -> 0
B24: Car Insurance | E24: =+'8A Cash flow Y1'!O20*GSTInclusiveToExclusive -> 0 | H24: 0 | K24: Less: Accum Depreciation | P24: =+'4 Depr&Assets'!P15 -> 0 | Q24: =N23-P24 -> 0
B25: Car registration | E25: =+'8A Cash flow Y1'!O21*GSTInclusiveToExclusive -> 0 | H25: 0 | K25: ='4 Depr&Assets'!A16 -> spare 3 | N25: =+'4 Depr&Assets'!B16 -> 0
B26: Petrol & Servicing | E26: =+'8A Cash flow Y1'!O22*GSTInclusiveToExclusive -> 0 | H26: 0 | K26: Less: Accum Depreciation | P26: =+'4 Depr&Assets'!P16 -> 0 | Q26: =N25-P26 -> 0
B27: Heating & Lighting | E27: =+'8A Cash flow Y1'!O23*GSTInclusiveToExclusive -> 0 | H27: 0 | K27: ASSETS BOUGHT AFTER BUSINESS COMMENCES
B28: Fees & Licences | E28: =+'8A Cash flow Y1'!O24*GSTInclusiveToExclusive -> 0 | H28: 0 | K28: ='4 Depr&Assets'!A22 -> new computer Y1 | P28: =IF('4 Depr&Assets'!F22-'4 Depr&Assets'!$B$20<365,+'4 Depr&Assets'!D22,0) -> 0
B29: Post, Printg,Stationery | E29: =+'8A Cash flow Y1'!O25*GSTInclusiveToExclusive -> 0 | H29: 0 | K29: Less: Accum Depreciation | P29: =+'4 Depr&Assets'!T22 -> 0 | Q29: =+P28-P29 -> 0
B30: Telephone | E30: =+'8A Cash flow Y1'!O26*GSTInclusiveToExclusive -> 0 | H30: 0 | K30: ='4 Depr&Assets'!A23 -> digital video camera | P30: =IF('4 Depr&Assets'!F23-'4 Depr&Assets'!$B$20<365,+'4 Depr&Assets'!D23,0) -> 0
B31: Internet / Web Hosting | E31: =+'8A Cash flow Y1'!O27*GSTInclusiveToExclusive -> 0 | H31: 0 | K31: Less: Accum Depreciation | P31: =+'4 Depr&Assets'!T23 -> 0 | Q31: =+P30-P31 -> 0
B32: Mobile | E32: =+'8A Cash flow Y1'!O28*GSTInclusiveToExclusive -> 0 | H32: 0 | K32: ='4 Depr&Assets'!A24 -> new tractor Y2 | P32: =IF('4 Depr&Assets'!F24-'4 Depr&Assets'!$B$20<365,+'4 Depr&Assets'!D24,0) -> 0
B33: Rates | E33: =+'8A Cash flow Y1'!O29*GSTInclusiveToExclusive -> 0 | H33: 0 | K33: Less: Accum Depreciation | P33: =+'4 Depr&Assets'!T24 -> 0 | Q33: =+P32-P33 -> 0
B34: =+'8A Cash flow Y1'!B30 -> Rent | E34: =+'8A Cash flow Y1'!O30*GSTInclusiveToExclusive -> 0 | H34: 0 | K34: ='4 Depr&Assets'!A25 -> spare | P34: =IF('4 Depr&Assets'!F25-'4 Depr&Assets'!$B$20<365,+'4 Depr&Assets'!D25,0) -> 0
B35: =+'8A Cash flow Y1'!B31 -> Taxi / Hire Car | E35: =+'8A Cash flow Y1'!O31*GSTInclusiveToExclusive -> 0 | H35: 0 | K35: Less: Accum Depreciation | P35: =+'4 Depr&Assets'!T25 -> 0 | Q35: =+P34-P35 -> 0
B36: =+'8A Cash flow Y1'!B32 -> Spare | E36: =+'8A Cash flow Y1'!O32*GSTInclusiveToExclusive -> 0 | H36: 0
B37: =+'8A Cash flow Y1'!B33 -> Spare | E37: =+'8A Cash flow Y1'!O33*GSTInclusiveToExclusive -> 0 | H37: 0 | M37: Total Non Current Assets | N37: =SUM(N11:N36) -> 0 | R37: =Q12+Q14+Q16+Q18+Q20+Q22+Q24+Q26+Q29+Q31+Q33+Q35 -> 0
B38: Bank Charges | E38: =+'8A Cash flow Y1'!O34 -> 0 | H38: 0
B39: Wages (to Others) | E39: =+'8A Cash flow Y1'!O35 -> 0 | H39: 0 | M39: Total Assets | N39: =N9+N37 -> 0 | R39: =R9+R37 -> 0
B40: =+'8A Cash flow Y1'!B36 -> Super Expense (of employees) | E40: =+'8A Cash flow Y1'!O36 -> 0 | H40: 0
B41: Interest on Loan (Business) | E41: =IF(ISERROR('5 Source of Funds'!K17/'5 Source of Funds'!K12),0,'5 Source of Funds'!K17/'5 Source of Funds'!K12) -> 0 | H41: 0 | K41: Current Liabilities
B42: Interest on Loan (Other) | E42: =IF(ISERROR('5 Source of Funds'!K33/'5 Source of Funds'!K28),0,'5 Source of Funds'!K33/'5 Source of Funds'!K28) -> 0 | H42: 0 | L42: =IF(P42>1,"GST Payable","GST") -> GST | P42: =E7-SUM('8A Cash flow Y1'!O54:O56) -> 0
B43: =+'8A Cash flow Y1'!B45 -> Insurance (Prof Indemnity) | E43: =+'8A Cash flow Y1'!O45*GSTInclusiveToExclusive -> 0 | H43: 0 | L43: GST Paid | P43: ='8A Cash flow Y1'!O57 -> 0
B44: =+'8A Cash flow Y1'!B46 -> Insurance Public Liability | E44: =+'8A Cash flow Y1'!O46*GSTInclusiveToExclusive -> 0 | H44: 0 | K44: GST Owing | N44: 0 | Q44: =P42-P43 -> 0
B45: =+'8A Cash flow Y1'!B47 -> Insurance (Specify *2) | E45: =+'8A Cash flow Y1'!O47*GSTInclusiveToExclusive -> 0 | H45: 0 | L45: =B55 -> Estimated Tax on NPBT | P45: =F55 -> 0
B46: =+'8A Cash flow Y1'!B48 -> Spare1 | E46: =+'8A Cash flow Y1'!O48*GSTInclusiveToExclusive -> 0 | H46: 0 | L46: Provision / Payment - Income Tax | P46: ='8A Cash flow Y1'!O60 -> 0
B47: =+'8A Cash flow Y1'!B49 -> Spare2 | E47: =+'8A Cash flow Y1'!O49*GSTInclusiveToExclusive -> 0 | H47: 0 | K47: Income Tax Liability | N47: 0 | Q47: =P45-P46+P47 -> 0
B48: =+'8A Cash flow Y1'!B50 -> Spare3 | E48: =+'8A Cash flow Y1'!O50*GSTInclusiveToExclusive -> 0 | H48: 0 | K48: Creditors (from opening position) | N48: =SUM('3 Assets & Liabilities'!G38:G40) -> 0
B49: =+'8A Cash flow Y1'!B51 -> Spare4 | E49: =+'8A Cash flow Y1'!O51*GSTInclusiveToExclusive -> 0 | H49: =IF(ISERROR(E49/$F$8),0,E49/$F$8) -> 0
B50: Depreciation | E50: =+P12+P14+P16+P18+P20+P22+P24+P29+P31+P33+P35 -> 0 | H50: 0 | M50: Total Current Liabilities | N50: =SUM(N42:N48) -> 0 | R50: =SUM(Q44:Q49) -> 0
A51: Total Expenses | F51: =SUM(E22:E50) -> 0 | H51: =IF(ISERROR(F51/$F$8),0,F51/$F$8) -> 0
A53: Net Profit before Income Tax | F53: =SUM(F19-F51) -> 0 | H53: =IF(ISERROR(F53/$F$8),0,F53/$F$8) -> 0 | K53: Non-Current Liabilities
A55: Less: | B55: Estimated Tax on NPBT | F55: =IF(Options!$B$15="Sole Trader",IF(F53<TaxFreeThreshold,0,IF(F53<37000,0.19*(F53-TaxFreeThreshold),IF(F53<=80000,Options!G23+(0.325*(F53-37000)),IF(F53<=180000,Options!G24+(0.37*(F53-80000)),Options!G25+(0.45*(F53-180000)))))),30%*F53) -> 0 | H55: =IF(ISERROR(F55/$F$8),0,F55/$F$8) -> 0 | K55: Loan - Business | P55: ='5 Source of Funds'!K11 -> 0
B56: This is a simplistic estimate, and is not tax advice | K56: Less: Repayments of principal made to date | P56: =+'8A Cash flow Y1'!O43-E41 -> 0 | Q56: =+P55-P56 -> 0
A57: Net Profit after Taxation | F57: =+F53-F55 -> 0 | G57: =IF(AND(F57<MinProfitNEIS,NEISYesNo="Yes"),"Profit after tax should be min $" & MinProfitNEIS,"") -> Profit after tax should be min $12500 | H57: 0.1320148062 | K57: Loan - Other | P57: =+'5 Source of Funds'!K27 -> 0
K58: Less: Repayments made to date | P58: =+'8A Cash flow Y1'!O44-E42 -> 0 | Q58: =+P57-P58 -> 0
K59: Liabilities brought into the buinsess | N59: ='3 Assets & Liabilities'!G49 -> 0
K60: Less: Repayments made | P60: 0 | Q60: =+N59-P60 -> 0
M62: Total Non Current Liabilities | N62: =+N55+N57+N59 -> 0 | R62: =+Q56+Q58+Q60 -> 0
M64: Total Liabilities | N64: =N50+N62 -> 0 | R64: =R50+R62 -> 0
B66: APPENDIX 9C: | M66: Net Assets | N66: =N39-N64 -> 0 | R66: =R39-R64 -> 0
B67: Reconciliation of cash, Y1
K68: APPENDIX 10 B
K69: Owners Equity
B70: Opening cash | F70: ='8A Cash flow Y1'!C65 -> 0
B71: Net Profit After Tax | E71: =F57 -> 0 | L71: Less: Drawings | Q71: =-'8A Cash flow Y1'!O37 -> 0
B72: Add Back Depreciation | E72: =E50 -> 0 | L72: Add: Net Profit After Tax | Q72: =F57 -> 0
B73: Subtract Increase Debtors | E73: =P7-N7 -> 0 | R73: =Q72+Q71 -> 0
B74: Subtract increase in stock | E74: =P8-N8 -> 0 | M74: =IF(R73<0,"WARNING! Drawings exceed your NET PROFIT"," ") -> 
B75: Add back increase in current liabilities | E75: =R50 -> 0 | L75: Add : Investment in (Prior) Assets | M75: (Spare)
B76: Increase in cash due to operations | F76: =E71+E72-E73-E74+E75 -> 0 | L76: Add : Investment in (Prior) Assets | M76: Assets brought in (all of them) | Q76: ='3 Assets & Liabilities'!C53-'3 Assets & Liabilities'!C38 -> 0
L77: Add: Prior Investment in Assets | M77: Capital Input | Q77: =SUM('8A Cash flow Y1'!C7:N7)+'8A Cash flow Y1'!C65 -> 0
B78: Add Cash injection | E78: ='8A Cash flow Y1'!O7 -> 0 | L78: Less: Liabilties brought into business | Q78: =-N64 -> 0
B79: Less Investment in fixed assets | E79: ='8A Cash flow Y1'!O58-'8A Cash flow Y1'!O55 -> 0 | R79: =SUM(Q76:Q78) -> 0
B80: Less Drawings | E80: ='8A Cash flow Y1'!O37 -> 0
B81: Add loans & increase in liabiliities | E81: =R62-N62 -> 0 | M81: Total - Owners Equity | R81: =R73+R79 -> 0
B83: Increase in cash due to capital and loans | F83: =E78-E79-E80+E81 -> 0 | L83: Error check | M83: =IF(R83=0,"OK","Error") -> OK | R83: =R66-R81 -> 0
B85: Closing Cash | F85: =F83+F76+F70 -> 0
B87: Check Bal Sheet | F87: =P6 -> 0
B89: =IF(F89=0,"OK","Error") -> OK | F89: =F87-F85 -> 0

Sheet 11A Breakeven Y1
A1: APPENDIX 11A Break Even Point Analysis Year 1
A2: =+'9A Financials Y1'!A2:I2 -> Test Business ABN 123456789
A4: Breakeven Point Analysis
E7: =+'8A Cash flow Y1'!D2 -> First Year
E9: Sales from Budget (ex GST) | M9: =+'9A Financials Y1'!F8 -> 0
E10: Variable costs | M10: =+'9A Financials Y1'!F16 -> 0 | P10: =M10/$M$9 -> 
E11: Contribution Margin | M11: =+M9-M10 -> 0 | P11: =M11/$M$9 -> 
E12: Fixed Costs (ie all expenses other than cost of sales) | M12: =+'9A Financials Y1'!F51 -> 0 | P12: =M12/$M$9 -> 
E13: Profit before tax | M13: =+M11-M12 -> 0 | P13: =M13/$M$9 -> 
E14: Profit after tax | M14: ='9A Financials Y1'!F57 -> 0 | N14: ='9A Financials Y1'!F57 -> 0 | P14: =M14/$M$9 -> 
E17: Contribution Margin | K17: = | L17: Total Sales - Variable Costs
L18: Total Sales
K21: = | L21: =+M9 -> 0 | N21: - | O21: =+M10 -> 0
L22: =+M9 -> 0
K25: = | M25: =(+L21-O21)/L22 -> 
E28: Breakeven Sales | K28: = | M28: Fixed Costs
M29: =+M25 -> 
K32: = | M32: =+M12 -> 0
M33: =+M29 -> 
K36: = | M36: =M32/M33 -> 
E40: Desired Profit before tax | S40: Tax estimate
E41: Profit after tax | M41: =M40-S41 -> 0 | S41: =IF(M40<TaxFreeThreshold,0,IF(M40<37000,0.19*(M40-TaxFreeThreshold),IF(M40<=80000,Options!G23+(0.325*(M40-37000)),IF(M40<=180000,Options!G24+(0.37*(M40-80000)),Options!G25+(0.45*(M40-180000)))))) -> 0
E44: Sales at Desired Profit (ex GST) | M44: =M36+M40/M25 -> 
E45: Sales including GST | M45: =IF(GSTRate>0,M44*(1+GSTRate),"GST Not used") -> GST Not used
E46: Costs of Sales | M46: =+M44*P10 -> 
E47: Gross Profit | M47: =+M44-M46 -> 
E48: Fixed Costs | M48: =+M12 -> 0
E49: Net Profit | M49: =+M47-M48 -> 

Sheet 12A Budgets Notes 1
A1: APPENDIX 12A
A2: =+'11A Breakeven Y1'!A2:V2 -> Test Business ABN 123456789 | F2: ASSUMPTIONS - NOTES TO YOUR BUDGETS YEAR 1
A3: =+'8A Cash flow Y1'!B4 -> Total Sales
A5: =+'8A Cash flow Y1'!B5 -> Loans
A6: =+'8A Cash flow Y1'!B7 -> Capital input
A8: ='8A Cash flow Y1'!B8 -> 0
A9: ='8A Cash flow Y1'!B9 -> 0
A11: =+'8A Cash flow Y1'!B14 -> Variable cash-out from Sales sheet
A12: =+'8A Cash flow Y1'!B18 -> Accountant, Bookkeeper, Advisors
A13: =+'8A Cash flow Y1'!B19 -> Advertising & Promotion
A14: =+'8A Cash flow Y1'!B20 -> Car Insurance
A15: =+'8A Cash flow Y1'!B21 -> Car Registration
A16: =+'8A Cash flow Y1'!B22 -> Petrol & Servicing
A17: =+'8A Cash flow Y1'!B23 -> Heating & Lighting
A18: =+'8A Cash flow Y1'!B24 -> Fees & Licences
A19: =+'8A Cash flow Y1'!B25 -> Post, Printing,Stationery
A20: =+'8A Cash flow Y1'!B26 -> Telephone
A21: =+'8A Cash flow Y1'!B27 -> Internet / Web Hosting
A22: =+'8A Cash flow Y1'!B28 -> Mobile
A23: =+'8A Cash flow Y1'!B29 -> Rates
A24: =+'8A Cash flow Y1'!B30 -> Rent
A25: =+'8A Cash flow Y1'!B31 -> Taxi / Hire Car
A26: =+'8A Cash flow Y1'!B32 -> Spare
A27: =+'8A Cash flow Y1'!B33 -> Spare
A28: =+'8A Cash flow Y1'!B34 -> Bank Charges
A29: =+'8A Cash flow Y1'!B35 -> Gross Wages (of employees)
A30: =+'8A Cash flow Y1'!B36 -> Super Expense (of employees)
A34: =+'8A Cash flow Y1'!B43 -> Formal Business Loan Pmts
A35: =+'8A Cash flow Y1'!B44 -> Non Formal Loan Pmts
A36: =+'8A Cash flow Y1'!B45 -> Insurance (Prof Indemnity)
A37: =+'8A Cash flow Y1'!B46 -> Insurance Public Liability
A38: =+'8A Cash flow Y1'!B47 -> Insurance (Specify *2)
A39: =+'8A Cash flow Y1'!B48 -> Spare1
A40: =+'8A Cash flow Y1'!B49 -> Spare2
A41: =+'8A Cash flow Y1'!B50 -> Spare3
A42: =+'8A Cash flow Y1'!B51 -> Spare4
A46: =+'8A Cash flow Y1'!B58 -> Assets Bought, Bonds (from tab 4 Deprec)
A47: =+'8A Cash flow Y1'!B60 -> Provision/payment - Income Tax

Sheet 6B HH Bud Y2
A1: APPENDIX 6B
A2: Household Budget - Year 2 | E2: =+'8A Cash flow Y1'!F2 -> Test Business ABN 123456789 | O2: as % of Income
A3: Receipts | B3: =DATE(YEAR('6A HH Bud Y1'!M3),MONTH('6A HH Bud Y1'!M3)+1,1) -> 2014-07-01 | C3: =DATE(YEAR(B3),MONTH(B3)+1,1) -> 2014-08-01 | D3: =DATE(YEAR(C3),MONTH(C3)+1,1) -> 2014-09-01 | E3: 2014-10-01 | F3: 2014-11-01 | G3: 2014-12-01 | H3: 2015-01-01 | I3: 2015-02-01 | J3: 2015-03-01 | K3: 2015-04-01 | L3: 2015-05-01 | M3: 2015-06-01 | N3: Total
A4: Wages 1 P/T casual work | N4: =SUM(B4:M4) -> 0 | O4: =IF(ISERROR((N4/$N$13)*100),0,(N4/$N$13)*100) -> 0
A5: Wages Spouse / partner | N5: =SUM(B5:M5) -> 0 | O5: =IF(ISERROR((N5/$N$13)*100),0,(N5/$N$13)*100) -> 0
A6: Govt Payments eg Rent Ast | N6: 0 | O6: =IF(ISERROR((N6/$N$13)*100),0,(N6/$N$13)*100) -> 0
A7: NEIS (Y1 only) | B7: 0 | C7: 0 | D7: 0 | E7: 0 | F7: 0 | G7: 0 | H7: 0 | I7: 0 | J7: 0 | K7: 0 | L7: 0 | N7: 0
A8: Other income | N8: 0 | O8: =IF(ISERROR((N8/$N$13)*100),0,(N8/$N$13)*100) -> 0
A9: Drawings | N9: =SUM(B9:M9) -> 0 | O9: =IF(ISERROR((N9/$N$13)*100),0,(N9/$N$13)*100) -> 0
A10: Owner's salary after tax (if company) | N10: =SUM(B10:M10) -> 0 | O10: =IF(ISERROR((N10/$N$13)*100),0,(N10/$N$13)*100) -> 0
A11: Spare | N11: =SUM(B11:M11) -> 0 | O11: =IF(ISERROR((N11/$N$13)*100),0,(N11/$N$13)*100) -> 0
A12: Spare | N12: 0 | O12: =IF(ISERROR((N12/$N$13)*100),0,(N12/$N$13)*100) -> 0
A13: Total Receipts | B13: =SUM(B4:B12) -> 0 | C13: 0 | D13: 0 | E13: 0 | F13: 0 | G13: 0 | H13: 0 | I13: 0 | J13: 0 | K13: 0 | L13: 0 | M13: 0 | N13: 0 | O13: 0
O14: =+'6A HH Bud Y1'!O14:O15 -> as % of Income
A15: Payments | N15: Total
A16: Rent / Mortgage | B16: ='6A HH Bud Y1'!B16*(1+CPI) -> 0 | C16: ='6A HH Bud Y1'!C16*(1+CPI) -> 0 | D16: ='6A HH Bud Y1'!D16*(1+CPI) -> 0 | E16: ='6A HH Bud Y1'!E16*(1+CPI) -> 0 | F16: ='6A HH Bud Y1'!F16*(1+CPI) -> 0 | G16: ='6A HH Bud Y1'!G16*(1+CPI) -> 0 | H16: ='6A HH Bud Y1'!H16*(1+CPI) -> 0 | I16: ='6A HH Bud Y1'!I16*(1+CPI) -> 0 | J16: ='6A HH Bud Y1'!J16*(1+CPI) -> 0 | K16: ='6A HH Bud Y1'!K16*(1+CPI) -> 0 | L16: ='6A HH Bud Y1'!L16*(1+CPI) -> 0 | M16: ='6A HH Bud Y1'!M16*(1+CPI) -> 0 | N16: =SUM(B16:M16) -> 0 | O16: =IF(ISERROR((N16/$N$13)*100),0,(N16/$N$13)*100) -> 0
A17: Food | B17: ='6A HH Bud Y1'!B17*(1+CPI) -> 0 | C17: ='6A HH Bud Y1'!C17*(1+CPI) -> 0 | D17: ='6A HH Bud Y1'!D17*(1+CPI) -> 0 | E17: ='6A HH Bud Y1'!E17*(1+CPI) -> 0 | F17: ='6A HH Bud Y1'!F17*(1+CPI) -> 0 | G17: ='6A HH Bud Y1'!G17*(1+CPI) -> 0 | H17: ='6A HH Bud Y1'!H17*(1+CPI) -> 0 | I17: ='6A HH Bud Y1'!I17*(1+CPI) -> 0 | J17: ='6A HH Bud Y1'!J17*(1+CPI) -> 0 | K17: ='6A HH Bud Y1'!K17*(1+CPI) -> 0 | L17: ='6A HH Bud Y1'!L17*(1+CPI) -> 0 | M17: ='6A HH Bud Y1'!M17*(1+CPI) -> 0 | N17: 0 | O17: 0
A18: Gas | B18: ='6A HH Bud Y1'!B18*(1+CPI) -> 0 | C18: ='6A HH Bud Y1'!C18*(1+CPI) -> 0 | D18: ='6A HH Bud Y1'!D18*(1+CPI) -> 0 | E18: ='6A HH Bud Y1'!E18*(1+CPI) -> 0 | F18: ='6A HH Bud Y1'!F18*(1+CPI) -> 0 | G18: ='6A HH Bud Y1'!G18*(1+CPI) -> 0 | H18: ='6A HH Bud Y1'!H18*(1+CPI) -> 0 | I18: ='6A HH Bud Y1'!I18*(1+CPI) -> 0 | J18: ='6A HH Bud Y1'!J18*(1+CPI) -> 0 | K18: ='6A HH Bud Y1'!K18*(1+CPI) -> 0 | L18: ='6A HH Bud Y1'!L18*(1+CPI) -> 0 | M18: ='6A HH Bud Y1'!M18*(1+CPI) -> 0 | N18: 0 | O18: 0
A19: Electricity | B19: ='6A HH Bud Y1'!B19*(1+CPI) -> 0 | C19: ='6A HH Bud Y1'!C19*(1+CPI) -> 0 | D19: ='6A HH Bud Y1'!D19*(1+CPI) -> 0 | E19: ='6A HH Bud Y1'!E19*(1+CPI) -> 0 | F19: ='6A HH Bud Y1'!F19*(1+CPI) -> 0 | G19: ='6A HH Bud Y1'!G19*(1+CPI) -> 0 | H19: ='6A HH Bud Y1'!H19*(1+CPI) -> 0 | I19: ='6A HH Bud Y1'!I19*(1+CPI) -> 0 | J19: ='6A HH Bud Y1'!J19*(1+CPI) -> 0 | K19: ='6A HH Bud Y1'!K19*(1+CPI) -> 0 | L19: ='6A HH Bud Y1'!L19*(1+CPI) -> 0 | M19: ='6A HH Bud Y1'!M19*(1+CPI) -> 0 | N19: 0 | O19: 0
A20: Home Insurance | B20: ='6A HH Bud Y1'!B20*(1+CPI) -> 0 | C20: ='6A HH Bud Y1'!C20*(1+CPI) -> 0 | D20: ='6A HH Bud Y1'!D20*(1+CPI) -> 0 | E20: ='6A HH Bud Y1'!E20*(1+CPI) -> 0 | F20: ='6A HH Bud Y1'!F20*(1+CPI) -> 0 | G20: ='6A HH Bud Y1'!G20*(1+CPI) -> 0 | H20: ='6A HH Bud Y1'!H20*(1+CPI) -> 0 | I20: ='6A HH Bud Y1'!I20*(1+CPI) -> 0 | J20: ='6A HH Bud Y1'!J20*(1+CPI) -> 0 | K20: ='6A HH Bud Y1'!K20*(1+CPI) -> 0 | L20: ='6A HH Bud Y1'!L20*(1+CPI) -> 0 | M20: ='6A HH Bud Y1'!M20*(1+CPI) -> 0 | N20: 0 | O20: 0
A21: Rates / Water | B21: ='6A HH Bud Y1'!B21*(1+CPI) -> 0 | C21: ='6A HH Bud Y1'!C21*(1+CPI) -> 0 | D21: ='6A HH Bud Y1'!D21*(1+CPI) -> 0 | E21: ='6A HH Bud Y1'!E21*(1+CPI) -> 0 | F21: ='6A HH Bud Y1'!F21*(1+CPI) -> 0 | G21: ='6A HH Bud Y1'!G21*(1+CPI) -> 0 | H21: ='6A HH Bud Y1'!H21*(1+CPI) -> 0 | I21: ='6A HH Bud Y1'!I21*(1+CPI) -> 0 | J21: ='6A HH Bud Y1'!J21*(1+CPI) -> 0 | K21: ='6A HH Bud Y1'!K21*(1+CPI) -> 0 | L21: ='6A HH Bud Y1'!L21*(1+CPI) -> 0 | M21: ='6A HH Bud Y1'!M21*(1+CPI) -> 0 | N21: 0 | O21: 0
A22: Telephone | B22: ='6A HH Bud Y1'!B22*(1+CPI) -> 0 | C22: ='6A HH Bud Y1'!C22*(1+CPI) -> 0 | D22: ='6A HH Bud Y1'!D22*(1+CPI) -> 0 | E22: ='6A HH Bud Y1'!E22*(1+CPI) -> 0 | F22: ='6A HH Bud Y1'!F22*(1+CPI) -> 0 | G22: ='6A HH Bud Y1'!G22*(1+CPI) -> 0 | H22: ='6A HH Bud Y1'!H22*(1+CPI) -> 0 | I22: ='6A HH Bud Y1'!I22*(1+CPI) -> 0 | J22: ='6A HH Bud Y1'!J22*(1+CPI) -> 0 | K22: ='6A HH Bud Y1'!K22*(1+CPI) -> 0 | L22: ='6A HH Bud Y1'!L22*(1+CPI) -> 0 | M22: ='6A HH Bud Y1'!M22*(1+CPI) -> 0 | N22: 0 | O22: 0
A23: Mobile | B23: ='6A HH Bud Y1'!B23*(1+CPI) -> 0 | C23: ='6A HH Bud Y1'!C23*(1+CPI) -> 0 | D23: ='6A HH Bud Y1'!D23*(1+CPI) -> 0 | E23: ='6A HH Bud Y1'!E23*(1+CPI) -> 0 | F23: ='6A HH Bud Y1'!F23*(1+CPI) -> 0 | G23: ='6A HH Bud Y1'!G23*(1+CPI) -> 0 | H23: ='6A HH Bud Y1'!H23*(1+CPI) -> 0 | I23: ='6A HH Bud Y1'!I23*(1+CPI) -> 0 | J23: ='6A HH Bud Y1'!J23*(1+CPI) -> 0 | K23: ='6A HH Bud Y1'!K23*(1+CPI) -> 0 | L23: ='6A HH Bud Y1'!L23*(1+CPI) -> 0 | M23: ='6A HH Bud Y1'!M23*(1+CPI) -> 0 | N23: 0 | O23: 0
A24: Internet | B24: ='6A HH Bud Y1'!B24*(1+CPI) -> 0 | C24: ='6A HH Bud Y1'!C24*(1+CPI) -> 0 | D24: ='6A HH Bud Y1'!D24*(1+CPI) -> 0 | E24: ='6A HH Bud Y1'!E24*(1+CPI) -> 0 | F24: ='6A HH Bud Y1'!F24*(1+CPI) -> 0 | G24: ='6A HH Bud Y1'!G24*(1+CPI) -> 0 | H24: ='6A HH Bud Y1'!H24*(1+CPI) -> 0 | I24: ='6A HH Bud Y1'!I24*(1+CPI) -> 0 | J24: ='6A HH Bud Y1'!J24*(1+CPI) -> 0 | K24: ='6A HH Bud Y1'!K24*(1+CPI) -> 0 | L24: ='6A HH Bud Y1'!L24*(1+CPI) -> 0 | M24: ='6A HH Bud Y1'!M24*(1+CPI) -> 0 | N24: 0 | O24: 0
A25: =+'6A HH Bud Y1'!A25 -> Car Insurance | B25: ='6A HH Bud Y1'!B25*(1+CPI) -> 0 | C25: ='6A HH Bud Y1'!C25*(1+CPI) -> 0 | D25: ='6A HH Bud Y1'!D25*(1+CPI) -> 0 | E25: ='6A HH Bud Y1'!E25*(1+CPI) -> 0 | F25: ='6A HH Bud Y1'!F25*(1+CPI) -> 0 | G25: ='6A HH Bud Y1'!G25*(1+CPI) -> 0 | H25: ='6A HH Bud Y1'!H25*(1+CPI) -> 0 | I25: ='6A HH Bud Y1'!I25*(1+CPI) -> 0 | J25: ='6A HH Bud Y1'!J25*(1+CPI) -> 0 | K25: ='6A HH Bud Y1'!K25*(1+CPI) -> 0 | L25: ='6A HH Bud Y1'!L25*(1+CPI) -> 0 | M25: ='6A HH Bud Y1'!M25*(1+CPI) -> 0 | N25: 0 | O25: 0
A26: =+'6A HH Bud Y1'!A26 -> Car Registration | B26: ='6A HH Bud Y1'!B26*(1+CPI) -> 0 | C26: ='6A HH Bud Y1'!C26*(1+CPI) -> 0 | D26: ='6A HH Bud Y1'!D26*(1+CPI) -> 0 | E26: ='6A HH Bud Y1'!E26*(1+CPI) -> 0 | F26: ='6A HH Bud Y1'!F26*(1+CPI) -> 0 | G26: ='6A HH Bud Y1'!G26*(1+CPI) -> 0 | H26: ='6A HH Bud Y1'!H26*(1+CPI) -> 0 | I26: ='6A HH Bud Y1'!I26*(1+CPI) -> 0 | J26: ='6A HH Bud Y1'!J26*(1+CPI) -> 0 | K26: ='6A HH Bud Y1'!K26*(1+CPI) -> 0 | L26: ='6A HH Bud Y1'!L26*(1+CPI) -> 0 | M26: ='6A HH Bud Y1'!M26*(1+CPI) -> 0 | N26: 0 | O26: 0
A27: =+'6A HH Bud Y1'!A27 -> Petrol & Servicing | B27: ='6A HH Bud Y1'!B27*(1+CPI) -> 0 | C27: ='6A HH Bud Y1'!C27*(1+CPI) -> 0 | D27: ='6A HH Bud Y1'!D27*(1+CPI) -> 0 | E27: ='6A HH Bud Y1'!E27*(1+CPI) -> 0 | F27: ='6A HH Bud Y1'!F27*(1+CPI) -> 0 | G27: ='6A HH Bud Y1'!G27*(1+CPI) -> 0 | H27: ='6A HH Bud Y1'!H27*(1+CPI) -> 0 | I27: ='6A HH Bud Y1'!I27*(1+CPI) -> 0 | J27: ='6A HH Bud Y1'!J27*(1+CPI) -> 0 | K27: ='6A HH Bud Y1'!K27*(1+CPI) -> 0 | L27: ='6A HH Bud Y1'!L27*(1+CPI) -> 0 | M27: ='6A HH Bud Y1'!M27*(1+CPI) -> 0 | N27: 0 | O27: 0
A28: Fares | B28: ='6A HH Bud Y1'!B28*(1+CPI) -> 0 | C28: ='6A HH Bud Y1'!C28*(1+CPI) -> 0 | D28: ='6A HH Bud Y1'!D28*(1+CPI) -> 0 | E28: ='6A HH Bud Y1'!E28*(1+CPI) -> 0 | F28: ='6A HH Bud Y1'!F28*(1+CPI) -> 0 | G28: ='6A HH Bud Y1'!G28*(1+CPI) -> 0 | H28: ='6A HH Bud Y1'!H28*(1+CPI) -> 0 | I28: ='6A HH Bud Y1'!I28*(1+CPI) -> 0 | J28: ='6A HH Bud Y1'!J28*(1+CPI) -> 0 | K28: ='6A HH Bud Y1'!K28*(1+CPI) -> 0 | L28: ='6A HH Bud Y1'!L28*(1+CPI) -> 0 | M28: ='6A HH Bud Y1'!M28*(1+CPI) -> 0 | N28: 0 | O28: 0
A29: Kids - School etc | B29: ='6A HH Bud Y1'!B29*(1+CPI) -> 0 | C29: ='6A HH Bud Y1'!C29*(1+CPI) -> 0 | D29: ='6A HH Bud Y1'!D29*(1+CPI) -> 0 | E29: ='6A HH Bud Y1'!E29*(1+CPI) -> 0 | F29: ='6A HH Bud Y1'!F29*(1+CPI) -> 0 | G29: ='6A HH Bud Y1'!G29*(1+CPI) -> 0 | H29: ='6A HH Bud Y1'!H29*(1+CPI) -> 0 | I29: ='6A HH Bud Y1'!I29*(1+CPI) -> 0 | J29: ='6A HH Bud Y1'!J29*(1+CPI) -> 0 | K29: ='6A HH Bud Y1'!K29*(1+CPI) -> 0 | L29: ='6A HH Bud Y1'!L29*(1+CPI) -> 0 | M29: ='6A HH Bud Y1'!M29*(1+CPI) -> 0 | N29: 0 | O29: 0
A30: Clothes | B30: ='6A HH Bud Y1'!B30*(1+CPI) -> 0 | C30: ='6A HH Bud Y1'!C30*(1+CPI) -> 0 | D30: ='6A HH Bud Y1'!D30*(1+CPI) -> 0 | E30: ='6A HH Bud Y1'!E30*(1+CPI) -> 0 | F30: ='6A HH Bud Y1'!F30*(1+CPI) -> 0 | G30: ='6A HH Bud Y1'!G30*(1+CPI) -> 0 | H30: ='6A HH Bud Y1'!H30*(1+CPI) -> 0 | I30: ='6A HH Bud Y1'!I30*(1+CPI) -> 0 | J30: ='6A HH Bud Y1'!J30*(1+CPI) -> 0 | K30: ='6A HH Bud Y1'!K30*(1+CPI) -> 0 | L30: ='6A HH Bud Y1'!L30*(1+CPI) -> 0 | M30: ='6A HH Bud Y1'!M30*(1+CPI) -> 0 | N30: 0 | O30: 0
A31: Entertainment | B31: ='6A HH Bud Y1'!B31*(1+CPI) -> 0 | C31: ='6A HH Bud Y1'!C31*(1+CPI) -> 0 | D31: ='6A HH Bud Y1'!D31*(1+CPI) -> 0 | E31: ='6A HH Bud Y1'!E31*(1+CPI) -> 0 | F31: ='6A HH Bud Y1'!F31*(1+CPI) -> 0 | G31: ='6A HH Bud Y1'!G31*(1+CPI) -> 0 | H31: ='6A HH Bud Y1'!H31*(1+CPI) -> 0 | I31: ='6A HH Bud Y1'!I31*(1+CPI) -> 0 | J31: ='6A HH Bud Y1'!J31*(1+CPI) -> 0 | K31: ='6A HH Bud Y1'!K31*(1+CPI) -> 0 | L31: ='6A HH Bud Y1'!L31*(1+CPI) -> 0 | M31: ='6A HH Bud Y1'!M31*(1+CPI) -> 0 | N31: 0 | O31: 0
A32: Newspapers, Magazines | B32: ='6A HH Bud Y1'!B32*(1+CPI) -> 0 | C32: ='6A HH Bud Y1'!C32*(1+CPI) -> 0 | D32: ='6A HH Bud Y1'!D32*(1+CPI) -> 0 | E32: ='6A HH Bud Y1'!E32*(1+CPI) -> 0 | F32: ='6A HH Bud Y1'!F32*(1+CPI) -> 0 | G32: ='6A HH Bud Y1'!G32*(1+CPI) -> 0 | H32: ='6A HH Bud Y1'!H32*(1+CPI) -> 0 | I32: ='6A HH Bud Y1'!I32*(1+CPI) -> 0 | J32: ='6A HH Bud Y1'!J32*(1+CPI) -> 0 | K32: ='6A HH Bud Y1'!K32*(1+CPI) -> 0 | L32: ='6A HH Bud Y1'!L32*(1+CPI) -> 0 | M32: ='6A HH Bud Y1'!M32*(1+CPI) -> 0 | N32: 0 | O32: 0
A33: Vices | B33: ='6A HH Bud Y1'!B33*(1+CPI) -> 0 | C33: ='6A HH Bud Y1'!C33*(1+CPI) -> 0 | D33: ='6A HH Bud Y1'!D33*(1+CPI) -> 0 | E33: ='6A HH Bud Y1'!E33*(1+CPI) -> 0 | F33: ='6A HH Bud Y1'!F33*(1+CPI) -> 0 | G33: ='6A HH Bud Y1'!G33*(1+CPI) -> 0 | H33: ='6A HH Bud Y1'!H33*(1+CPI) -> 0 | I33: ='6A HH Bud Y1'!I33*(1+CPI) -> 0 | J33: ='6A HH Bud Y1'!J33*(1+CPI) -> 0 | K33: ='6A HH Bud Y1'!K33*(1+CPI) -> 0 | L33: ='6A HH Bud Y1'!L33*(1+CPI) -> 0 | M33: ='6A HH Bud Y1'!M33*(1+CPI) -> 0 | N33: 0 | O33: 0
A34: Repayment of Loans | N34: 0 | O34: 0
A35: Medical Insurance | B35: ='6A HH Bud Y1'!B35*(1+CPI) -> 0 | C35: ='6A HH Bud Y1'!C35*(1+CPI) -> 0 | D35: ='6A HH Bud Y1'!D35*(1+CPI) -> 0 | E35: ='6A HH Bud Y1'!E35*(1+CPI) -> 0 | F35: ='6A HH Bud Y1'!F35*(1+CPI) -> 0 | G35: ='6A HH Bud Y1'!G35*(1+CPI) -> 0 | H35: ='6A HH Bud Y1'!H35*(1+CPI) -> 0 | I35: ='6A HH Bud Y1'!I35*(1+CPI) -> 0 | J35: ='6A HH Bud Y1'!J35*(1+CPI) -> 0 | K35: ='6A HH Bud Y1'!K35*(1+CPI) -> 0 | L35: ='6A HH Bud Y1'!L35*(1+CPI) -> 0 | M35: ='6A HH Bud Y1'!M35*(1+CPI) -> 0 | N35: 0 | O35: 0
A36: Spare | N36: 0 | O36: 0
A37: Spare | N37: 0 | O37: 0
A38: Spare | N38: 0 | O38: 0
A39: Spare | N39: 0 | O39: 0
A40: Spare | N40: 0 | O40: 0
A41: Total Payments | B41: =SUM(B16:B40) -> 0 | C41: =SUM(C16:C40) -> 0 | D41: 0 | E41: 0 | F41: 0 | G41: 0 | H41: 0 | I41: 0 | J41: 0 | K41: 0 | L41: 0 | M41: 0 | N41: =SUM(N16:N40) -> 0 | O41: =IF(ISERROR((N41/$N$13)*100),0,(N41/$N$13)*100) -> 0
O42: =IF(N41>N13,"you need more income","") -> 
A43: Diff. = Recpts - Pmnts | B43: =+B13-B41 -> 0 | C43: 0 | D43: 0 | E43: 0 | F43: 0 | G43: 0 | H43: 0 | I43: 0 | J43: 0 | K43: 0 | L43: 0 | M43: 0 | N43: 0
A45: Bank Open | B45: ='6A HH Bud Y1'!N46 -> 0 | C45: =+B46 -> 0 | D45: =+C46 -> 0 | E45: 0 | F45: 0 | G45: 0 | H45: 0 | I45: 0 | J45: 0 | K45: 0 | L45: 0 | M45: 0 | N45: =+B45 -> 0
A46: Bank Close | B46: =+B43+B45 -> 0 | C46: =+C43+C45 -> 0 | D46: 0 | E46: 0 | F46: 0 | G46: 0 | H46: 0 | I46: 0 | J46: 0 | K46: 0 | L46: 0 | M46: 0 | N46: 0
A49: Note: can use a formula based on CPI
A50: ex B15 can be ='6A. HH Bud Y1'!B15*(1+CPI)

Sheet 7B Sales Y2
B1: APPENDIX 7B
B2: Sales Forecast & Banking Details- Year 2 | H2: ='6B HH Bud Y2'!E2 -> Test Business ABN 123456789
D3: ='6B HH Bud Y2'!B3 -> 2014-07-01 | E3: ='6B HH Bud Y2'!C3 -> 2014-08-01 | F3: ='6B HH Bud Y2'!D3 -> 2014-09-01 | G3: ='6B HH Bud Y2'!E3 -> 2014-10-01 | H3: ='6B HH Bud Y2'!F3 -> 2014-11-01 | I3: ='6B HH Bud Y2'!G3 -> 2014-12-01 | J3: ='6B HH Bud Y2'!H3 -> 2015-01-01 | K3: ='6B HH Bud Y2'!I3 -> 2015-02-01 | L3: ='6B HH Bud Y2'!J3 -> 2015-03-01 | M3: ='6B HH Bud Y2'!K3 -> 2015-04-01 | N3: ='6B HH Bud Y2'!L3 -> 2015-05-01 | O3: ='6B HH Bud Y2'!M3 -> 2015-06-01 | P3: Totals | Q3: % of Sales
B4: Sales | C4: Unit SP | D4: Qty | E4: Qty | F4: Qty | G4: Qty | H4: Qty | I4: Qty | J4: Qty | K4: Qty | L4: Qty | M4: Qty | N4: Qty | O4: Qty
B5: ='7A Sales Y1'!B5 -> small film clip | C5: ='7A Sales Y1'!C5 -> 0
D6: =$C$5*D5 -> 0 | E6: =$C$5*E5 -> 0 | F6: 0 | G6: 0 | H6: 0 | I6: 0 | J6: 0 | K6: 0 | L6: 0 | M6: 0 | N6: 0 | O6: 0 | P6: =SUM(D6:O6) -> 0 | Q6: =IF(ISERROR(P6/$P$25),0,P6/$P$25) -> 0
B7: ='7A Sales Y1'!B7 -> medium clips | C7: ='7A Sales Y1'!C7 -> 0
D8: =$C$7*D7 -> 0 | E8: =$C$7*E7 -> 0 | F8: 0 | G8: 0 | H8: 0 | I8: 0 | J8: 0 | K8: 0 | L8: 0 | M8: 0 | N8: 0 | O8: 0 | P8: =SUM(D8:O8) -> 0 | Q8: =IF(ISERROR(P8/$P$25),0,P8/$P$25) -> 0
B9: ='7A Sales Y1'!B9 -> large budget clips | C9: ='7A Sales Y1'!C9 -> 0
D10: =$C$9*D9 -> 0 | E10: =$C$9*E9 -> 0 | F10: 0 | G10: 0 | H10: 0 | I10: 0 | J10: 0 | K10: 0 | L10: 0 | M10: 0 | N10: 0 | O10: 0 | P10: =SUM(D10:O10) -> 0 | Q10: =IF(ISERROR(P10/$P$25),0,P10/$P$25) -> 0
B11: ='7A Sales Y1'!B11 -> 0 | C11: ='7A Sales Y1'!C11 -> 0
D12: =$C$11*D11 -> 0 | E12: =$C$11*E11 -> 0 | F12: 0 | G12: 0 | H12: 0 | I12: 0 | J12: 0 | K12: 0 | L12: 0 | M12: 0 | N12: 0 | O12: 0 | P12: =SUM(D12:O12) -> 0 | Q12: =IF(ISERROR(P12/$P$25),0,P12/$P$25) -> 0
B13: ='7A Sales Y1'!B13 -> 0 | C13: ='7A Sales Y1'!C13 -> 0
D14: =$C$13*D13 -> 0 | E14: =$C$13*E13 -> 0 | F14: 0 | G14: 0 | H14: 0 | I14: 0 | J14: 0 | K14: 0 | L14: 0 | M14: 0 | N14: 0 | O14: 0 | P14: =SUM(D14:O14) -> 0 | Q14: =IF(ISERROR(P14/$P$25),0,P14/$P$25) -> 0
B15: ='7A Sales Y1'!B15 -> 0 | C15: ='7A Sales Y1'!C15 -> 0
D16: =$C$15*D15 -> 0 | E16: =$C$15*E15 -> 0 | F16: 0 | G16: 0 | H16: 0 | I16: 0 | J16: 0 | K16: 0 | L16: 0 | M16: 0 | N16: 0 | O16: 0 | P16: =SUM(D16:O16) -> 0 | Q16: =IF(ISERROR(P16/$P$25),0,P16/$P$25) -> 0
B17: ='7A Sales Y1'!B17 -> 0 | C17: ='7A Sales Y1'!C17 -> 0
D18: =$C$17*D17 -> 0 | E18: =$C$17*E17 -> 0 | F18: =$C$17*F17 -> 0 | G18: 0 | H18: 0 | I18: 0 | J18: 0 | K18: 0 | L18: 0 | M18: 0 | N18: 0 | O18: 0 | P18: =SUM(D18:O18) -> 0 | Q18: =IF(ISERROR(P18/$P$25),0,P18/$P$25) -> 0
B19: ='7A Sales Y1'!B19 -> 0 | C19: ='7A Sales Y1'!C19 -> 0
D20: =$C$19*D19 -> 0 | E20: =$C$19*E19 -> 0 | F20: =$C$19*F19 -> 0 | G20: 0 | H20: 0 | I20: 0 | J20: 0 | K20: 0 | L20: 0 | M20: 0 | N20: 0 | O20: 0 | P20: =SUM(D20:O20) -> 0 | Q20: =IF(ISERROR(P20/$P$25),0,P20/$P$25) -> 0
B21: ='7A Sales Y1'!B21 -> 0 | C21: ='7A Sales Y1'!C21 -> 0
D22: =$C$21*D21 -> 0 | E22: =$C$21*E21 -> 0 | F22: 0 | G22: 0 | H22: 0 | I22: 0 | J22: 0 | K22: 0 | L22: 0 | M22: 0 | N22: 0 | O22: 0 | P22: =SUM(D22:O22) -> 0 | Q22: =IF(ISERROR(P22/$P$25),0,P22/$P$25) -> 0
B23: ='7A Sales Y1'!B23 -> 0 | C23: ='7A Sales Y1'!C23 -> 0
D24: =$C$23*D23 -> 0 | E24: =$C$23*E23 -> 0 | F24: 0 | G24: 0 | H24: 0 | I24: 0 | J24: 0 | K24: 0 | L24: 0 | M24: 0 | N24: 0 | O24: 0 | P24: =SUM(D24:O24) -> 0 | Q24: =IF(ISERROR(P24/$P$25),0,P24/$P$25) -> 0
B25: Total Sales per Month | D25: =($C$5*D5)+($C$7*D7)+($C$9*D9)+($C$11*D11)+($C$13*D13)+($C$15*D15)+($C$17*D17)+($C$19*D19)+($C$21*D21)+($C$23*D23) -> 0 | E25: =($C$5*E5)+($C$7*E7)+($C$9*E9)+($C$11*E11)+($C$13*E13)+($C$15*E15)+($C$17*E17)+($C$19*E19)+($C$21*E21)+($C$23*E23) -> 0 | F25: 0 | G25: 0 | H25: 0 | I25: 0 | J25: 0 | K25: 0 | L25: 0 | M25: 0 | N25: =($C$5*N5)+($C$7*N7)+($C$9*N9)+($C$11*N11)+($C$13*N13)+($C$15*N15)+($C$17*N17)+($C$19*N19)+($C$21*N21)+($C$23*N23) -> 0 | O25: =($C$5*O5)+($C$7*O7)+($C$9*O9)+($C$11*O11)+($C$13*O13)+($C$15*O15)+($C$17*O17)+($C$19*O19)+($C$21*O21)+($C$23*O23) -> 0 | P25: =SUM(D25:O25) -> 0 | Q25: =SUM(Q6,Q8,Q10,Q12,Q14,Q16,Q18,Q20,Q22,Q24) -> 0
Q26: =IF(Q25<>100%,"Error","") -> Error
B27: Banked
B28: From this Month's sales | C28: 0 | D28: =D25*$C$28 -> 0 | E28: =E25*$C$28 -> 0 | F28: 0 | G28: 0 | H28: 0 | I28: 0 | J28: 0 | K28: 0 | L28: 0 | M28: 0 | N28: 0 | O28: 0 | P28: =SUM(D28:O28) -> 0 | Q28: =IF(ISERROR(P28/$P$25),0,P28/$P$25) -> 0
B29: From last Month's sales | C29: 1 | D29: ='7A Sales Y1'!$C$29*'7A Sales Y1'!O25 -> 0 | E29: =D25*$C$29 -> 0 | F29: =E25*$C$29 -> 0 | G29: 0 | H29: 0 | I29: 0 | J29: 0 | K29: 0 | L29: 0 | M29: 0 | N29: 0 | O29: 0 | P29: =SUM(D29:O29) -> 0 | Q29: =IF(ISERROR(P29/$P$25),0,P29/$P$25) -> 0
B30: From the month before | C30: ='7A Sales Y1'!C30 -> 0 | D30: ='7A Sales Y1'!$C$30*'7A Sales Y1'!N25 -> 0 | E30: ='7A Sales Y1'!$C$30*'7A Sales Y1'!O25 -> 0 | F30: =D25*$C$30 -> 0 | G30: =E25*$C$30 -> 0 | H30: 0 | I30: 0 | J30: 0 | K30: 0 | L30: 0 | M30: 0 | N30: 0 | O30: 0 | P30: =SUM(D30:O30) -> 0 | Q30: =IF(ISERROR(P30/$P$25),0,P30/$P$25) -> 0
B31: Total Banked per Month | D31: =SUM(D28:D30) -> 0 | E31: =SUM(E28:E30) -> 0 | F31: 0 | G31: 0 | H31: 0 | I31: 0 | J31: 0 | K31: 0 | L31: 0 | M31: 0 | N31: 0 | O31: 0 | P31: 0 | Q31: =IF(ISERROR(P31/$P$25),0,P31/$P$25) -> 0
B33: Variable Costs (inc GST) | C33: Unit CP | D33: Qty | E33: Qty | F33: Qty | G33: Qty | H33: Qty | I33: Qty | J33: Qty | K33: Qty | L33: Qty | M33: Qty | N33: Qty | O33: Qty
B34: =IF(ISBLANK(B5),"",B5) -> small film clip | C34: ='7A Sales Y1'!C34 -> 0 | D34: =D5 -> 0 | E34: =E5 -> 0 | F34: 0 | G34: 0 | H34: 0 | I34: 0 | J34: 0 | K34: 0 | L34: 0 | M34: 0 | N34: 0 | O34: 0
D35: =$C$34*D34 -> 0 | E35: =$C$34*E34 -> 0 | F35: 0 | G35: 0 | H35: 0 | I35: 0 | J35: 0 | K35: 0 | L35: 0 | M35: 0 | N35: 0 | O35: 0 | P35: =SUM(D35:O35) -> 0 | Q35: =IF(ISERROR(P35/$P$54),0,P35/$P$54) -> 0
B36: =IF(ISBLANK(B7),"",B7) -> medium clips | C36: ='7A Sales Y1'!C36 -> 0 | D36: =D7 -> 0 | E36: 0 | F36: 0 | G36: 0 | H36: 0 | I36: 0 | J36: 0 | K36: 0 | L36: 0 | M36: 0 | N36: 0 | O36: 0
D37: =$C$36*D36 -> 0 | E37: =$C$36*E36 -> 0 | F37: 0 | G37: 0 | H37: 0 | I37: 0 | J37: 0 | K37: 0 | L37: 0 | M37: 0 | N37: 0 | O37: 0 | P37: =SUM(D37:O37) -> 0 | Q37: =IF(ISERROR(P37/$P$54),0,P37/$P$54) -> 0
B38: =IF(ISBLANK(B9),"",B9) -> large budget clips | C38: ='7A Sales Y1'!C38 -> 0 | D38: =D9 -> 0 | E38: 0 | F38: 0 | G38: 0 | H38: 0 | I38: 0 | J38: 0 | K38: 0 | L38: 0 | M38: 0 | N38: 0 | O38: 0
D39: =$C$38*D38 -> 0 | E39: =$C$38*E38 -> 0 | F39: 0 | G39: 0 | H39: 0 | I39: 0 | J39: 0 | K39: 0 | L39: 0 | M39: 0 | N39: 0 | O39: 0 | P39: =SUM(D39:O39) -> 0 | Q39: =IF(ISERROR(P39/$P$54),0,P39/$P$54) -> 0
B40: =IF(ISBLANK(B11),"",B11) -> 0 | C40: ='7A Sales Y1'!C40 -> 0 | D40: =D11 -> 0 | E40: 0 | F40: 0 | G40: 0 | H40: 0 | I40: 0 | J40: 0 | K40: 0 | L40: 0 | M40: 0 | N40: 0 | O40: 0
D41: =$C$40*D40 -> 0 | E41: =$C$40*E40 -> 0 | F41: 0 | G41: 0 | H41: 0 | I41: 0 | J41: 0 | K41: 0 | L41: 0 | M41: 0 | N41: 0 | O41: 0 | P41: =SUM(D41:O41) -> 0 | Q41: =IF(ISERROR(P41/$P$54),0,P41/$P$54) -> 0
B42: =IF(ISBLANK(B13),"",B13) -> 0 | C42: ='7A Sales Y1'!C42 -> 0 | D42: =D13 -> 0 | E42: 0 | F42: 0 | G42: 0 | H42: 0 | I42: 0 | J42: 0 | K42: 0 | L42: 0 | M42: 0 | N42: 0 | O42: 0
D43: =$C$42*D42 -> 0 | E43: =$C$42*E42 -> 0 | F43: =$C$42*F42 -> 0 | G43: 0 | H43: 0 | I43: 0 | J43: 0 | K43: 0 | L43: 0 | M43: 0 | N43: 0 | O43: 0 | P43: =SUM(D43:O43) -> 0 | Q43: =IF(ISERROR(P43/$P$54),0,P43/$P$54) -> 0
B44: =IF(ISBLANK(B15),"",B15) -> 0 | C44: ='7A Sales Y1'!C44 -> 0 | D44: =D15 -> 0 | E44: 0 | F44: 0 | G44: 0 | H44: 0 | I44: 0 | J44: 0 | K44: 0 | L44: 0 | M44: 0 | N44: 0 | O44: 0
D45: =$C$44*D44 -> 0 | E45: =$C$44*E44 -> 0 | F45: =$C$44*F44 -> 0 | G45: 0 | H45: 0 | I45: 0 | J45: 0 | K45: 0 | L45: 0 | M45: 0 | N45: 0 | O45: 0 | P45: =SUM(D45:O45) -> 0 | Q45: =IF(ISERROR(P45/$P$54),0,P45/$P$54) -> 0
B46: =IF(ISBLANK(B17),"",B17) -> 0 | C46: ='7A Sales Y1'!C46 -> 0 | D46: =D17 -> 0 | E46: 0 | F46: 0 | G46: 0 | H46: 0 | I46: 0 | J46: 0 | K46: 0 | L46: 0 | M46: 0 | N46: 0 | O46: 0
D47: =$C$46*D46 -> 0 | E47: =$C$46*E46 -> 0 | F47: 0 | G47: 0 | H47: 0 | I47: 0 | J47: 0 | K47: 0 | L47: 0 | M47: 0 | N47: 0 | O47: 0 | P47: =SUM(D47:O47) -> 0 | Q47: =IF(ISERROR(P47/$P$54),0,P47/$P$54) -> 0
B48: =IF(ISBLANK(B19),"",B19) -> 0 | C48: ='7A Sales Y1'!C48 -> 0 | D48: =D19 -> 0 | E48: 0 | F48: 0 | G48: 0 | H48: 0 | I48: 0 | J48: 0 | K48: 0 | L48: 0 | M48: 0 | N48: 0 | O48: 0
D49: =$C$48*D48 -> 0 | E49: =$C$48*E48 -> 0 | F49: 0 | G49: 0 | H49: 0 | I49: 0 | J49: 0 | K49: 0 | L49: 0 | M49: 0 | N49: 0 | O49: 0 | P49: =SUM(D49:O49) -> 0 | Q49: =IF(ISERROR(P49/$P$54),0,P49/$P$54) -> 0
B50: =IF(ISBLANK(B21),"",B21) -> 0 | C50: ='7A Sales Y1'!C50 -> 0 | D50: =D21 -> 0 | E50: 0 | F50: 0 | G50: 0 | H50: 0 | I50: 0 | J50: 0 | K50: 0 | L50: 0 | M50: 0 | N50: 0 | O50: 0
D51: =$C$50*D50 -> 0 | E51: =$C$50*E50 -> 0 | F51: 0 | G51: 0 | H51: 0 | I51: 0 | J51: 0 | K51: 0 | L51: 0 | M51: 0 | N51: 0 | O51: 0 | P51: =SUM(D51:O51) -> 0 | Q51: =IF(ISERROR(P51/$P$54),0,P51/$P$54) -> 0
B52: =IF(ISBLANK(B23),"",B23) -> 0 | C52: ='7A Sales Y1'!C52 -> 0 | D52: =D23 -> 0 | E52: 0 | F52: 0 | G52: 0 | H52: 0 | I52: 0 | J52: 0 | K52: 0 | L52: 0 | M52: 0 | N52: 0 | O52: 0
D53: =$C$52*D52 -> 0 | E53: =$C$52*E52 -> 0 | F53: 0 | G53: 0 | H53: 0 | I53: 0 | J53: 0 | K53: 0 | L53: 0 | M53: 0 | N53: 0 | O53: 0 | P53: =SUM(D53:O53) -> 0 | Q53: =IF(ISERROR(P53/$P$54),0,P53/$P$54) -> 0
B54: Total Paid | D54: =($C$34*D34)+($C$36*D36)+($C$38*D38)+($C$40*D40)+($C$42*D42)+($C$44*D44)+($C$46*D46)+($C$48*D48)+($C$50*D50)+($C$52*D52) -> 0 | E54: =($C$34*E34)+($C$36*E36)+($C$38*E38)+($C$40*E40)+($C$42*E42)+($C$44*E44)+($C$46*E46)+($C$48*E48)+($C$50*E50)+($C$52*E52) -> 0 | F54: 0 | G54: 0 | H54: 0 | I54: 0 | J54: 0 | K54: 0 | L54: 0 | M54: 0 | N54: 0 | O54: 0 | P54: =SUM(D54:O54) -> 0 | Q54: =+Q35+Q37+Q39+Q41+Q43+Q45+Q47+Q49+Q51+Q53 -> 0
B55: Gross Margin % | D55: =IF(ISERROR((D25-D54)/D25),0,(D25-D54)/D25) -> 0 | E55: 0 | F55: 0 | G55: 0 | H55: 0 | I55: 0 | J55: 0 | K55: 0 | L55: 0 | M55: 0 | N55: 0 | O55: 0 | P55: 0 | Q55: =IF(AND(Q54>0,Q54<>100%),"Error","") -> 
B56: Markup% | D56: =IF(ISERROR(D25/D54-1),"",D25/D54-1) -> 
B57: Sales ex GST | D57: =D25*GSTInclusiveToExclusive -> 0 | E57: 0 | F57: 0 | G57: 0 | H57: 0 | I57: 0 | J57: 0 | K57: 0 | L57: 0 | M57: 0 | N57: 0 | O57: 0 | P57: =SUM(D57:O57) -> 0
B59: Debtors | C59: ='9B Financials Y2'!N7 -> 0 | D59: =$C$59+SUM($D25:D25)-SUM($D31:D31) -> 0 | E59: =$C$59+SUM($D25:E25)-SUM($D31:E31) -> 0 | F59: =$C$59+SUM($D25:F25)-SUM($D31:F31) -> 0 | G59: =$C$59+SUM($D25:G25)-SUM($D31:G31) -> 0 | H59: =$C$59+SUM($D25:H25)-SUM($D31:H31) -> 0 | I59: =$C$59+SUM($D25:I25)-SUM($D31:I31) -> 0 | J59: =$C$59+SUM($D25:J25)-SUM($D31:J31) -> 0 | K59: =$C$59+SUM($D25:K25)-SUM($D31:K31) -> 0 | L59: =$C$59+SUM($D25:L25)-SUM($D31:L31) -> 0 | M59: =$C$59+SUM($D25:M25)-SUM($D31:M31) -> 0 | N59: =$C$59+SUM($D25:N25)-SUM($D31:N31) -> 0 | O59: =$C$59+SUM($D25:O25)-SUM($D31:O31) -> 0

Sheet 8B Cash flow Y2
B1: APPENDIX 8B | P1: CPI (Inflation)
B2: CASHFLOW BUDGET | D2: Year 2 | F2: =+'7A Sales Y1'!H2 -> Test Business ABN 123456789
B3: Receipts | C3: ='6B HH Bud Y2'!B3 -> 2014-07-01 | D3: ='6B HH Bud Y2'!C3 -> 2014-08-01 | E3: ='6B HH Bud Y2'!D3 -> 2014-09-01 | F3: ='6B HH Bud Y2'!E3 -> 2014-10-01 | G3: ='6B HH Bud Y2'!F3 -> 2014-11-01 | H3: ='6B HH Bud Y2'!G3 -> 2014-12-01 | I3: ='6B HH Bud Y2'!H3 -> 2015-01-01 | J3: ='6B HH Bud Y2'!I3 -> 2015-02-01 | K3: ='6B HH Bud Y2'!J3 -> 2015-03-01 | L3: ='6B HH Bud Y2'!K3 -> 2015-04-01 | M3: ='6B HH Bud Y2'!L3 -> 2015-05-01 | N3: ='6B HH Bud Y2'!M3 -> 2015-06-01 | O3: Totals
B4: Total Sales | C4: ='7B Sales Y2'!D31 -> 0 | D4: ='7B Sales Y2'!E31 -> 0 | E4: ='7B Sales Y2'!F31 -> 0 | F4: ='7B Sales Y2'!G31 -> 0 | G4: ='7B Sales Y2'!H31 -> 0 | H4: ='7B Sales Y2'!I31 -> 0 | I4: ='7B Sales Y2'!J31 -> 0 | J4: ='7B Sales Y2'!K31 -> 0 | K4: ='7B Sales Y2'!L31 -> 0 | L4: ='7B Sales Y2'!M31 -> 0 | M4: ='7B Sales Y2'!N31 -> 0 | N4: ='7B Sales Y2'!O31 -> 0 | O4: =SUM(C4:N4) -> 0
B5: NA | O5: =SUM(C5:N5) -> 0
B6: NA
B7: Capital input | O7: =SUM(C7:N7) -> 0
B8: Spare | O8: =SUM(C8:N8) -> 0
B9: Spare | O9: =SUM(C9:N9) -> 0
B10: Total Receipts | C10: =SUM(C4:C9)-C6 -> 0 | D10: =SUM(D4:D9)-D6 -> 0 | E10: 0 | F10: 0 | G10: 0 | H10: 0 | I10: 0 | J10: 0 | K10: 0 | L10: 0 | M10: 0 | N10: 0 | O10: =SUM(O4:O9) -> 0
B11: GST Collected | C11: =C4*GSTPart -> 0 | D11: 0 | E11: 0 | F11: 0 | G11: 0 | H11: 0 | I11: 0 | J11: 0 | K11: 0 | L11: 0 | M11: 0 | N11: 0 | O11: =SUM(C11:N11) -> 0
B13: Variable Expenses
B14: Purchase of Materials | C14: ='7B Sales Y2'!D54 -> 0 | D14: ='7B Sales Y2'!E54 -> 0 | E14: ='7B Sales Y2'!F54 -> 0 | F14: ='7B Sales Y2'!G54 -> 0 | G14: ='7B Sales Y2'!H54 -> 0 | H14: ='7B Sales Y2'!I54 -> 0 | I14: ='7B Sales Y2'!J54 -> 0 | J14: ='7B Sales Y2'!K54 -> 0 | K14: ='7B Sales Y2'!L54 -> 0 | L14: ='7B Sales Y2'!M54 -> 0 | M14: ='7B Sales Y2'!N54 -> 0 | N14: ='7B Sales Y2'!O54 -> 0 | O14: =SUM(C14:N14) -> 0
B15: GST Paid on COGS | C15: =C14*GSTPart -> 0 | D15: 0 | E15: 0 | F15: 0 | G15: 0 | H15: 0 | I15: 0 | J15: 0 | K15: 0 | L15: 0 | M15: 0 | N15: 0 | O15: =SUM(C15:N15) -> 0
P16: Assets / Liabilities % Split
B17: ='8A Cash flow Y1'!B17 -> Overhead cash-out (inc GST)
B18: Accountant, Bookkeeper, Advisors | O18: =SUM(C18:N18) -> 0 | P18: Household | Q18: Business
B19: Advertising & Promotion | C19: ='2 MAP Y2'!C48 -> 0 | D19: ='2 MAP Y2'!D48 -> 0 | E19: ='2 MAP Y2'!E48 -> 0 | F19: ='2 MAP Y2'!F48 -> 0 | G19: ='2 MAP Y2'!G48 -> 0 | H19: ='2 MAP Y2'!H48 -> 0 | I19: ='2 MAP Y2'!I48 -> 0 | J19: ='2 MAP Y2'!J48 -> 0 | K19: ='2 MAP Y2'!K48 -> 0 | L19: ='2 MAP Y2'!L48 -> 0 | M19: ='2 MAP Y2'!M48 -> 0 | N19: ='2 MAP Y2'!N48 -> 0 | O19: =SUM(C19:N19) -> 0
B20: Car Insurance | C20: ='8A Cash flow Y1'!C20*(1+CPI) -> 0 | D20: ='8A Cash flow Y1'!D20*(1+CPI) -> 0 | E20: ='8A Cash flow Y1'!E20*(1+CPI) -> 0 | F20: ='8A Cash flow Y1'!F20*(1+CPI) -> 0 | G20: ='8A Cash flow Y1'!G20*(1+CPI) -> 0 | H20: ='8A Cash flow Y1'!H20*(1+CPI) -> 0 | I20: ='8A Cash flow Y1'!I20*(1+CPI) -> 0 | J20: ='8A Cash flow Y1'!J20*(1+CPI) -> 0 | K20: ='8A Cash flow Y1'!K20*(1+CPI) -> 0 | L20: ='8A Cash flow Y1'!L20*(1+CPI) -> 0 | M20: ='8A Cash flow Y1'!M20*(1+CPI) -> 0 | N20: ='8A Cash flow Y1'!N20*(1+CPI) -> 0 | O20: =SUM(C20:N20) -> 0 | P20: =100%-Q20 -> 1 | Q20: =IF(ISERROR(O20/SUM('6B HH Bud Y2'!N25+'8B Cash flow Y2'!O20)),0,O20/SUM('6B HH Bud Y2'!N25+'8B Cash flow Y2'!O20)) -> 0 | R20: =IF(P20+Q20<>100%,"ERROR","OK") -> OK
B21: Car Registration | C21: ='8A Cash flow Y1'!C21*(1+CPI) -> 0 | D21: ='8A Cash flow Y1'!D21*(1+CPI) -> 0 | E21: ='8A Cash flow Y1'!E21*(1+CPI) -> 0 | F21: ='8A Cash flow Y1'!F21*(1+CPI) -> 0 | G21: ='8A Cash flow Y1'!G21*(1+CPI) -> 0 | H21: ='8A Cash flow Y1'!H21*(1+CPI) -> 0 | I21: ='8A Cash flow Y1'!I21*(1+CPI) -> 0 | J21: ='8A Cash flow Y1'!J21*(1+CPI) -> 0 | K21: ='8A Cash flow Y1'!K21*(1+CPI) -> 0 | L21: ='8A Cash flow Y1'!L21*(1+CPI) -> 0 | M21: ='8A Cash flow Y1'!M21*(1+CPI) -> 0 | N21: ='8A Cash flow Y1'!N21*(1+CPI) -> 0 | O21: 0 | P21: =100%-Q21 -> 1 | Q21: =IF(ISERROR(O21/SUM('6B HH Bud Y2'!N26+'8B Cash flow Y2'!O21)),0,O21/SUM('6B HH Bud Y2'!N26+'8B Cash flow Y2'!O21)) -> 0 | R21: =IF(P21+Q21<>100%,"ERROR","OK") -> OK
B22: Petrol & Servicing | C22: ='8A Cash flow Y1'!C22*(1+CPI) -> 0 | D22: ='8A Cash flow Y1'!D22*(1+CPI) -> 0 | E22: ='8A Cash flow Y1'!E22*(1+CPI) -> 0 | F22: ='8A Cash flow Y1'!F22*(1+CPI) -> 0 | G22: ='8A Cash flow Y1'!G22*(1+CPI) -> 0 | H22: ='8A Cash flow Y1'!H22*(1+CPI) -> 0 | I22: ='8A Cash flow Y1'!I22*(1+CPI) -> 0 | J22: ='8A Cash flow Y1'!J22*(1+CPI) -> 0 | K22: ='8A Cash flow Y1'!K22*(1+CPI) -> 0 | L22: ='8A Cash flow Y1'!L22*(1+CPI) -> 0 | M22: ='8A Cash flow Y1'!M22*(1+CPI) -> 0 | N22: ='8A Cash flow Y1'!N22*(1+CPI) -> 0 | O22: =ROUND(SUM(C22:N22),0) -> 0 | P22: =100%-Q22 -> 1 | Q22: =IF(ISERROR(O22/SUM('6B HH Bud Y2'!N27+'8B Cash flow Y2'!O22)),0,O22/SUM('6B HH Bud Y2'!N27+'8B Cash flow Y2'!O22)) -> 0 | R22: =IF(P22+Q22<>100%,"ERROR","OK") -> OK
B23: Heating & Lighting | C23: ='8A Cash flow Y1'!C23*(1+CPI) -> 0 | D23: ='8A Cash flow Y1'!D23*(1+CPI) -> 0 | E23: ='8A Cash flow Y1'!E23*(1+CPI) -> 0 | F23: ='8A Cash flow Y1'!F23*(1+CPI) -> 0 | G23: ='8A Cash flow Y1'!G23*(1+CPI) -> 0 | H23: ='8A Cash flow Y1'!H23*(1+CPI) -> 0 | I23: ='8A Cash flow Y1'!I23*(1+CPI) -> 0 | J23: ='8A Cash flow Y1'!J23*(1+CPI) -> 0 | K23: ='8A Cash flow Y1'!K23*(1+CPI) -> 0 | L23: ='8A Cash flow Y1'!L23*(1+CPI) -> 0 | M23: ='8A Cash flow Y1'!M23*(1+CPI) -> 0 | N23: ='8A Cash flow Y1'!N23*(1+CPI) -> 0 | O23: 0
B24: Fees & Licences | C24: ='8A Cash flow Y1'!C24*(1+CPI) -> 0 | D24: ='8A Cash flow Y1'!D24*(1+CPI) -> 0 | E24: ='8A Cash flow Y1'!E24*(1+CPI) -> 0 | F24: ='8A Cash flow Y1'!F24*(1+CPI) -> 0 | G24: ='8A Cash flow Y1'!G24*(1+CPI) -> 0 | H24: ='8A Cash flow Y1'!H24*(1+CPI) -> 0 | I24: ='8A Cash flow Y1'!I24*(1+CPI) -> 0 | J24: ='8A Cash flow Y1'!J24*(1+CPI) -> 0 | K24: ='8A Cash flow Y1'!K24*(1+CPI) -> 0 | L24: ='8A Cash flow Y1'!L24*(1+CPI) -> 0 | M24: ='8A Cash flow Y1'!M24*(1+CPI) -> 0 | N24: ='8A Cash flow Y1'!N24*(1+CPI) -> 0 | O24: 0
B25: Post, Printing,Stationery | C25: ='8A Cash flow Y1'!C25*(1+CPI) -> 0 | D25: ='8A Cash flow Y1'!D25*(1+CPI) -> 0 | E25: ='8A Cash flow Y1'!E25*(1+CPI) -> 0 | F25: ='8A Cash flow Y1'!F25*(1+CPI) -> 0 | G25: ='8A Cash flow Y1'!G25*(1+CPI) -> 0 | H25: ='8A Cash flow Y1'!H25*(1+CPI) -> 0 | I25: ='8A Cash flow Y1'!I25*(1+CPI) -> 0 | J25: ='8A Cash flow Y1'!J25*(1+CPI) -> 0 | K25: ='8A Cash flow Y1'!K25*(1+CPI) -> 0 | L25: ='8A Cash flow Y1'!L25*(1+CPI) -> 0 | M25: ='8A Cash flow Y1'!M25*(1+CPI) -> 0 | N25: ='8A Cash flow Y1'!N25*(1+CPI) -> 0 | O25: 0
B26: Telephone | C26: ='8A Cash flow Y1'!C26*(1+CPI) -> 0 | D26: ='8A Cash flow Y1'!D26*(1+CPI) -> 0 | E26: ='8A Cash flow Y1'!E26*(1+CPI) -> 0 | F26: ='8A Cash flow Y1'!F26*(1+CPI) -> 0 | G26: ='8A Cash flow Y1'!G26*(1+CPI) -> 0 | H26: ='8A Cash flow Y1'!H26*(1+CPI) -> 0 | I26: ='8A Cash flow Y1'!I26*(1+CPI) -> 0 | J26: ='8A Cash flow Y1'!J26*(1+CPI) -> 0 | K26: ='8A Cash flow Y1'!K26*(1+CPI) -> 0 | L26: ='8A Cash flow Y1'!L26*(1+CPI) -> 0 | M26: ='8A Cash flow Y1'!M26*(1+CPI) -> 0 | N26: ='8A Cash flow Y1'!N26*(1+CPI) -> 0 | O26: 0
B27: Internet / Web Hosting | C27: ='8A Cash flow Y1'!C27*(1+CPI) -> 0 | D27: ='8A Cash flow Y1'!D27*(1+CPI) -> 0 | E27: ='8A Cash flow Y1'!E27*(1+CPI) -> 0 | F27: ='8A Cash flow Y1'!F27*(1+CPI) -> 0 | G27: ='8A Cash flow Y1'!G27*(1+CPI) -> 0 | H27: ='8A Cash flow Y1'!H27*(1+CPI) -> 0 | I27: ='8A Cash flow Y1'!I27*(1+CPI) -> 0 | J27: ='8A Cash flow Y1'!J27*(1+CPI) -> 0 | K27: ='8A Cash flow Y1'!K27*(1+CPI) -> 0 | L27: ='8A Cash flow Y1'!L27*(1+CPI) -> 0 | M27: ='8A Cash flow Y1'!M27*(1+CPI) -> 0 | N27: ='8A Cash flow Y1'!N27*(1+CPI) -> 0 | O27: 0
B28: Mobile | C28: ='8A Cash flow Y1'!C28*(1+CPI) -> 0 | D28: ='8A Cash flow Y1'!D28*(1+CPI) -> 0 | E28: ='8A Cash flow Y1'!E28*(1+CPI) -> 0 | F28: ='8A Cash flow Y1'!F28*(1+CPI) -> 0 | G28: ='8A Cash flow Y1'!G28*(1+CPI) -> 0 | H28: ='8A Cash flow Y1'!H28*(1+CPI) -> 0 | I28: ='8A Cash flow Y1'!I28*(1+CPI) -> 0 | J28: ='8A Cash flow Y1'!J28*(1+CPI) -> 0 | K28: ='8A Cash flow Y1'!K28*(1+CPI) -> 0 | L28: ='8A Cash flow Y1'!L28*(1+CPI) -> 0 | M28: ='8A Cash flow Y1'!M28*(1+CPI) -> 0 | N28: ='8A Cash flow Y1'!N28*(1+CPI) -> 0 | O28: 0
B29: Rates | C29: ='8A Cash flow Y1'!C29*(1+CPI) -> 0 | D29: ='8A Cash flow Y1'!D29*(1+CPI) -> 0 | E29: ='8A Cash flow Y1'!E29*(1+CPI) -> 0 | F29: ='8A Cash flow Y1'!F29*(1+CPI) -> 0 | G29: ='8A Cash flow Y1'!G29*(1+CPI) -> 0 | H29: ='8A Cash flow Y1'!H29*(1+CPI) -> 0 | I29: ='8A Cash flow Y1'!I29*(1+CPI) -> 0 | J29: ='8A Cash flow Y1'!J29*(1+CPI) -> 0 | K29: ='8A Cash flow Y1'!K29*(1+CPI) -> 0 | L29: ='8A Cash flow Y1'!L29*(1+CPI) -> 0 | M29: ='8A Cash flow Y1'!M29*(1+CPI) -> 0 | N29: ='8A Cash flow Y1'!N29*(1+CPI) -> 0 | O29: 0
B30: Rent | C30: ='8A Cash flow Y1'!C30*(1+CPI) -> 0 | D30: ='8A Cash flow Y1'!D30*(1+CPI) -> 0 | E30: ='8A Cash flow Y1'!E30*(1+CPI) -> 0 | F30: ='8A Cash flow Y1'!F30*(1+CPI) -> 0 | G30: ='8A Cash flow Y1'!G30*(1+CPI) -> 0 | H30: ='8A Cash flow Y1'!H30*(1+CPI) -> 0 | I30: ='8A Cash flow Y1'!I30*(1+CPI) -> 0 | J30: ='8A Cash flow Y1'!J30*(1+CPI) -> 0 | K30: ='8A Cash flow Y1'!K30*(1+CPI) -> 0 | L30: ='8A Cash flow Y1'!L30*(1+CPI) -> 0 | M30: ='8A Cash flow Y1'!M30*(1+CPI) -> 0 | N30: ='8A Cash flow Y1'!N30*(1+CPI) -> 0 | O30: 0
B31: ='8A Cash flow Y1'!B31 -> Taxi / Hire Car | C31: ='8A Cash flow Y1'!C31*(1+CPI) -> 0 | D31: ='8A Cash flow Y1'!D31*(1+CPI) -> 0 | E31: ='8A Cash flow Y1'!E31*(1+CPI) -> 0 | F31: ='8A Cash flow Y1'!F31*(1+CPI) -> 0 | G31: ='8A Cash flow Y1'!G31*(1+CPI) -> 0 | H31: ='8A Cash flow Y1'!H31*(1+CPI) -> 0 | I31: ='8A Cash flow Y1'!I31*(1+CPI) -> 0 | J31: ='8A Cash flow Y1'!J31*(1+CPI) -> 0 | K31: ='8A Cash flow Y1'!K31*(1+CPI) -> 0 | L31: ='8A Cash flow Y1'!L31*(1+CPI) -> 0 | M31: ='8A Cash flow Y1'!M31*(1+CPI) -> 0 | N31: ='8A Cash flow Y1'!N31*(1+CPI) -> 0 | O31: 0
B32: ='8A Cash flow Y1'!B32 -> Spare | O32: 0
B33: ='8A Cash flow Y1'!B33 -> Spare | O33: 0
B34: Bank Charges | O34: 0 | P34: GST FREE
B35: Gross Wages (Co's only) | O35: 0 | P35: GST FREE
B36: Super Expense (Co's only) | C36: =IF(C35<450,"",SUM(C35*0.09)) ->  | O36: =SUM(C36:N36) -> 0 | P36: GST FREE
B37: Drawings (Personal) | C37: ='6B HH Bud Y2'!B9 -> 0 | D37: ='6B HH Bud Y2'!C9 -> 0 | E37: ='6B HH Bud Y2'!D9 -> 0 | F37: ='6B HH Bud Y2'!E9 -> 0 | G37: ='6B HH Bud Y2'!F9 -> 0 | H37: ='6B HH Bud Y2'!G9 -> 0 | I37: ='6B HH Bud Y2'!H9 -> 0 | J37: ='6B HH Bud Y2'!I9 -> 0 | K37: ='6B HH Bud Y2'!J9 -> 0 | L37: ='6B HH Bud Y2'!K9 -> 0 | M37: ='6B HH Bud Y2'!L9 -> 0 | N37: ='6B HH Bud Y2'!M9 -> 0 | O37: 0 | P37: GST FREE
B38: Owner's net salary (companies only) | C38: ='6B HH Bud Y2'!B10 -> 0 | D38: ='6B HH Bud Y2'!C10 -> 0 | E38: ='6B HH Bud Y2'!D10 -> 0 | F38: ='6B HH Bud Y2'!E10 -> 0 | G38: ='6B HH Bud Y2'!F10 -> 0 | H38: ='6B HH Bud Y2'!G10 -> 0 | I38: ='6B HH Bud Y2'!H10 -> 0 | J38: ='6B HH Bud Y2'!I10 -> 0 | K38: ='6B HH Bud Y2'!J10 -> 0 | L38: ='6B HH Bud Y2'!K10 -> 0 | M38: ='6B HH Bud Y2'!L10 -> 0 | N38: ='6B HH Bud Y2'!M10 -> 0 | O38: 0 | P38: GST FREE
B39: Tax expense of owner's salary | C39: =IF(C38<TaxFreeThreshold/12,0,IF(C38<Options!$I$23,Options!$C$22*(C38-Options!$I$22),IF(C38<Options!$I$24,Options!$J$23+(C38-Options!$I$23)*Options!$C$23,IF(C38<Options!$I$25,Options!$J$24+(C38-Options!$I$24)*Options!$C$24,Options!$J$25+(C38-Options!$I$25)*Options!$C$25)))) -> 0 | D39: =IF(D38<Options!$I$22,0,IF(D38<Options!$I$23,Options!$C$22*(D38-Options!$I$22),IF(D38<Options!$I$24,Options!$J$23+(D38-Options!$I$23)*Options!$C$23,IF(D38<Options!$I$25,Options!$J$24+(D38-Options!$I$24)*Options!$C$24,Options!$J$25+(D38-Options!$I$25)*Options!$C$25)))) -> 0 | E39: =IF(E38<Options!$I$22,0,IF(E38<Options!$I$23,Options!$C$22*(E38-Options!$I$22),IF(E38<Options!$I$24,Options!$J$23+(E38-Options!$I$23)*Options!$C$23,IF(E38<Options!$I$25,Options!$J$24+(E38-Options!$I$24)*Options!$C$24,Options!$J$25+(E38-Options!$I$25)*Options!$C$25)))) -> 0 | F39: =IF(F38<Options!$I$22,0,IF(F38<Options!$I$23,Options!$C$22*(F38-Options!$I$22),IF(F38<Options!$I$24,Options!$J$23+(F38-Options!$I$23)*Options!$C$23,IF(F38<Options!$I$25,Options!$J$24+(F38-Options!$I$24)*Options!$C$24,Options!$J$25+(F38-Options!$I$25)*Options!$C$25)))) -> 0 | G39: =IF(G38<Options!$I$22,0,IF(G38<Options!$I$23,Options!$C$22*(G38-Options!$I$22),IF(G38<Options!$I$24,Options!$J$23+(G38-Options!$I$23)*Options!$C$23,IF(G38<Options!$I$25,Options!$J$24+(G38-Options!$I$24)*Options!$C$24,Options!$J$25+(G38-Options!$I$25)*Options!$C$25)))) -> 0 | H39: =IF(H38<Options!$I$22,0,IF(H38<Options!$I$23,Options!$C$22*(H38-Options!$I$22),IF(H38<Options!$I$24,Options!$J$23+(H38-Options!$I$23)*Options!$C$23,IF(H38<Options!$I$25,Options!$J$24+(H38-Options!$I$24)*Options!$C$24,Options!$J$25+(H38-Options!$I$25)*Options!$C$25)))) -> 0 | I39: =IF(I38<Options!$I$22,0,IF(I38<Options!$I$23,Options!$C$22*(I38-Options!$I$22),IF(I38<Options!$I$24,Options!$J$23+(I38-Options!$I$23)*Options!$C$23,IF(I38<Options!$I$25,Options!$J$24+(I38-Options!$I$24)*Options!$C$24,Options!$J$25+(I38-Options!$I$25)*Options!$C$25)))) -> 0 | J39: =IF(J38<Options!$I$22,0,IF(J38<Options!$I$23,Options!$C$22*(J38-Options!$I$22),IF(J38<Options!$I$24,Options!$J$23+(J38-Options!$I$23)*Options!$C$23,IF(J38<Options!$I$25,Options!$J$24+(J38-Options!$I$24)*Options!$C$24,Options!$J$25+(J38-Options!$I$25)*Options!$C$25)))) -> 0 | K39: =IF(K38<Options!$I$22,0,IF(K38<Options!$I$23,Options!$C$22*(K38-Options!$I$22),IF(K38<Options!$I$24,Options!$J$23+(K38-Options!$I$23)*Options!$C$23,IF(K38<Options!$I$25,Options!$J$24+(K38-Options!$I$24)*Options!$C$24,Options!$J$25+(K38-Options!$I$25)*Options!$C$25)))) -> 0 | L39: =IF(L38<Options!$I$22,0,IF(L38<Options!$I$23,Options!$C$22*(L38-Options!$I$22),IF(L38<Options!$I$24,Options!$J$23+(L38-Options!$I$23)*Options!$C$23,IF(L38<Options!$I$25,Options!$J$24+(L38-Options!$I$24)*Options!$C$24,Options!$J$25+(L38-Options!$I$25)*Options!$C$25)))) -> 0 | M39: =IF(M38<Options!$I$22,0,IF(M38<Options!$I$23,Options!$C$22*(M38-Options!$I$22),IF(M38<Options!$I$24,Options!$J$23+(M38-Options!$I$23)*Options!$C$23,IF(M38<Options!$I$25,Options!$J$24+(M38-Options!$I$24)*Options!$C$24,Options!$J$25+(M38-Options!$I$25)*Options!$C$25)))) -> 0 | N39: =IF(N38<Options!$I$22,0,IF(N38<Options!$I$23,Options!$C$22*(N38-Options!$I$22),IF(N38<Options!$I$24,Options!$J$23+(N38-Options!$I$23)*Options!$C$23,IF(N38<Options!$I$25,Options!$J$24+(N38-Options!$I$24)*Options!$C$24,Options!$J$25+(N38-Options!$I$25)*Options!$C$25)))) -> 0 | O39: =SUM(C39:N39) -> 0 | P39: GST FREE
B40: Super expense, owner's salary | C40: =9%*(C38+C39) -> 0 | D40: =9%*(D38+D39) -> 0 | E40: 0 | F40: 0 | G40: 0 | H40: 0 | I40: 0 | J40: 0 | K40: 0 | L40: 0 | M40: 0 | N40: 0 | O40: 0 | P40: GST FREE
B41: Total Overhead Expenses | C41: =SUM(C18:C37) -> 0 | D41: =SUM(D18:D37) -> 0 | E41: 0 | F41: 0 | G41: 0 | H41: 0 | I41: 0 | J41: 0 | K41: 0 | L41: 0 | M41: 0 | N41: 0 | O41: =SUM(O18:O37) -> 0 | P41: Loan Amt owing at beginning of year | Q41: Interest paid this year | R41: Principal Paid this year | S41: Balance of principal
B42: Other expenses
B43: Formal Business Loan Pmts | C43: ='5 Source of Funds'!$K$15 -> 0 | D43: ='5 Source of Funds'!$K$15 -> 0 | E43: ='5 Source of Funds'!$K$15 -> 0 | F43: ='5 Source of Funds'!$K$15 -> 0 | G43: ='5 Source of Funds'!$K$15 -> 0 | H43: ='5 Source of Funds'!$K$15 -> 0 | I43: ='5 Source of Funds'!$K$15 -> 0 | J43: ='5 Source of Funds'!$K$15 -> 0 | K43: ='5 Source of Funds'!$K$15 -> 0 | L43: ='5 Source of Funds'!$K$15 -> 0 | M43: ='5 Source of Funds'!$K$15 -> 0 | N43: ='5 Source of Funds'!$K$15 -> 0 | O43: =SUM(C43:N43) -> 0 | P43: ='8A Cash flow Y1'!S43 -> 0 | Q43: =IF(ISERROR('5 Source of Funds'!K17/'5 Source of Funds'!K12),0,'5 Source of Funds'!K17/'5 Source of Funds'!K12) -> 0 | R43: =O43-Q43 -> 0 | S43: =P43-R43 -> 0
B44: Non Formal Loan Pmts | C44: ='5 Source of Funds'!$K$31 -> 0 | D44: ='5 Source of Funds'!$K$31 -> 0 | E44: ='5 Source of Funds'!$K$31 -> 0 | F44: ='5 Source of Funds'!$K$31 -> 0 | G44: ='5 Source of Funds'!$K$31 -> 0 | H44: ='5 Source of Funds'!$K$31 -> 0 | I44: ='5 Source of Funds'!$K$31 -> 0 | J44: ='5 Source of Funds'!$K$31 -> 0 | K44: ='5 Source of Funds'!$K$31 -> 0 | L44: ='5 Source of Funds'!$K$31 -> 0 | M44: ='5 Source of Funds'!$K$31 -> 0 | N44: ='5 Source of Funds'!$K$31 -> 0 | O44: 0 | P44: ='5 Source of Funds'!K27 -> 0 | Q44: =IF(ISERROR('5 Source of Funds'!K33/'5 Source of Funds'!K28),0,'5 Source of Funds'!K33/'5 Source of Funds'!K28) -> 0 | R44: =O44-Q44 -> 0 | S44: =P44-R44 -> 0
B45: Insurance (Specify *1) | O45: 0 | P45: =IF(Q43<0,"Bus pmts exceed loan","") -> 
B46: Insurance Public Liability | O46: 0 | P46: =IF(Q44<0,"Non formal pmts exceed loan","") -> 
B47: ='8A Cash flow Y1'!B47 -> Insurance (Specify *2) | O47: 0
B48: ='8A Cash flow Y1'!B48 -> Spare1 | O48: 0
B49: ='8A Cash flow Y1'!B49 -> Spare2 | O49: 0
B50: ='8A Cash flow Y1'!B50 -> Spare3 | O50: 0
B51: ='8A Cash flow Y1'!B51 -> Spare4 | O51: =SUM(C51:N51) -> 0
B52: Total Other Expenses | C52: =SUM(C43:C51) -> 0 | D52: =SUM(D43:D51) -> 0 | E52: 0 | F52: 0 | G52: 0 | H52: 0 | I52: 0 | J52: 0 | K52: 0 | L52: 0 | M52: 0 | N52: 0 | O52: 0
B53: Total Operational Cash-outs | C53: =C14+C41+C52 -> 0 | D53: =D14+D41+D52 -> 0 | E53: 0 | F53: 0 | G53: 0 | H53: 0 | I53: 0 | J53: 0 | K53: 0 | L53: 0 | M53: 0 | N53: 0 | O53: 0 | P53: =IF(O53>O10,"you need more income","") -> 
B54: GST Booked on Total Expenses | C54: =C15+((SUM(C18:C33)+SUM(C45:C51))*GSTPart) -> 0 | D54: 0 | E54: 0 | F54: 0 | G54: 0 | H54: 0 | I54: 0 | J54: 0 | K54: 0 | L54: 0 | M54: 0 | N54: 0 | O54: 0
B55: GST Booked on Assets Purchased
B56: GST Booked on stock build | C56: =C79 -> 0 | D56: =D79 -> 0 | E56: 0 | F56: 0 | G56: 0 | H56: 0 | I56: 0 | J56: 0 | K56: 0 | L56: 0 | M56: 0 | N56: 0 | O56: =SUM(C56:N56) -> 0
B57: Quarterly GST Remitted to ATO | C57: =C73 -> 0 | D57: =D73 -> 0 | E57: 0 | F57: 0 | G57: 0 | H57: 0 | I57: 0 | J57: 0 | K57: 0 | L57: 0 | M57: 0 | N57: 0 | O57: 0
B58: Assets Purchased | C58: =SUMIF('4 Depr&Assets'!$H$22:$H$24,12,'4 Depr&Assets'!$D$22:$D$24)+N("the first month of Y 2 is numbered 12") -> 0 | D58: =SUMIF('4 Depr&Assets'!$H$22:$H$24,13,'4 Depr&Assets'!$D$22:$D$24)+N("the first month of Y 2 is numbered 12") -> 0 | E58: =SUMIF('4 Depr&Assets'!$H$22:$H$24,14,'4 Depr&Assets'!$D$22:$D$24)+N("the first month of Y 2 is numbered 12") -> 0 | F58: =SUMIF('4 Depr&Assets'!$H$22:$H$24,15,'4 Depr&Assets'!$D$22:$D$24)+N("the first month of Y 2 is numbered 12") -> 0 | G58: =SUMIF('4 Depr&Assets'!$H$22:$H$24,16,'4 Depr&Assets'!$D$22:$D$24)+N("the first month of Y 2 is numbered 12") -> 0 | H58: =SUMIF('4 Depr&Assets'!$H$22:$H$24,17,'4 Depr&Assets'!$D$22:$D$24)+N("the first month of Y 2 is numbered 12") -> 0 | I58: =SUMIF('4 Depr&Assets'!$H$22:$H$24,18,'4 Depr&Assets'!$D$22:$D$24)+N("the first month of Y 2 is numbered 12") -> 0 | J58: =SUMIF('4 Depr&Assets'!$H$22:$H$24,19,'4 Depr&Assets'!$D$22:$D$24)+N("the first month of Y 2 is numbered 12") -> 0 | K58: =SUMIF('4 Depr&Assets'!$H$22:$H$24,20,'4 Depr&Assets'!$D$22:$D$24)+N("the first month of Y 2 is numbered 12") -> 0 | L58: =SUMIF('4 Depr&Assets'!$H$22:$H$24,21,'4 Depr&Assets'!$D$22:$D$24)+N("the first month of Y 2 is numbered 12") -> 0 | M58: =SUMIF('4 Depr&Assets'!$H$22:$H$24,22,'4 Depr&Assets'!$D$22:$D$24)+N("the first month of Y 2 is numbered 12") -> 0 | N58: =SUMIF('4 Depr&Assets'!$H$22:$H$24,23,'4 Depr&Assets'!$D$22:$D$24)+N("the first month of Y 2 is numbered 12") -> 0 | O58: =SUM(C58:N58) -> 0
B59: Cash effect of inventory | C59: =C77+C56 -> 0 | D59: 0 | E59: 0 | F59: 0 | G59: 0 | H59: 0 | I59: 0 | J59: 0 | K59: 0 | L59: 0 | M59: 0 | N59: 0 | O59: =SUM(C59:N59) -> 0
B60: Provision/payment - Income Tax | C60: ='9A Financials Y1'!F55 -> 0 | O60: 0
B61: Total Cash Out | C61: =C53+C57+C58+C59+C60 -> 0 | D61: =D53+D57+D58+D59+D60 -> 0 | E61: 0 | F61: 0 | G61: 0 | H61: 0 | I61: 0 | J61: 0 | K61: 0 | L61: 0 | M61: 0 | N61: 0 | O61: 0
B63: Net Cash In/Out for Mnth | C63: =C10-C53-C58-C59-C60-C57 -> 0 | D63: =D10-D53-D58-D59-D60-D57 -> 0 | E63: 0 | F63: 0 | G63: 0 | H63: 0 | I63: 0 | J63: 0 | K63: 0 | L63: 0 | M63: 0 | N63: 0 | O63: =SUM(C63:N63) -> 0
B65: Opening Balance | C65: ='8A Cash flow Y1'!O66 -> 0 | D65: =C66 -> 0 | E65: 0 | F65: 0 | G65: 0 | H65: 0 | I65: 0 | J65: 0 | K65: 0 | L65: 0 | M65: 0 | N65: 0 | O65: =+C65 -> 0
B66: Running Balance | C66: =C65+C63 -> 0 | D66: =D65+D63 -> 0 | E66: 0 | F66: 0 | G66: 0 | H66: 0 | I66: 0 | J66: 0 | K66: 0 | L66: 0 | M66: 0 | N66: 0 | O66: 0
B67: Loan - Interest only | C67: =C6 -> 0
B69: Accurate GST payment workings
B70: Financial Year Quarter | C70: =INDEX({3,3,3,4,4,4,1,1,1,2,2,2},1,MONTH(C$3)) -> 1 | D70: =INDEX({3,3,3,4,4,4,1,1,1,2,2,2},1,MONTH(D3)) -> 1 | E70: =INDEX({3,3,3,4,4,4,1,1,1,2,2,2},1,MONTH(E3)) -> 1 | F70: =INDEX({3,3,3,4,4,4,1,1,1,2,2,2},1,MONTH(F3)) -> 2 | G70: =INDEX({3,3,3,4,4,4,1,1,1,2,2,2},1,MONTH(G3)) -> 2 | H70: =INDEX({3,3,3,4,4,4,1,1,1,2,2,2},1,MONTH(H3)) -> 2 | I70: =INDEX({3,3,3,4,4,4,1,1,1,2,2,2},1,MONTH(I3)) -> 3 | J70: =INDEX({3,3,3,4,4,4,1,1,1,2,2,2},1,MONTH(J3)) -> 3 | K70: =INDEX({3,3,3,4,4,4,1,1,1,2,2,2},1,MONTH(K3)) -> 3 | L70: =INDEX({3,3,3,4,4,4,1,1,1,2,2,2},1,MONTH(L3)) -> 4 | M70: =INDEX({3,3,3,4,4,4,1,1,1,2,2,2},1,MONTH(M3)) -> 4 | N70: =INDEX({3,3,3,4,4,4,1,1,1,2,2,2},1,MONTH(N3)) -> 4 | O70: TOTALS
B71: Pay GST Quarter | C71: =INDEX({0,2,0,3,0,0,4,0,0,1,0,0},1,MONTH(C$3)) -> 4 | D71: =INDEX({0,2,0,3,0,0,4,0,0,1,0,0},1,MONTH(D$3)) -> 0 | E71: =INDEX({0,2,0,3,0,0,4,0,0,1,0,0},1,MONTH(E$3)) -> 0 | F71: =INDEX({0,2,0,3,0,0,4,0,0,1,0,0},1,MONTH(F$3)) -> 1 | G71: =INDEX({0,2,0,3,0,0,4,0,0,1,0,0},1,MONTH(G$3)) -> 0 | H71: =INDEX({0,2,0,3,0,0,4,0,0,1,0,0},1,MONTH(H$3)) -> 0 | I71: =INDEX({0,2,0,3,0,0,4,0,0,1,0,0},1,MONTH(I$3)) -> 0 | J71: =INDEX({0,2,0,3,0,0,4,0,0,1,0,0},1,MONTH(J$3)) -> 2 | K71: =INDEX({0,2,0,3,0,0,4,0,0,1,0,0},1,MONTH(K$3)) -> 0 | L71: =INDEX({0,2,0,3,0,0,4,0,0,1,0,0},1,MONTH(L$3)) -> 3 | M71: =INDEX({0,2,0,3,0,0,4,0,0,1,0,0},1,MONTH(M$3)) -> 0 | N71: =INDEX({0,2,0,3,0,0,4,0,0,1,0,0},1,MONTH(N$3)) -> 0
B72: GST Owed this month | C72: =C11-C54-C55+N("the result at the end of last year is carried forward")+'8A Cash flow Y1'!O72-'8A Cash flow Y1'!O73 -> 0 | D72: =D11-D54-D55 -> 0 | E72: =E11-E54-E55 -> 0 | F72: 0 | G72: 0 | H72: 0 | I72: 0 | J72: 0 | K72: 0 | L72: 0 | M72: 0 | N72: 0 | O72: =SUM(C72:N72) -> 0
B73: GST to pay | C73: =SUMIF($C70:C70,C71,$C72:C72) -> 0 | D73: =SUMIF($C70:D70,D71,$C72:D72) -> 0 | E73: =SUMIF($C70:E70,E71,$C72:E72) -> 0 | F73: =SUMIF($C70:F70,F71,$C72:F72) -> 0 | G73: =SUMIF($C70:G70,G71,$C72:G72) -> 0 | H73: =SUMIF($C70:H70,H71,$C72:H72) -> 0 | I73: =SUMIF($C70:I70,I71,$C72:I72) -> 0 | J73: =SUMIF($C70:J70,J71,$C72:J72) -> 0 | K73: =SUMIF($C70:K70,K71,$C72:K72) -> 0 | L73: =SUMIF($C70:L70,L71,$C72:L72) -> 0 | M73: =SUMIF($C70:M70,M71,$C72:M72) -> 0 | N73: =SUMIF($C70:N70,N71,$C72:N72) -> 0 | O73: =SUM(C73:N73) -> 0
B75: Inventory Levels
B76: Opening stock | C76: ='8A Cash flow Y1'!N78 -> 0 | D76: =C78 -> 0 | E76: =D78 -> 0 | F76: 0 | G76: 0 | H76: 0 | I76: 0 | J76: 0 | K76: 0 | L76: 0 | M76: 0 | N76: 0
B77: Change in stock
B78: Closing stock | C78: =C76+C77 -> 0 | D78: =D76+D77 -> 0 | E78: 0 | F78: 0 | G78: 0 | H78: 0 | I78: 0 | J78: 0 | K78: 0 | L78: 0 | M78: 0 | N78: 0
B79: GST paid due to change in stock | C79: =C77*GSTRate -> 0 | D79: 0 | E79: 0 | F79: 0 | G79: 0 | H79: 0 | I79: 0 | J79: 0 | K79: 0 | L79: 0 | M79: 0 | N79: 0

Sheet 9B Financials Y2
A1: APPENDIX 9B | K1: APPENDIX 10C
A2: =+'8A Cash flow Y1'!F2 -> Test Business ABN 123456789 | K2: =+A2 -> Test Business ABN 123456789
A3: Anticipated Profit and Loss Statement for Year 2 | K3: Balance Sheet for Year 2
N4: Opening Balance | P4: Closing Balance
A5: Income | K5: Current Assets
A6: Sales | E6: ='7B Sales Y2'!P25 -> 0 | K6: Money in Bank | N6: ='9A Financials Y1'!P6 -> 0 | Q6: ='8B Cash flow Y2'!O66 -> 0
A7: Less GST payable | E7: =E6*GSTPart -> 0 | F7: =E6-E7 -> 0 | K7: Debtors | N7: ='9A Financials Y1'!P7 -> 0 | Q7: ='7B Sales Y2'!P25-('7B Sales Y2'!P31-'9A Financials Y1'!P7) -> 0
F8: =F7 -> 0 | K8: Trading Stock | N8: ='8B Cash flow Y2'!C76 -> 0 | Q8: ='8B Cash flow Y2'!N78 -> 0
H9: % of Sales | I9: % of Sales | M9: Total current Assets | N9: =SUM(N6:N8) -> 0 | R9: =SUM(Q6:Q8) -> 0
A10: Less Variable Costs | K10: Non-Current Assets
H11: this year | I11: last year | K11: =+'4 Depr&Assets'!A9 -> Office Furniture / Fittings (brought into) | N11: ='9A Financials Y1'!Q12 -> 0 | P11: =+'4 Depr&Assets'!B9 -> 0
A12: =+'8A Cash flow Y1'!B14 -> Variable cash-out from Sales sheet | D12: ='8B Cash flow Y2'!O14 -> 0 | K12: Less: Accum Depreciation | P12: =+'4 Depr&Assets'!P9+'9A Financials Y1'!P12 -> 0 | Q12: =P11-P12 -> 0
A13: Less GST recoverable | D13: ='8B Cash flow Y2'!O15 -> 0 | K13: =+'4 Depr&Assets'!A10 -> Tools of trade (brought into) | N13: ='9A Financials Y1'!Q14 -> 0 | P13: =+'4 Depr&Assets'!B10 -> 0
K14: Less: Accum Depreciation | P14: =+'4 Depr&Assets'!P10+'9A Financials Y1'!P14 -> 0 | Q14: =P13-P14 -> 0
D15: =D12-D13 -> 0 | K15: ='4 Depr&Assets'!A11 -> Computer Equipment (brought into) | N15: ='9A Financials Y1'!Q16 -> 0 | P15: =+'4 Depr&Assets'!B11 -> 0
A16: Total Variable Costs | F16: =D15 -> 0 | H16: =IF(ISERROR(F16/$F$8),0,(F16/$F$8)) -> 0 | I16: ='9A Financials Y1'!H16 -> 0 | K16: Less: Accum Depreciation | P16: =+'4 Depr&Assets'!P11+'9A Financials Y1'!P16 -> 0 | Q16: =P15-P16 -> 0
K17: ='4 Depr&Assets'!A12 -> Motor Vehicle Brought Into (Business Portion) | N17: ='9A Financials Y1'!Q18 -> 0 | P17: =+'4 Depr&Assets'!B12 -> 0
K18: Less: Accum Depreciation | P18: =+'4 Depr&Assets'!P12+'9A Financials Y1'!P18 -> 0 | Q18: =P17-P18 -> 0
A19: Variable Margin | F19: =F8-F16 -> 0 | H19: =IF(ISERROR(F19/$F$8),0,(F19/$F$8)) -> 0 | I19: ='9A Financials Y1'!H19 -> 0 | K19: ='4 Depr&Assets'!A13 -> new computer | N19: ='9A Financials Y1'!Q20 -> 0 | P19: =+'4 Depr&Assets'!B13 -> 0
K20: Less: Accum Depreciation | P20: =+'4 Depr&Assets'!P13+'9A Financials Y1'!P20 -> 0 | Q20: =P19-P20 -> 0
A21: Less Expenses | K21: ='4 Depr&Assets'!A14 -> Spare1 | N21: ='9A Financials Y1'!Q22 -> 0 | P21: =+'4 Depr&Assets'!B14 -> 0
B22: =+'8A Cash flow Y1'!B18 -> Accountant, Bookkeeper, Advisors | E22: =+'8B Cash flow Y2'!O18*GSTInclusiveToExclusive -> 0 | H22: =IF(ISERROR(E22/$F$8),0,(E22/$F$8)) -> 0 | I22: ='9A Financials Y1'!H22 -> 0 | K22: Less: Accum Depreciation | P22: =+'4 Depr&Assets'!P14+'9A Financials Y1'!P22 -> 0 | Q22: =P21-P22 -> 0
B23: =+'8A Cash flow Y1'!B19 -> Advertising & Promotion | E23: =+'8B Cash flow Y2'!O19*GSTInclusiveToExclusive -> 0 | H23: =IF(ISERROR(E23/$F$8),0,(E23/$F$8)) -> 0 | I23: ='9A Financials Y1'!H23 -> 0 | K23: ='4 Depr&Assets'!A15 -> Spare2 | N23: ='9A Financials Y1'!Q24 -> 0 | P23: =+'4 Depr&Assets'!B15 -> 0
B24: Car Insurance | E24: =+'8B Cash flow Y2'!O20*GSTInclusiveToExclusive -> 0 | H24: =IF(ISERROR(E24/$F$8),0,(E24/$F$8)) -> 0 | I24: ='9A Financials Y1'!H24 -> 0 | K24: Less: Accum Depreciation | P24: =+'4 Depr&Assets'!P15+'9A Financials Y1'!P24 -> 0 | Q24: =P23-P24 -> 0
B25: Car registration | E25: =+'8B Cash flow Y2'!O21*GSTInclusiveToExclusive -> 0 | H25: 0 | I25: ='9A Financials Y1'!H25 -> 0 | K25: ='4 Depr&Assets'!A16 -> spare 3 | N25: ='9A Financials Y1'!Q26 -> 0 | P25: =+'4 Depr&Assets'!B16 -> 0
B26: Petrol & Servicing | E26: =+'8B Cash flow Y2'!O22*GSTInclusiveToExclusive -> 0 | H26: 0 | I26: ='9A Financials Y1'!H26 -> 0 | K26: Less: Accum Depreciation | P26: =+'4 Depr&Assets'!P17+'9A Financials Y1'!P26 -> 0 | Q26: =P25-P26 -> 0
B27: Heating & Lighting | E27: =+'8B Cash flow Y2'!O23*GSTInclusiveToExclusive -> 0 | H27: 0 | I27: ='9A Financials Y1'!H27 -> 0 | K27: ASSETS BOUGHT AFTER BUSINESS COMMENCES
B28: Fees & Licences | E28: =+'8B Cash flow Y2'!O24*GSTInclusiveToExclusive -> 0 | H28: 0 | I28: ='9A Financials Y1'!H28 -> 0 | K28: ='4 Depr&Assets'!A22 -> new computer Y1 | N28: ='9A Financials Y1'!Q29 -> 0 | P28: =+'4 Depr&Assets'!D22 -> 0
B29: Post, Printg,Stationery | E29: =+'8B Cash flow Y2'!O25*GSTInclusiveToExclusive -> 0 | H29: 0 | I29: ='9A Financials Y1'!H29 -> 0 | K29: Less: Accum Depreciation | P29: =MIN('4 Depr&Assets'!V22+'9A Financials Y1'!P29,P28) -> 0 | Q29: =+P28-P29 -> 0
B30: Telephone | E30: =+'8B Cash flow Y2'!O26*GSTInclusiveToExclusive -> 0 | H30: 0 | I30: ='9A Financials Y1'!H30 -> 0 | K30: ='4 Depr&Assets'!A23 -> digital video camera | N30: ='9A Financials Y1'!Q31 -> 0 | P30: =+'4 Depr&Assets'!D23 -> 0
B31: Internet / Web Hosting | E31: =+'8B Cash flow Y2'!O27*GSTInclusiveToExclusive -> 0 | H31: 0 | I31: ='9A Financials Y1'!H31 -> 0 | K31: Less: Accum Depreciation | P31: =MIN(+'4 Depr&Assets'!V23+'9A Financials Y1'!P31,P30) -> 0 | Q31: =+P30-P31 -> 0
B32: Mobile | E32: =+'8B Cash flow Y2'!O28*GSTInclusiveToExclusive -> 0 | H32: 0 | I32: ='9A Financials Y1'!H32 -> 0 | K32: ='4 Depr&Assets'!A24 -> new tractor Y2 | N32: ='9A Financials Y1'!Q33 -> 0 | P32: =+'4 Depr&Assets'!D24 -> 0
B33: Rates | E33: =+'8B Cash flow Y2'!O29*GSTInclusiveToExclusive -> 0 | H33: 0 | I33: ='9A Financials Y1'!H33 -> 0 | K33: Less: Accum Depreciation | P33: =MIN(+'4 Depr&Assets'!V24+'9A Financials Y1'!P33,P32) -> 0 | Q33: =+P32-P33 -> 0
B34: =+'8A Cash flow Y1'!B30 -> Rent | E34: =+'8B Cash flow Y2'!O30*GSTInclusiveToExclusive -> 0 | H34: 0 | I34: ='9A Financials Y1'!H34 -> 0 | K34: ='4 Depr&Assets'!A25 -> spare | N34: ='9A Financials Y1'!Q35 -> 0 | P34: =IF('4 Depr&Assets'!F25-'4 Depr&Assets'!$B$20<365,+'4 Depr&Assets'!D25,0) -> 0
B35: =+'8A Cash flow Y1'!B31 -> Taxi / Hire Car | E35: =+'8B Cash flow Y2'!O31*GSTInclusiveToExclusive -> 0 | H35: 0 | I35: ='9A Financials Y1'!H35 -> 0 | K35: Less: Accum Depreciation | P35: =MIN(+'4 Depr&Assets'!V25+'9A Financials Y1'!P35,P34) -> 0 | Q35: =+P34-P35 -> 0
B36: =+'8A Cash flow Y1'!B32 -> Spare | E36: =+'8B Cash flow Y2'!O32*GSTInclusiveToExclusive -> 0 | H36: 0 | I36: ='9A Financials Y1'!H36 -> 0
B37: =+'8A Cash flow Y1'!B33 -> Spare | E37: =+'8B Cash flow Y2'!O33*GSTInclusiveToExclusive -> 0 | H37: 0 | I37: ='9A Financials Y1'!H37 -> 0 | M37: Total Non Current Assets | N37: =SUM(N11:N36) -> 0 | R37: =Q12+Q14+Q16+Q18+Q20+Q22+Q24+Q26+Q29+Q31+Q33+Q35 -> 0
B38: Bank Charges | E38: =+'8B Cash flow Y2'!O34 -> 0 | H38: 0 | I38: ='9A Financials Y1'!H38 -> 0
B39: Wages (to Others) | E39: =+'8B Cash flow Y2'!O35 -> 0 | H39: 0 | I39: ='9A Financials Y1'!H39 -> 0 | K39: Total Assets | N39: =N9+N37 -> 0 | R39: =R9+R37 -> 0
B40: =+'8A Cash flow Y1'!B36 -> Super Expense (of employees) | E40: =+'8B Cash flow Y2'!O36 -> 0 | H40: 0 | I40: ='9A Financials Y1'!H40 -> 0
B41: Interest on Loan (Business) | E41: =IF(ISERROR('5 Source of Funds'!K17/'5 Source of Funds'!K12),0,'5 Source of Funds'!K17/'5 Source of Funds'!K12) -> 0 | H41: 0 | I41: ='9A Financials Y1'!H41 -> 0 | K41: Current Liabilities
B42: Interest on Loan (Other) | E42: =IF(ISERROR('5 Source of Funds'!K33/'5 Source of Funds'!K28),0,'5 Source of Funds'!K33/'5 Source of Funds'!K28) -> 0 | H42: 0 | I42: ='9A Financials Y1'!H42 -> 0 | L42: =IF(P42>1,"GST Payable","GST") -> GST | P42: =E7-SUM('8B Cash flow Y2'!O54:O56)+'9A Financials Y1'!Q44 -> 0
B43: =+'8A Cash flow Y1'!B45 -> Insurance (Prof Indemnity) | E43: =+'8B Cash flow Y2'!O45*GSTInclusiveToExclusive -> 0 | H43: 0 | I43: ='9A Financials Y1'!H43 -> 0 | L43: GST Paid | P43: ='8B Cash flow Y2'!O57 -> 0
B44: =+'8A Cash flow Y1'!B46 -> Insurance Public Liability | E44: =+'8B Cash flow Y2'!O46*GSTInclusiveToExclusive -> 0 | H44: 0 | I44: ='9A Financials Y1'!H44 -> 0 | K44: GST Owing | N44: ='9A Financials Y1'!Q44 -> 0 | Q44: =P42-P43 -> 0
B45: =+'8A Cash flow Y1'!B47 -> Insurance (Specify *2) | E45: =+'8B Cash flow Y2'!O47*GSTInclusiveToExclusive -> 0 | H45: 0 | I45: ='9A Financials Y1'!H45 -> 0 | L45: =B55 -> Estimated Tax on NPBT | P45: =F55+'9A Financials Y1'!P45 -> 0
B46: =+'8A Cash flow Y1'!B48 -> Spare1 | E46: =+'8B Cash flow Y2'!O48*GSTInclusiveToExclusive -> 0 | H46: 0 | I46: ='9A Financials Y1'!H46 -> 0 | L46: Payment - Income Tax | P46: ='8B Cash flow Y2'!O60 -> 0
B47: =+'8A Cash flow Y1'!B49 -> Spare2 | E47: =+'8B Cash flow Y2'!O49*GSTInclusiveToExclusive -> 0 | H47: 0 | I47: ='9A Financials Y1'!H47 -> 0 | K47: Income Tax Liability | N47: ='9A Financials Y1'!Q47 -> 0 | Q47: =P45-P46+P47 -> 0
B48: =+'8A Cash flow Y1'!B50 -> Spare3 | E48: =+'8B Cash flow Y2'!O50*GSTInclusiveToExclusive -> 0 | H48: 0 | I48: ='9A Financials Y1'!H48 -> 0
B49: =+'8A Cash flow Y1'!B51 -> Spare4 | E49: =+'8B Cash flow Y2'!O51*GSTInclusiveToExclusive -> 0 | H49: =IF(ISERROR(E49/$F$8),0,(E49/$F$8)) -> 0 | I49: ='9A Financials Y1'!H49 -> 0
B50: Depreciation | E50: =(+P12+P14+P16+P18+P20+P22+P24+P29+P31+P33+P35)-'9A Financials Y1'!E50 -> 0 | H50: 0 | I50: ='9A Financials Y1'!H50 -> 0 | M50: Total Current Liabilities | N50: =SUM(N42:N47) -> 0 | R50: =SUM(Q44:Q48) -> 0
A51: Total Expenses | F51: =SUM(E22:E50) -> 0 | H51: =IF(ISERROR(F51/$F$8),0,(F51/$F$8)) -> 0 | I51: ='9A Financials Y1'!H51 -> 0
I52: ='9A Financials Y1'!H52 -> 0
A53: Net Profit before Income Tax | F53: =SUM(F19-F51) -> 0 | H53: =IF(ISERROR(F53/$F$8),0,(F53/$F$8)) -> 0 | I53: ='9A Financials Y1'!H53 -> 0 | K53: Non-Current Liabilities
I54: ='9A Financials Y1'!H54 -> 0
A55: Less: | B55: Estimated Tax on NPBT | F55: =IF(Options!$B$15 = "Sole Trader",IF(F53<Y2TaxFreeThreshold,0,IF(F53<37000,0.19*(F53-Y2TaxFreeThreshold),IF(F53<=80000,Options!G23+(0.325*(F53-37000)),IF(F53<=180000,Options!G24+(0.37*(F53-80000)),Options!G25+(0.45*(F53-180000)))))),30%*F53) -> 0 | H55: =IF(ISERROR(F55/$F$8),0,(F55/$F$8)) -> 0 | I55: ='9A Financials Y1'!H55 -> 0 | K55: Loan - Business | N55: ='9A Financials Y1'!Q56 -> 0
I56: ='9A Financials Y1'!H56 -> 0 | K56: Less: Repayments of principal made to date | P56: ='8B Cash flow Y2'!O43-E41+N("Note the correction to reduce loan repayments by an interest amount") -> 0 | Q56: =N55-P56 -> 0
A57: Net Profit after Taxation | F57: =+F53-F55 -> 0 | H57: =IF(ISERROR(F57/$F$8),0,(F57/$F$8)) -> 0 | I57: ='9A Financials Y1'!H57 -> 0.1320148062 | K57: Loan - Other | N57: ='9A Financials Y1'!Q58 -> 0
K58: Less: Repayments of principal made to date | P58: ='8B Cash flow Y2'!O44-E42 -> 0 | Q58: =N57-P58 -> 0
K59: Liabilities brought into the buinsess
K60: Less: Repayments made | N60: ='3 Assets & Liabilities'!G49 -> 0 | P60: 0 | Q60: =+N59-P60 -> 0
M62: Total Non Current Liabilities | N62: =SUM(N55:N60) -> 0 | R62: =+Q56+Q58+Q60 -> 0
K64: Total Liabilities | N64: =N50+N62 -> 0 | R64: =R50+R62 -> 0
B66: Appendix 9D: | M66: Net Assets (Liabilities) | N66: =N39-N64 -> 0 | R66: =R39-R64 -> 0
B67: Reconciliation of Cash, Y2
K68: APPENDIX 10D
K69: Owners Equity | N69: Opening | Q69: Closing
B70: Opening cash | F70: =N6 -> 0
B71: Net Profit After Tax | E71: =F57 -> 0 | L71: Less: Drawings | N71: ='9A Financials Y1'!Q71 -> 0 | Q71: =-'8B Cash flow Y2'!O37-'8A Cash flow Y1'!O37 -> 0
B72: Add Back Depreciation | E72: =E50 -> 0 | L72: Add: Net Profit After Tax | N72: ='9A Financials Y1'!Q72 -> 0 | Q72: =F57+'9A Financials Y1'!Q72 -> 0
B73: Subtract change in Debtors | E73: =Q7-N7 -> 0 | N73: =N71+N72 -> 0 | R73: =Q72+Q71 -> 0
B74: Subtract increase in stock | E74: =Q8-N8 -> 0 | M74: =IF(R73<0,"WARNING! Drawings exceed your NET PROFIT"," ") -> 
B75: Add back increase in current liabilities | E75: =R50-N50 -> 0 | L75: Add : Investment in (Prior) Assets | M75: Owners Funds used for Business Investment
B76: Increase in cash due to operations | F76: =E71+E72-E73-E74+E75 -> 0 | L76: Add : Investment in (Prior) Assets | Q76: ='3 Assets & Liabilities'!C53-'3 Assets & Liabilities'!C38 -> 0
L77: Add: Prior Investment in Assets | M77: Capital Input | Q77: ='9A Financials Y1'!Q77+SUM('8B Cash flow Y2'!C7:N7) -> 0
B78: Add Cash injection | E78: ='8B Cash flow Y2'!O7 -> 0 | L78: Add: Prior Investment in Assets | M78: Opening Stock | Q78: ='9A Financials Y1'!Q78 -> 0
B79: Less Investment in fixed assets | E79: =R37-N37+E50 -> 0 | R79: =SUM(Q76:Q78) -> 0
B80: Less Drawings | E80: ='8B Cash flow Y2'!O37 -> 0
B81: Add increase in loans & liabiliities | E81: =R62-N62 -> 0 | M81: Total - Owners Equity | R81: =R73+R79 -> 0
B83: Increase in cash due to capital and loans | F83: =E78-E79-E80+E81 -> 0 | M83: Error found: | R83: =R66-R81 -> 0
B85: Closing Cash | F85: =F70+F76+F83 -> 0
B87: Check | F87: =Q6 -> 0
B89: Error found: | F89: =F87-F85 -> 0

Sheet 11B Breakeven Y2
A1: APPENDIX 11B Break Even Point Analysis Year 2
A2: =+'9A Financials Y1'!A2:I2 -> Test Business ABN 123456789
A4: Breakeven Point Analysis
E7: ='8B Cash flow Y2'!D2 -> Year 2
E9: Sales from Budget (ex GST) | M9: ='9B Financials Y2'!F8 -> 0
E10: Variable costs | M10: =+'9B Financials Y2'!F16 -> 0 | P10: =M10/$M$9 -> 
E11: Contribution Margin | M11: =+M9-M10 -> 0 | P11: =M11/$M$9 -> 
E12: Fixed Costs (ie all expenses other than cost of sales) | M12: =+'9B Financials Y2'!F51 -> 0 | P12: =M12/$M$9 -> 
E13: Profit before tax | M13: =+M11-M12 -> 0 | P13: =M13/$M$9 -> 
E14: Profit after tax | M14: ='9B Financials Y2'!F57 -> 0 | N14: ='9A Financials Y1'!F57 -> 0 | P14: =M14/$M$9 -> 
E17: Contribution Margin | K17: = | L17: Total Sales - Variable Costs
L18: Total Sales
K21: = | L21: =+M9 -> 0 | N21: - | O21: =+M10 -> 0
L22: =+M9 -> 0
K25: = | M25: =(+L21-O21)/L22 -> 
E28: Breakeven Sales | K28: = | M28: Fixed Costs
M29: =+M25 -> 
K32: = | M32: =+M12 -> 0
M33: =+M29 -> 
K36: = | M36: =M32/M33 -> 
E40: Desired Profit before tax | S40: Tax estimate
E41: Profit after tax | M41: =M40-S41 -> 0 | S41: =IF(M40<Y2TaxFreeThreshold,0,IF(M40<37000,0.19*(M40-Y2TaxFreeThreshold),IF(M40<=80000,Options!G23+(0.325*(M40-37000)),IF(M40<=180000,Options!G24+(0.37*(M40-80000)),Options!G25+(0.45*(M40-180000)))))) -> 0
E44: Sales at Desired Profit (ex GST) | M44: =M36+M40/M25 -> 
E45: Sales including GST | M45: =IF(GSTRate>0,M44*(1+GSTRate),"GST Not used") -> GST Not used
E46: Costs of Sales | M46: =+M44*P10 -> 
E47: Gross Profit | M47: =+M44-M46 -> 
E48: Fixed Costs | M48: =+M12 -> 0
E49: Net Profit | M49: =+M47-M48 -> 

Sheet 12B Budget Notes 2
A1: APPENDIX 12B
A2: =+'11A Breakeven Y1'!A2:V2 -> Test Business ABN 123456789 | F2: ASSUMPTIONS - NOTES TO YOUR BUDGETS YEAR 2
A3: =+'8B Cash flow Y2'!B4 -> Total Sales
A5: =+'8B Cash flow Y2'!B5 -> NA
A6: =+'8B Cash flow Y2'!B7 -> Capital input
A8: ='8B Cash flow Y2'!B8 -> Spare
A9: ='8B Cash flow Y2'!B9 -> Spare
A11: =+'8B Cash flow Y2'!B14 -> Purchase of Materials
A12: =+'8B Cash flow Y2'!B18 -> Accountant, Bookkeeper, Advisors
A13: =+'8B Cash flow Y2'!B19 -> Advertising & Promotion
A14: =+'8B Cash flow Y2'!B20 -> Car Insurance
A15: =+'8B Cash flow Y2'!B21 -> Car Registration
A16: =+'8B Cash flow Y2'!B22 -> Petrol & Servicing
A17: =+'8B Cash flow Y2'!B23 -> Heating & Lighting
A18: =+'8B Cash flow Y2'!B24 -> Fees & Licences
A19: =+'8B Cash flow Y2'!B25 -> Post, Printing,Stationery
A20: =+'8B Cash flow Y2'!B26 -> Telephone
A21: =+'8B Cash flow Y2'!B27 -> Internet / Web Hosting
A22: =+'8B Cash flow Y2'!B28 -> Mobile
A23: =+'8B Cash flow Y2'!B29 -> Rates
A24: =+'8B Cash flow Y2'!B30 -> Rent
A25: =+'8B Cash flow Y2'!B31 -> Taxi / Hire Car
A26: =+'8B Cash flow Y2'!B32 -> Spare
A27: =+'8B Cash flow Y2'!B33 -> Spare
A28: =+'8B Cash flow Y2'!B34 -> Bank Charges
A29: =+'8B Cash flow Y2'!B35 -> Gross Wages (Co's only)
A30: =+'8B Cash flow Y2'!B36 -> Super Expense (Co's only)
A34: =+'8B Cash flow Y2'!B43 -> Formal Business Loan Pmts
A35: =+'8B Cash flow Y2'!B44 -> Non Formal Loan Pmts
A36: =+'8B Cash flow Y2'!B45 -> Insurance (Specify *1)
A37: =+'8B Cash flow Y2'!B46 -> Insurance Public Liability
A38: =+'8B Cash flow Y2'!B47 -> Insurance (Specify *2)
A39: =+'8B Cash flow Y2'!B48 -> Spare1
A40: =+'8B Cash flow Y2'!B49 -> Spare2
A41: =+'8B Cash flow Y2'!B50 -> Spare3
A42: =+'8B Cash flow Y2'!B51 -> Spare4
A46: =+'8B Cash flow Y2'!B58 -> Assets Purchased
A47: =+'8B Cash flow Y2'!B60 -> Provision/payment - Income Tax

Sheet RecordSheet
A1: Options | B1: 3 | C1: 2 | D1: Yes | E1: Text
A2: Options | B2: 4 | C2: 2 | D2: 0.1 | E2: Value
A3: Options | B3: 7 | C3: 2 | D3: 18200 | E3: Value
A4: Options | B4: 8 | C4: 2 | D4: 18200 | E4: Value
A5: Options | B5: 9 | C5: 2 | E5: Blank
A6: Options | B6: 11 | C6: 2 | D6: Test Business ABN 123456789 | E6: Text
A7: Options | B7: 11 | C7: 3 | E7: Blank
A8: Options | B8: 12 | C8: 2 | D8: Bob Bouwer | E8: Text
A9: Options | B9: 12 | C9: 3 | E9: Blank
A10: Options | B10: 13 | C10: 2 | D10: 41000 | E10: Date
A11: Options | B11: 15 | C11: 2 | D11: ="Sole Trader" | E11: Text
A12: Dashboard | B12: 4 | C12: 2 | D12: Test business does environmental testing of consumer appliances | E12: Text
A13: Dashboard | B13: 5 | C13: 2 | E13: Blank
A14: Dashboard | B14: 6 | C14: 2 | E14: Blank
A15: Dashboard | B15: 7 | C15: 2 | E15: Blank
A16: Dashboard | B16: 8 | C16: 2 | E16: Blank
A17: Dashboard | B17: 9 | C17: 2 | E17: Blank
A18: 1A MAPa Y1 | B18: 5 | C18: 3 | E18: Blank
A19: 1A MAPa Y1 | B19: 5 | C19: 4 | E19: Blank
A20: 1A MAPa Y1 | B20: 5 | C20: 5 | E20: Blank
A21: 1A MAPa Y1 | B21: 5 | C21: 6 | E21: Blank
A22: 1A MAPa Y1 | B22: 5 | C22: 7 | E22: Blank
A23: 1A MAPa Y1 | B23: 5 | C23: 8 | E23: Blank
A24: 1A MAPa Y1 | B24: 5 | C24: 9 | E24: Blank
A25: 1A MAPa Y1 | B25: 5 | C25: 10 | E25: Blank
A26: 1A MAPa Y1 | B26: 5 | C26: 11 | E26: Blank
A27: 1A MAPa Y1 | B27: 5 | C27: 12 | E27: Blank
A28: 1A MAPa Y1 | B28: 5 | C28: 13 | E28: Blank
A29: 1A MAPa Y1 | B29: 5 | C29: 14 | E29: Blank
A30: 1A MAPa Y1 | B30: 5 | C30: 16 | E30: Blank
A31: 1A MAPa Y1 | B31: 7 | C31: 3 | E31: Blank
A32: 1A MAPa Y1 | B32: 7 | C32: 4 | E32: Blank
A33: 1A MAPa Y1 | B33: 7 | C33: 5 | E33: Blank
A34: 1A MAPa Y1 | B34: 7 | C34: 6 | E34: Blank
A35: 1A MAPa Y1 | B35: 7 | C35: 7 | E35: Blank
A36: 1A MAPa Y1 | B36: 7 | C36: 8 | E36: Blank
A37: 1A MAPa Y1 | B37: 7 | C37: 9 | E37: Blank
A38: 1A MAPa Y1 | B38: 7 | C38: 10 | E38: Blank
A39: 1A MAPa Y1 | B39: 7 | C39: 11 | E39: Blank
A40: 1A MAPa Y1 | B40: 7 | C40: 12 | E40: Blank
A41: 1A MAPa Y1 | B41: 7 | C41: 13 | E41: Blank
A42: 1A MAPa Y1 | B42: 7 | C42: 14 | E42: Blank
A43: 1A MAPa Y1 | B43: 7 | C43: 16 | E43: Blank
A44: 1A MAPa Y1 | B44: 9 | C44: 3 | E44: Blank
A45: 1A MAPa Y1 | B45: 9 | C45: 4 | E45: Blank
A46: 1A MAPa Y1 | B46: 9 | C46: 5 | E46: Blank
A47: 1A MAPa Y1 | B47: 9 | C47: 6 | E47: Blank
A48: 1A MAPa Y1 | B48: 9 | C48: 7 | E48: Blank
A49: 1A MAPa Y1 | B49: 9 | C49: 8 | E49: Blank
A50: 1A MAPa Y1 | B50: 9 | C50: 9 | E50: Blank
A51: 1A MAPa Y1 | B51: 9 | C51: 10 | E51: Blank
A52: 1A MAPa Y1 | B52: 9 | C52: 11 | E52: Blank
A53: 1A MAPa Y1 | B53: 9 | C53: 12 | E53: Blank
A54: 1A MAPa Y1 | B54: 9 | C54: 13 | E54: Blank
A55: 1A MAPa Y1 | B55: 9 | C55: 14 | E55: Blank
A56: 1A MAPa Y1 | B56: 9 | C56: 16 | E56: Blank
A57: 1A MAPa Y1 | B57: 11 | C57: 3 | E57: Blank
A58: 1A MAPa Y1 | B58: 11 | C58: 4 | E58: Blank
A59: 1A MAPa Y1 | B59: 11 | C59: 5 | E59: Blank
A60: 1A MAPa Y1 | B60: 11 | C60: 6 | E60: Blank
A61: 1A MAPa Y1 | B61: 11 | C61: 7 | E61: Blank
A62: 1A MAPa Y1 | B62: 11 | C62: 8 | E62: Blank
A63: 1A MAPa Y1 | B63: 11 | C63: 9 | E63: Blank
A64: 1A MAPa Y1 | B64: 11 | C64: 10 | E64: Blank
A65: 1A MAPa Y1 | B65: 11 | C65: 11 | E65: Blank
A66: 1A MAPa Y1 | B66: 11 | C66: 12 | E66: Blank
A67: 1A MAPa Y1 | B67: 11 | C67: 13 | E67: Blank
A68: 1A MAPa Y1 | B68: 11 | C68: 14 | E68: Blank
A69: 1A MAPa Y1 | B69: 11 | C69: 16 | E69: Blank
A70: 1A MAPa Y1 | B70: 13 | C70: 3 | E70: Blank
A71: 1A MAPa Y1 | B71: 13 | C71: 4 | E71: Blank
A72: 1A MAPa Y1 | B72: 13 | C72: 5 | E72: Blank
A73: 1A MAPa Y1 | B73: 13 | C73: 6 | E73: Blank
A74: 1A MAPa Y1 | B74: 13 | C74: 7 | E74: Blank
A75: 1A MAPa Y1 | B75: 13 | C75: 8 | E75: Blank
A76: 1A MAPa Y1 | B76: 13 | C76: 9 | E76: Blank
A77: 1A MAPa Y1 | B77: 13 | C77: 10 | E77: Blank
A78: 1A MAPa Y1 | B78: 13 | C78: 11 | E78: Blank
A79: 1A MAPa Y1 | B79: 13 | C79: 12 | E79: Blank
A80: 1A MAPa Y1 | B80: 13 | C80: 13 | E80: Blank
A81: 1A MAPa Y1 | B81: 13 | C81: 14 | E81: Blank
A82: 1A MAPa Y1 | B82: 13 | C82: 16 | E82: Blank
A83: 1A MAPa Y1 | B83: 15 | C83: 3 | E83: Blank
A84: 1A MAPa Y1 | B84: 15 | C84: 4 | E84: Blank
A85: 1A MAPa Y1 | B85: 15 | C85: 5 | E85: Blank
A86: 1A MAPa Y1 | B86: 15 | C86: 6 | E86: Blank
A87: 1A MAPa Y1 | B87: 15 | C87: 7 | E87: Blank
A88: 1A MAPa Y1 | B88: 15 | C88: 8 | E88: Blank
A89: 1A MAPa Y1 | B89: 15 | C89: 9 | E89: Blank
A90: 1A MAPa Y1 | B90: 15 | C90: 10 | E90: Blank
A91: 1A MAPa Y1 | B91: 15 | C91: 11 | E91: Blank
A92: 1A MAPa Y1 | B92: 15 | C92: 12 | E92: Blank
A93: 1A MAPa Y1 | B93: 15 | C93: 13 | E93: Blank
A94: 1A MAPa Y1 | B94: 15 | C94: 14 | E94: Blank
A95: 1A MAPa Y1 | B95: 15 | C95: 16 | E95: Blank
A96: 1A MAPa Y1 | B96: 18 | C96: 3 | E96: Blank
A97: 1A MAPa Y1 | B97: 18 | C97: 4 | E97: Blank
A98: 1A MAPa Y1 | B98: 18 | C98: 5 | E98: Blank
A99: 1A MAPa Y1 | B99: 18 | C99: 6 | E99: Blank
A100: 1A MAPa Y1 | B100: 18 | C100: 7 | E100: Blank
A101: 1A MAPa Y1 | B101: 18 | C101: 8 | E101: Blank
A102: 1A MAPa Y1 | B102: 18 | C102: 9 | E102: Blank
A103: 1A MAPa Y1 | B103: 18 | C103: 10 | E103: Blank
A104: 1A MAPa Y1 | B104: 18 | C104: 11 | E104: Blank
A105: 1A MAPa Y1 | B105: 18 | C105: 12 | E105: Blank
A106: 1A MAPa Y1 | B106: 18 | C106: 13 | E106: Blank
A107: 1A MAPa Y1 | B107: 18 | C107: 14 | E107: Blank
A108: 1A MAPa Y1 | B108: 18 | C108: 16 | E108: Blank
A109: 1A MAPa Y1 | B109: 19 | C109: 16 | E109: Blank
A110: 1A MAPa Y1 | B110: 20 | C110: 3 | E110: Blank
A111: 1A MAPa Y1 | B111: 20 | C111: 4 | E111: Blank
A112: 1A MAPa Y1 | B112: 20 | C112: 5 | E112: Blank
A113: 1A MAPa Y1 | B113: 20 | C113: 6 | E113: Blank
A114: 1A MAPa Y1 | B114: 20 | C114: 7 | E114: Blank
A115: 1A MAPa Y1 | B115: 20 | C115: 8 | E115: Blank
A116: 1A MAPa Y1 | B116: 20 | C116: 9 | E116: Blank
A117: 1A MAPa Y1 | B117: 20 | C117: 10 | E117: Blank
A118: 1A MAPa Y1 | B118: 20 | C118: 11 | E118: Blank
A119: 1A MAPa Y1 | B119: 20 | C119: 12 | E119: Blank
A120: 1A MAPa Y1 | B120: 20 | C120: 13 | E120: Blank
A121: 1A MAPa Y1 | B121: 20 | C121: 14 | E121: Blank
A122: 1A MAPa Y1 | B122: 20 | C122: 16 | E122: Blank
A123: 1A MAPa Y1 | B123: 21 | C123: 16 | E123: Blank
A124: 1A MAPa Y1 | B124: 22 | C124: 3 | E124: Blank
A125: 1A MAPa Y1 | B125: 22 | C125: 4 | E125: Blank
A126: 1A MAPa Y1 | B126: 22 | C126: 5 | E126: Blank
A127: 1A MAPa Y1 | B127: 22 | C127: 6 | E127: Blank
A128: 1A MAPa Y1 | B128: 22 | C128: 7 | E128: Blank
A129: 1A MAPa Y1 | B129: 22 | C129: 8 | E129: Blank
A130: 1A MAPa Y1 | B130: 22 | C130: 9 | E130: Blank
A131: 1A MAPa Y1 | B131: 22 | C131: 10 | E131: Blank
A132: 1A MAPa Y1 | B132: 22 | C132: 11 | E132: Blank
A133: 1A MAPa Y1 | B133: 22 | C133: 12 | E133: Blank
A134: 1A MAPa Y1 | B134: 22 | C134: 13 | E134: Blank
A135: 1A MAPa Y1 | B135: 22 | C135: 14 | E135: Blank
A136: 1A MAPa Y1 | B136: 22 | C136: 16 | E136: Blank
A137: 1A MAPa Y1 | B137: 23 | C137: 16 | E137: Blank
A138: 1A MAPa Y1 | B138: 24 | C138: 3 | E138: Blank
A139: 1A MAPa Y1 | B139: 24 | C139: 4 | E139: Blank
A140: 1A MAPa Y1 | B140: 24 | C140: 5 | E140: Blank
A141: 1A MAPa Y1 | B141: 24 | C141: 6 | E141: Blank
A142: 1A MAPa Y1 | B142: 24 | C142: 7 | E142: Blank
A143: 1A MAPa Y1 | B143: 24 | C143: 8 | E143: Blank
A144: 1A MAPa Y1 | B144: 24 | C144: 9 | E144: Blank
A145: 1A MAPa Y1 | B145: 24 | C145: 10 | E145: Blank
A146: 1A MAPa Y1 | B146: 24 | C146: 11 | E146: Blank
A147: 1A MAPa Y1 | B147: 24 | C147: 12 | E147: Blank
A148: 1A MAPa Y1 | B148: 24 | C148: 13 | E148: Blank
A149: 1A MAPa Y1 | B149: 24 | C149: 14 | E149: Blank
A150: 1A MAPa Y1 | B150: 24 | C150: 16 | E150: Blank
A151: 1A MAPa Y1 | B151: 27 | C151: 3 | E151: Blank
A152: 1A MAPa Y1 | B152: 27 | C152: 4 | E152: Blank
A153: 1A MAPa Y1 | B153: 27 | C153: 5 | E153: Blank
A154: 1A MAPa Y1 | B154: 27 | C154: 6 | E154: Blank
A155: 1A MAPa Y1 | B155: 27 | C155: 7 | E155: Blank
A156: 1A MAPa Y1 | B156: 27 | C156: 8 | E156: Blank
A157: 1A MAPa Y1 | B157: 27 | C157: 9 | E157: Blank
A158: 1A MAPa Y1 | B158: 27 | C158: 10 | E158: Blank
A159: 1A MAPa Y1 | B159: 27 | C159: 11 | E159: Blank
A160: 1A MAPa Y1 | B160: 27 | C160: 12 | E160: Blank
A161: 1A MAPa Y1 | B161: 27 | C161: 13 | E161: Blank
A162: 1A MAPa Y1 | B162: 27 | C162: 14 | E162: Blank
A163: 1A MAPa Y1 | B163: 27 | C163: 16 | E163: Blank
A164: 1A MAPa Y1 | B164: 28 | C164: 16 | E164: Blank
A165: 1A MAPa Y1 | B165: 29 | C165: 3 | E165: Blank
A166: 1A MAPa Y1 | B166: 29 | C166: 4 | E166: Blank
A167: 1A MAPa Y1 | B167: 29 | C167: 5 | E167: Blank
A168: 1A MAPa Y1 | B168: 29 | C168: 6 | E168: Blank
A169: 1A MAPa Y1 | B169: 29 | C169: 7 | E169: Blank
A170: 1A MAPa Y1 | B170: 29 | C170: 8 | E170: Blank
A171: 1A MAPa Y1 | B171: 29 | C171: 9 | E171: Blank
A172: 1A MAPa Y1 | B172: 29 | C172: 10 | E172: Blank
A173: 1A MAPa Y1 | B173: 29 | C173: 11 | E173: Blank
A174: 1A MAPa Y1 | B174: 29 | C174: 12 | E174: Blank
A175: 1A MAPa Y1 | B175: 29 | C175: 13 | E175: Blank
A176: 1A MAPa Y1 | B176: 29 | C176: 14 | E176: Blank
A177: 1A MAPa Y1 | B177: 29 | C177: 16 | E177: Blank
A178: 1A MAPa Y1 | B178: 32 | C178: 3 | E178: Blank
A179: 1A MAPa Y1 | B179: 32 | C179: 4 | E179: Blank
A180: 1A MAPa Y1 | B180: 32 | C180: 5 | E180: Blank
A181: 1A MAPa Y1 | B181: 32 | C181: 6 | E181: Blank
A182: 1A MAPa Y1 | B182: 32 | C182: 7 | E182: Blank
A183: 1A MAPa Y1 | B183: 32 | C183: 8 | E183: Blank
A184: 1A MAPa Y1 | B184: 32 | C184: 9 | E184: Blank
A185: 1A MAPa Y1 | B185: 32 | C185: 10 | E185: Blank
A186: 1A MAPa Y1 | B186: 32 | C186: 11 | E186: Blank
A187: 1A MAPa Y1 | B187: 32 | C187: 12 | E187: Blank
A188: 1A MAPa Y1 | B188: 32 | C188: 13 | E188: Blank
A189: 1A MAPa Y1 | B189: 32 | C189: 14 | E189: Blank
A190: 1A MAPa Y1 | B190: 32 | C190: 16 | E190: Blank
A191: 1A MAPa Y1 | B191: 33 | C191: 16 | E191: Blank
A192: 1A MAPa Y1 | B192: 34 | C192: 3 | E192: Blank
A193: 1A MAPa Y1 | B193: 34 | C193: 4 | E193: Blank
A194: 1A MAPa Y1 | B194: 34 | C194: 5 | E194: Blank
A195: 1A MAPa Y1 | B195: 34 | C195: 6 | E195: Blank
A196: 1A MAPa Y1 | B196: 34 | C196: 7 | E196: Blank
A197: 1A MAPa Y1 | B197: 34 | C197: 8 | E197: Blank
A198: 1A MAPa Y1 | B198: 34 | C198: 9 | E198: Blank
A199: 1A MAPa Y1 | B199: 34 | C199: 10 | E199: Blank
A200: 1A MAPa Y1 | B200: 34 | C200: 11 | E200: Blank
... 4334 more rows

Sheet TechnicalNotes
A2: There are some interesting macros.
A3: To protect all sheets
A4: To unprotect all sheets
A5: To put all sheets into pagebreak preview
A6: To put all sheets into normal mode.
A7: There is a macro to blank user-entry cells, to prepare for student use
A8: There is a macro to record user-entries to a sheet called RecordSheet
A9: The macro which records data stores the data in a sheet called Record Sheet
A10: There is a macro to replace user-entry cells with data recorded on the RecordSheet.
A11: The values stored on the RecordSheet can be used to test the spreadsheet if changes are made.
A12: Look to make sure that there are no errors in the reconciliation of cash and that the balance sheet actually balances.

Sheet Log
A1: Options $B$3 0
A2: Options $B$4 0
A3: Options $B$7 0
A4: Options $B$8 0
A5: Options $B$9 0
A6: Options $B$11 0
A7: Options $C$11 0
A8: Options $B$12 0
A9: Options $C$12 0
A10: Options $B$13 0
A11: Options $B$15 0
A12: Dashboard $B$4 0
A13: Dashboard $B$5 0
A14: Dashboard $B$6 0
A15: Dashboard $B$7 0
A16: Dashboard $B$8 0
A17: Dashboard $B$9 0
A18: 1A MAPa Y1 $C$5 0
A19: 1A MAPa Y1 $D$5 0
A20: 1A MAPa Y1 $E$5 0
A21: 1A MAPa Y1 $F$5 0
A22: 1A MAPa Y1 $G$5 0
A23: 1A MAPa Y1 $H$5 0
A24: 1A MAPa Y1 $I$5 0
A25: 1A MAPa Y1 $J$5 0
A26: 1A MAPa Y1 $K$5 0
A27: 1A MAPa Y1 $L$5 0
A28: 1A MAPa Y1 $M$5 0
A29: 1A MAPa Y1 $N$5 0
A30: 1A MAPa Y1 $P$5 0
A31: 1A MAPa Y1 $C$7 0
A32: 1A MAPa Y1 $D$7 0
A33: 1A MAPa Y1 $E$7 0
A34: 1A MAPa Y1 $F$7 0
A35: 1A MAPa Y1 $G$7 0
A36: 1A MAPa Y1 $H$7 0
A37: 1A MAPa Y1 $I$7 0
A38: 1A MAPa Y1 $J$7 0
A39: 1A MAPa Y1 $K$7 0
A40: 1A MAPa Y1 $L$7 0
A41: 1A MAPa Y1 $M$7 0
A42: 1A MAPa Y1 $N$7 0
A43: 1A MAPa Y1 $P$7 0
A44: 1A MAPa Y1 $C$9 0
A45: 1A MAPa Y1 $D$9 0
A46: 1A MAPa Y1 $E$9 0
A47: 1A MAPa Y1 $F$9 0
A48: 1A MAPa Y1 $G$9 0
A49: 1A MAPa Y1 $H$9 0
A50: 1A MAPa Y1 $I$9 0
A51: 1A MAPa Y1 $J$9 0
A52: 1A MAPa Y1 $K$9 0
A53: 1A MAPa Y1 $L$9 0
A54: 1A MAPa Y1 $M$9 0
A55: 1A MAPa Y1 $N$9 0
A56: 1A MAPa Y1 $P$9 0
A57: 1A MAPa Y1 $C$11 0
A58: 1A MAPa Y1 $D$11 0
A59: 1A MAPa Y1 $E$11 0
A60: 1A MAPa Y1 $F$11 0
A61: 1A MAPa Y1 $G$11 0
A62: 1A MAPa Y1 $H$11 0
A63: 1A MAPa Y1 $I$11 0
A64: 1A MAPa Y1 $J$11 0
A65: 1A MAPa Y1 $K$11 0
A66: 1A MAPa Y1 $L$11 0
A67: 1A MAPa Y1 $M$11 0
A68: 1A MAPa Y1 $N$11 0
A69: 1A MAPa Y1 $P$11 0
A70: 1A MAPa Y1 $C$13 0
A71: 1A MAPa Y1 $D$13 0
A72: 1A MAPa Y1 $E$13 0
A73: 1A MAPa Y1 $F$13 0
A74: 1A MAPa Y1 $G$13 0
A75: 1A MAPa Y1 $H$13 0
A76: 1A MAPa Y1 $I$13 0
A77: 1A MAPa Y1 $J$13 0
A78: 1A MAPa Y1 $K$13 0
A79: 1A MAPa Y1 $L$13 0
A80: 1A MAPa Y1 $M$13 0
A81: 1A MAPa Y1 $N$13 0
A82: 1A MAPa Y1 $P$13 0
A83: 1A MAPa Y1 $C$15 0
A84: 1A MAPa Y1 $D$15 0
A85: 1A MAPa Y1 $E$15 0
A86: 1A MAPa Y1 $F$15 0
A87: 1A MAPa Y1 $G$15 0
A88: 1A MAPa Y1 $H$15 0
A89: 1A MAPa Y1 $I$15 0
A90: 1A MAPa Y1 $J$15 0
A91: 1A MAPa Y1 $K$15 0
A92: 1A MAPa Y1 $L$15 0
A93: 1A MAPa Y1 $M$15 0
A94: 1A MAPa Y1 $N$15 0
A95: 1A MAPa Y1 $P$15 0
A96: 1A MAPa Y1 $C$18 0
A97: 1A MAPa Y1 $D$18 0
A98: 1A MAPa Y1 $E$18 0
A99: 1A MAPa Y1 $F$18 0
A100: 1A MAPa Y1 $G$18 0
A101: 1A MAPa Y1 $H$18 0
A102: 1A MAPa Y1 $I$18 0
A103: 1A MAPa Y1 $J$18 0
A104: 1A MAPa Y1 $K$18 0
A105: 1A MAPa Y1 $L$18 0
A106: 1A MAPa Y1 $M$18 0
A107: 1A MAPa Y1 $N$18 0
A108: 1A MAPa Y1 $P$18 0
A109: 1A MAPa Y1 $P$19 0
A110: 1A MAPa Y1 $C$20 0
A111: 1A MAPa Y1 $D$20 0
A112: 1A MAPa Y1 $E$20 0
A113: 1A MAPa Y1 $F$20 0
A114: 1A MAPa Y1 $G$20 0
A115: 1A MAPa Y1 $H$20 0
A116: 1A MAPa Y1 $I$20 0
A117: 1A MAPa Y1 $J$20 0
A118: 1A MAPa Y1 $K$20 0
A119: 1A MAPa Y1 $L$20 0
A120: 1A MAPa Y1 $M$20 0
A121: 1A MAPa Y1 $N$20 0
A122: 1A MAPa Y1 $P$20 0
A123: 1A MAPa Y1 $P$21 0
A124: 1A MAPa Y1 $C$22 0
A125: 1A MAPa Y1 $D$22 0
A126: 1A MAPa Y1 $E$22 0
A127: 1A MAPa Y1 $F$22 0
A128: 1A MAPa Y1 $G$22 0
A129: 1A MAPa Y1 $H$22 0
A130: 1A MAPa Y1 $I$22 0
A131: 1A MAPa Y1 $J$22 0
A132: 1A MAPa Y1 $K$22 0
A133: 1A MAPa Y1 $L$22 0
A134: 1A MAPa Y1 $M$22 0
A135: 1A MAPa Y1 $N$22 0
A136: 1A MAPa Y1 $P$22 0
A137: 1A MAPa Y1 $P$23 0
A138: 1A MAPa Y1 $C$24 0
A139: 1A MAPa Y1 $D$24 0
A140: 1A MAPa Y1 $E$24 0
A141: 1A MAPa Y1 $F$24 0
A142: 1A MAPa Y1 $G$24 0
A143: 1A MAPa Y1 $H$24 0
A144: 1A MAPa Y1 $I$24 0
A145: 1A MAPa Y1 $J$24 0
A146: 1A MAPa Y1 $K$24 0
A147: 1A MAPa Y1 $L$24 0
A148: 1A MAPa Y1 $M$24 0
A149: 1A MAPa Y1 $N$24 0
A150: 1A MAPa Y1 $P$24 0
A151: 1A MAPa Y1 $C$27 0
A152: 1A MAPa Y1 $D$27 0
A153: 1A MAPa Y1 $E$27 0
A154: 1A MAPa Y1 $F$27 0
A155: 1A MAPa Y1 $G$27 0
A156: 1A MAPa Y1 $H$27 0
A157: 1A MAPa Y1 $I$27 0
A158: 1A MAPa Y1 $J$27 0
A159: 1A MAPa Y1 $K$27 0
A160: 1A MAPa Y1 $L$27 0
A161: 1A MAPa Y1 $M$27 0
A162: 1A MAPa Y1 $N$27 0
A163: 1A MAPa Y1 $P$27 0
A164: 1A MAPa Y1 $P$28 0
A165: 1A MAPa Y1 $C$29 0
A166: 1A MAPa Y1 $D$29 0
A167: 1A MAPa Y1 $E$29 0
A168: 1A MAPa Y1 $F$29 0
A169: 1A MAPa Y1 $G$29 0
A170: 1A MAPa Y1 $H$29 0
A171: 1A MAPa Y1 $I$29 0
A172: 1A MAPa Y1 $J$29 0
A173: 1A MAPa Y1 $K$29 0
A174: 1A MAPa Y1 $L$29 0
A175: 1A MAPa Y1 $M$29 0
A176: 1A MAPa Y1 $N$29 0
A177: 1A MAPa Y1 $P$29 0
A178: 1A MAPa Y1 $C$32 0
A179: 1A MAPa Y1 $D$32 0
A180: 1A MAPa Y1 $E$32 0
A181: 1A MAPa Y1 $F$32 0
A182: 1A MAPa Y1 $G$32 0
A183: 1A MAPa Y1 $H$32 0
A184: 1A MAPa Y1 $I$32 0
A185: 1A MAPa Y1 $J$32 0
A186: 1A MAPa Y1 $K$32 0
A187: 1A MAPa Y1 $L$32 0
A188: 1A MAPa Y1 $M$32 0
A189: 1A MAPa Y1 $N$32 0
A190: 1A MAPa Y1 $P$32 0
A191: 1A MAPa Y1 $P$33 0
A192: 1A MAPa Y1 $C$34 0
A193: 1A MAPa Y1 $D$34 0
A194: 1A MAPa Y1 $E$34 0
A195: 1A MAPa Y1 $F$34 0
A196: 1A MAPa Y1 $G$34 0
A197: 1A MAPa Y1 $H$34 0
A198: 1A MAPa Y1 $I$34 0
A199: 1A MAPa Y1 $J$34 0
A200: 1A MAPa Y1 $K$34 0
... 4338 more rows

Sheet FormulaRecordSheet
A1: Options | B1: 5 | C1: 3 | D1: =1/(1+GSTRate) | E1: Value
A2: Options | B2: 6 | C2: 3 | D2: =1-GSTInclusiveToExclusive | E2: Value
A3: Options | B3: 22 | C3: 9 | D3: =B22/12 | E3: Value
A4: Options | B4: 22 | C4: 11 | D4: =I22 | E4: Value
A5: Options | B5: 23 | C5: 7 | D5: =(37001-TaxFreeThreshold)*0.19 | E5: Value
A6: Options | B6: 23 | C6: 8 | D6: =(B23-Y2TaxFreeThreshold)*C22 | E6: Value
A7: Options | B7: 23 | C7: 9 | D7: =B23/12 | E7: Value
A8: Options | B8: 23 | C8: 10 | D8: =(I23-I22)*C22 | E8: Value
A9: Options | B9: 23 | C9: 11 | D9: =I23 | E9: Value
A10: Options | B10: 24 | C10: 7 | D10: =G23+0.325*(80000-37000) | E10: Value
A11: Options | B11: 24 | C11: 8 | D11: =H23+(B24-B23)*C23 | E11: Value
A12: Options | B12: 24 | C12: 9 | D12: =B24/12 | E12: Value
A13: Options | B13: 24 | C13: 10 | D13: =J23+(I24-I23)*C23 | E13: Value
A14: Options | B14: 24 | C14: 11 | D14: =I24 | E14: Value
A15: Options | B15: 25 | C15: 7 | D15: =G24+0.37*(180000-80001) | E15: Value
A16: Options | B16: 25 | C16: 8 | D16: =H24+(B25-B24)*C24 | E16: Value
A17: Options | B17: 25 | C17: 9 | D17: =B25/12 | E17: Value
A18: Options | B18: 25 | C18: 10 | D18: =J24+(I25-I24)*C24 | E18: Value
A19: Options | B19: 25 | C19: 11 | D19: =I25 | E19: Value
A20: Options | B20: 31 | C20: 6 | D20: =(37000-18200)*0.19 | E20: Value
A21: Options | B21: 32 | C21: 6 | D21: =(80000-37001)*0.325 | E21: Value
A22: Dashboard | B22: 2 | C22: 2 | D22: =BusinessName | E22: Text
A23: Dashboard | B23: 3 | C23: 2 | D23: =GSTRate+StartDate | E23: Date
A24: Dashboard | B24: 11 | C24: 2 | D24: =BusStructure | E24: Text
A25: Dashboard | B25: 13 | C25: 1 | D25: ="Year 1 Sales " & IF(GSTRate>0,"Excluding Gst","") | E25: Text
A26: Dashboard | B26: 13 | C26: 2 | D26: ='9A Financials Y1'!F7 | E26: Value
A27: Dashboard | B27: 14 | C27: 2 | D27: ='9A Financials Y1'!H19 | E27: Value
A28: Dashboard | B28: 15 | C28: 2 | D28: ='9A Financials Y1'!P6-'9A Financials Y1'!N6 | E28: Value
A29: Dashboard | B29: 16 | C29: 2 | D29: ='9A Financials Y1'!F53 | E29: Value
A30: Dashboard | B30: 17 | C30: 2 | D30: ='9A Financials Y1'!F57 | E30: Value
A31: Dashboard | B31: 18 | C31: 2 | D31: ='9A Financials Y1'!R66 | E31: Value
A32: Dashboard | B32: 20 | C32: 1 | D32: ="Year 2 Sales " & IF(GSTRate>0,"Excluding Gst","") | E32: Text
A33: Dashboard | B33: 20 | C33: 2 | D33: ='9B Financials Y2'!F8 | E33: Value
A34: Dashboard | B34: 21 | C34: 2 | D34: ='9B Financials Y2'!H19 | E34: Value
A35: Dashboard | B35: 22 | C35: 2 | D35: ='9B Financials Y2'!Q6-'9B Financials Y2'!N6 | E35: Value
A36: Dashboard | B36: 23 | C36: 2 | D36: ='9B Financials Y2'!F53 | E36: Value
A37: Dashboard | B37: 24 | C37: 2 | D37: ='9B Financials Y2'!F57 | E37: Value
A38: Dashboard | B38: 25 | C38: 2 | D38: ='9B Financials Y2'!R66 | E38: Value
A39: Dashboard | B39: 27 | C39: 2 | D39: =B20/B13-1 | E39: Value
A40: NEISReporting | B40: 6 | C40: 2 | D40: =StartDate | E40: Date
A41: NEISReporting | B41: 6 | C41: 3 | D41: =DATE(YEAR(B6),MONTH(B6)+1,1) | E41: Date
A42: NEISReporting | B42: 6 | C42: 4 | D42: =DATE(YEAR(C6),MONTH(C6)+1,1) | E42: Date
A43: NEISReporting | B43: 6 | C43: 5 | D43: =DATE(YEAR(D6),MONTH(D6)+1,1) | E43: Date
A44: NEISReporting | B44: 6 | C44: 6 | D44: =DATE(YEAR(E6),MONTH(E6)+1,1) | E44: Date
A45: NEISReporting | B45: 6 | C45: 7 | D45: =DATE(YEAR(F6),MONTH(F6)+1,1) | E45: Date
A46: NEISReporting | B46: 6 | C46: 8 | D46: =DATE(YEAR(G6),MONTH(G6)+1,1) | E46: Date
A47: NEISReporting | B47: 6 | C47: 9 | D47: =DATE(YEAR(H6),MONTH(H6)+1,1) | E47: Date
A48: NEISReporting | B48: 6 | C48: 10 | D48: =DATE(YEAR(I6),MONTH(I6)+1,1) | E48: Date
A49: NEISReporting | B49: 6 | C49: 11 | D49: =DATE(YEAR(J6),MONTH(J6)+1,1) | E49: Date
A50: NEISReporting | B50: 6 | C50: 12 | D50: =DATE(YEAR(K6),MONTH(K6)+1,1) | E50: Date
A51: NEISReporting | B51: 6 | C51: 13 | D51: =DATE(YEAR(L6),MONTH(L6)+1,1) | E51: Date
A52: NEISReporting | B52: 7 | C52: 2 | D52: ='8A Cash flow Y1'!C10 | E52: Value
A53: NEISReporting | B53: 7 | C53: 3 | D53: ='8A Cash flow Y1'!D10 | E53: Value
A54: NEISReporting | B54: 7 | C54: 4 | D54: ='8A Cash flow Y1'!E10 | E54: Value
A55: NEISReporting | B55: 7 | C55: 5 | D55: ='8A Cash flow Y1'!F10 | E55: Value
A56: NEISReporting | B56: 7 | C56: 6 | D56: ='8A Cash flow Y1'!G10 | E56: Value
A57: NEISReporting | B57: 7 | C57: 7 | D57: ='8A Cash flow Y1'!H10 | E57: Value
A58: NEISReporting | B58: 7 | C58: 8 | D58: ='8A Cash flow Y1'!I10 | E58: Value
A59: NEISReporting | B59: 7 | C59: 9 | D59: ='8A Cash flow Y1'!J10 | E59: Value
A60: NEISReporting | B60: 7 | C60: 10 | D60: ='8A Cash flow Y1'!K10 | E60: Value
A61: NEISReporting | B61: 7 | C61: 11 | D61: ='8A Cash flow Y1'!L10 | E61: Value
A62: NEISReporting | B62: 7 | C62: 12 | D62: ='8A Cash flow Y1'!M10 | E62: Value
A63: NEISReporting | B63: 7 | C63: 13 | D63: ='8A Cash flow Y1'!N10 | E63: Value
A64: NEISReporting | B64: 8 | C64: 2 | D64: ='8A Cash flow Y1'!C61 | E64: Value
A65: NEISReporting | B65: 8 | C65: 3 | D65: ='8A Cash flow Y1'!D61 | E65: Value
A66: NEISReporting | B66: 8 | C66: 4 | D66: ='8A Cash flow Y1'!E61 | E66: Value
A67: NEISReporting | B67: 8 | C67: 5 | D67: ='8A Cash flow Y1'!F61 | E67: Value
A68: NEISReporting | B68: 8 | C68: 6 | D68: ='8A Cash flow Y1'!G61 | E68: Value
A69: NEISReporting | B69: 8 | C69: 7 | D69: ='8A Cash flow Y1'!H61 | E69: Value
A70: NEISReporting | B70: 8 | C70: 8 | D70: ='8A Cash flow Y1'!I61 | E70: Value
A71: NEISReporting | B71: 8 | C71: 9 | D71: ='8A Cash flow Y1'!J61 | E71: Value
A72: NEISReporting | B72: 8 | C72: 10 | D72: ='8A Cash flow Y1'!K61 | E72: Value
A73: NEISReporting | B73: 8 | C73: 11 | D73: ='8A Cash flow Y1'!L61 | E73: Value
A74: NEISReporting | B74: 8 | C74: 12 | D74: ='8A Cash flow Y1'!M61 | E74: Value
A75: NEISReporting | B75: 8 | C75: 13 | D75: ='8A Cash flow Y1'!N61 | E75: Value
A76: NEISReporting | B76: 9 | C76: 2 | D76: ='8A Cash flow Y1'!C78 | E76: Value
A77: NEISReporting | B77: 9 | C77: 3 | D77: ='8A Cash flow Y1'!D78 | E77: Value
A78: NEISReporting | B78: 9 | C78: 4 | D78: ='8A Cash flow Y1'!E78 | E78: Value
A79: NEISReporting | B79: 9 | C79: 5 | D79: ='8A Cash flow Y1'!F78 | E79: Value
A80: NEISReporting | B80: 9 | C80: 6 | D80: ='8A Cash flow Y1'!G78 | E80: Value
A81: NEISReporting | B81: 9 | C81: 7 | D81: ='8A Cash flow Y1'!H78 | E81: Value
A82: NEISReporting | B82: 9 | C82: 8 | D82: ='8A Cash flow Y1'!I78 | E82: Value
A83: NEISReporting | B83: 9 | C83: 9 | D83: ='8A Cash flow Y1'!J78 | E83: Value
A84: NEISReporting | B84: 9 | C84: 10 | D84: ='8A Cash flow Y1'!K78 | E84: Value
A85: NEISReporting | B85: 9 | C85: 11 | D85: ='8A Cash flow Y1'!L78 | E85: Value
A86: NEISReporting | B86: 9 | C86: 12 | D86: ='8A Cash flow Y1'!M78 | E86: Value
A87: NEISReporting | B87: 9 | C87: 13 | D87: ='8A Cash flow Y1'!N78 | E87: Value
A88: NEISReporting | B88: 10 | C88: 2 | D88: ='7A Sales Y1'!D59 | E88: Value
A89: NEISReporting | B89: 10 | C89: 3 | D89: ='7A Sales Y1'!E59 | E89: Value
A90: NEISReporting | B90: 10 | C90: 4 | D90: ='7A Sales Y1'!F59 | E90: Value
A91: NEISReporting | B91: 10 | C91: 5 | D91: ='7A Sales Y1'!G59 | E91: Value
A92: NEISReporting | B92: 10 | C92: 6 | D92: ='7A Sales Y1'!H59 | E92: Value
A93: NEISReporting | B93: 10 | C93: 7 | D93: ='7A Sales Y1'!I59 | E93: Value
A94: NEISReporting | B94: 10 | C94: 8 | D94: ='7A Sales Y1'!J59 | E94: Value
A95: NEISReporting | B95: 10 | C95: 9 | D95: ='7A Sales Y1'!K59 | E95: Value
A96: NEISReporting | B96: 10 | C96: 10 | D96: ='7A Sales Y1'!L59 | E96: Value
A97: NEISReporting | B97: 10 | C97: 11 | D97: ='7A Sales Y1'!M59 | E97: Value
A98: NEISReporting | B98: 10 | C98: 12 | D98: ='7A Sales Y1'!N59 | E98: Value
A99: NEISReporting | B99: 10 | C99: 13 | D99: ='7A Sales Y1'!O59 | E99: Value
A100: NEISReporting | B100: 11 | C100: 2 | D100: =INT(MONTH(B6-1)/3)=MONTH(B6-1)/3 | E100: Logical
A101: NEISReporting | B101: 11 | C101: 3 | D101: =INT(MONTH(C6-1)/3)=MONTH(C6-1)/3 | E101: Logical
A102: NEISReporting | B102: 11 | C102: 4 | D102: =INT(MONTH(D6-1)/3)=MONTH(D6-1)/3 | E102: Logical
A103: NEISReporting | B103: 11 | C103: 5 | D103: =INT(MONTH(E6-1)/3)=MONTH(E6-1)/3 | E103: Logical
A104: NEISReporting | B104: 11 | C104: 6 | D104: =INT(MONTH(F6-1)/3)=MONTH(F6-1)/3 | E104: Logical
A105: NEISReporting | B105: 11 | C105: 7 | D105: =INT(MONTH(G6-1)/3)=MONTH(G6-1)/3 | E105: Logical
A106: NEISReporting | B106: 11 | C106: 8 | D106: =INT(MONTH(H6-1)/3)=MONTH(H6-1)/3 | E106: Logical
A107: NEISReporting | B107: 11 | C107: 9 | D107: =INT(MONTH(I6-1)/3)=MONTH(I6-1)/3 | E107: Logical
A108: NEISReporting | B108: 11 | C108: 10 | D108: =INT(MONTH(J6-1)/3)=MONTH(J6-1)/3 | E108: Logical
A109: NEISReporting | B109: 11 | C109: 11 | D109: =INT(MONTH(K6-1)/3)=MONTH(K6-1)/3 | E109: Logical
A110: NEISReporting | B110: 11 | C110: 12 | D110: =INT(MONTH(L6-1)/3)=MONTH(L6-1)/3 | E110: Logical
A111: NEISReporting | B111: 11 | C111: 13 | D111: =INT(MONTH(M6-1)/3)=MONTH(M6-1)/3 | E111: Logical
A112: NEISReporting | B112: 12 | C112: 3 | D112: =B12+C11 | E112: Value
A113: NEISReporting | B113: 12 | C113: 4 | D113: =C12+D11 | E113: Value
A114: NEISReporting | B114: 12 | C114: 5 | D114: =D12+E11 | E114: Value
A115: NEISReporting | B115: 12 | C115: 6 | D115: =E12+F11 | E115: Value
A116: NEISReporting | B116: 12 | C116: 7 | D116: =F12+G11 | E116: Value
A117: NEISReporting | B117: 12 | C117: 8 | D117: =G12+H11 | E117: Value
A118: NEISReporting | B118: 12 | C118: 9 | D118: =H12+I11 | E118: Value
A119: NEISReporting | B119: 12 | C119: 10 | D119: =I12+J11 | E119: Value
A120: NEISReporting | B120: 12 | C120: 11 | D120: =J12+K11 | E120: Value
A121: NEISReporting | B121: 12 | C121: 12 | D121: =K12+L11 | E121: Value
A122: NEISReporting | B122: 12 | C122: 13 | D122: =L12+M11 | E122: Value
A123: NEISReporting | B123: 13 | C123: 2 | D123: =IF(C11,B12,"") | E123: Text
A124: NEISReporting | B124: 13 | C124: 3 | D124: =IF(D11,C12,"") | E124: Text
A125: NEISReporting | B125: 13 | C125: 4 | D125: =IF(E11,D12,"") | E125: Value
A126: NEISReporting | B126: 13 | C126: 5 | D126: =IF(F11,E12,"") | E126: Text
A127: NEISReporting | B127: 13 | C127: 6 | D127: =IF(G11,F12,"") | E127: Text
A128: NEISReporting | B128: 13 | C128: 7 | D128: =IF(H11,G12,"") | E128: Value
A129: NEISReporting | B129: 13 | C129: 8 | D129: =IF(I11,H12,"") | E129: Text
A130: NEISReporting | B130: 13 | C130: 9 | D130: =IF(J11,I12,"") | E130: Text
A131: NEISReporting | B131: 13 | C131: 10 | D131: =IF(K11,J12,"") | E131: Value
A132: NEISReporting | B132: 13 | C132: 11 | D132: =IF(L11,K12,"") | E132: Text
A133: NEISReporting | B133: 13 | C133: 12 | D133: =IF(M11,L12,"") | E133: Text
A134: NEISReporting | B134: 13 | C134: 13 | D134: =IF(N11,M12,"") | E134: Text
A135: NEISReporting | B135: 17 | C135: 2 | D135: =SUMIF($B$12:$M$12,$A17,$B$7:$M$7) | E135: Value
A136: NEISReporting | B136: 17 | C136: 3 | D136: =SUMIF($B$12:$M$12,$A17,$B$8:$M$8) | E136: Value
A137: NEISReporting | B137: 17 | C137: 4 | D137: =SUMIF($B$13:$M$13,$A17,$B$9:$M$9) | E137: Value
A138: NEISReporting | B138: 17 | C138: 5 | D138: =SUMIF($B$13:$M$13,$A17,$B$10:$M$10) | E138: Value
A139: NEISReporting | B139: 18 | C139: 2 | D139: =SUMIF($B$12:$M$12,$A18,$B$7:$M$7) | E139: Value
A140: NEISReporting | B140: 18 | C140: 3 | D140: =SUMIF($B$12:$M$12,$A18,$B$8:$M$8) | E140: Value
A141: NEISReporting | B141: 18 | C141: 4 | D141: =SUMIF($B$13:$M$13,$A18,$B$9:$M$9) | E141: Value
A142: NEISReporting | B142: 18 | C142: 5 | D142: =SUMIF($B$13:$M$13,$A18,$B$10:$M$10) | E142: Value
A143: NEISReporting | B143: 19 | C143: 2 | D143: =SUMIF($B$12:$M$12,$A19,$B$7:$M$7) | E143: Value
A144: NEISReporting | B144: 19 | C144: 3 | D144: =SUMIF($B$12:$M$12,$A19,$B$8:$M$8) | E144: Value
A145: NEISReporting | B145: 19 | C145: 4 | D145: =SUMIF($B$13:$M$13,$A19,$B$9:$M$9) | E145: Value
A146: NEISReporting | B146: 19 | C146: 5 | D146: =SUMIF($B$13:$M$13,$A19,$B$10:$M$10) | E146: Value
A147: NEISReporting | B147: 20 | C147: 2 | D147: =SUMIF($B$12:$M$12,$A20,$B$7:$M$7) | E147: Value
A148: NEISReporting | B148: 20 | C148: 3 | D148: =SUMIF($B$12:$M$12,$A20,$B$8:$M$8) | E148: Value
A149: NEISReporting | B149: 20 | C149: 4 | D149: =SUMIF($B$13:$M$13,$A20,$B$9:$M$9) | E149: Value
A150: NEISReporting | B150: 20 | C150: 5 | D150: =SUMIF($B$13:$M$13,$A20,$B$10:$M$10) | E150: Value
A151: NEISReporting | B151: 21 | C151: 2 | D151: =SUMIF($B$12:$M$12,$A21,$B$7:$M$7) | E151: Value
A152: NEISReporting | B152: 21 | C152: 3 | D152: =SUMIF($B$12:$M$12,$A21,$B$8:$M$8) | E152: Value
A153: NEISReporting | B153: 21 | C153: 4 | D153: =SUMIF($B$13:$M$13,$A21,$B$9:$M$9) | E153: Value
A154: NEISReporting | B154: 21 | C154: 5 | D154: =SUMIF($B$13:$M$13,$A21,$B$10:$M$10) | E154: Value
A155: 1A MAPa Y1 | B155: 2 | C155: 3 | D155: ='8A Cash flow Y1'!$C$3 | E155: Date
A156: 1A MAPa Y1 | B156: 2 | C156: 4 | D156: ='8A Cash flow Y1'!D3 | E156: Date
A157: 1A MAPa Y1 | B157: 2 | C157: 5 | D157: ='8A Cash flow Y1'!E3 | E157: Date
A158: 1A MAPa Y1 | B158: 2 | C158: 6 | D158: ='8A Cash flow Y1'!F3 | E158: Date
A159: 1A MAPa Y1 | B159: 2 | C159: 7 | D159: ='8A Cash flow Y1'!G3 | E159: Date
A160: 1A MAPa Y1 | B160: 2 | C160: 8 | D160: ='8A Cash flow Y1'!H3 | E160: Date
A161: 1A MAPa Y1 | B161: 2 | C161: 9 | D161: ='8A Cash flow Y1'!I3 | E161: Date
A162: 1A MAPa Y1 | B162: 2 | C162: 10 | D162: ='8A Cash flow Y1'!J3 | E162: Date
A163: 1A MAPa Y1 | B163: 2 | C163: 11 | D163: ='8A Cash flow Y1'!K3 | E163: Date
A164: 1A MAPa Y1 | B164: 2 | C164: 12 | D164: ='8A Cash flow Y1'!L3 | E164: Date
A165: 1A MAPa Y1 | B165: 2 | C165: 13 | D165: ='8A Cash flow Y1'!M3 | E165: Date
A166: 1A MAPa Y1 | B166: 2 | C166: 14 | D166: ='8A Cash flow Y1'!N3 | E166: Date
A167: 1A MAPa Y1 | B167: 5 | C167: 15 | D167: =SUM(C5:N5) | E167: Value
A168: 1A MAPa Y1 | B168: 7 | C168: 15 | D168: =SUM(C7:N7) | E168: Value
A169: 1A MAPa Y1 | B169: 9 | C169: 15 | D169: =SUM(C9:N9) | E169: Value
A170: 1A MAPa Y1 | B170: 11 | C170: 15 | D170: =SUM(C11:N11) | E170: Value
A171: 1A MAPa Y1 | B171: 13 | C171: 15 | D171: =SUM(C13:N13) | E171: Value
A172: 1A MAPa Y1 | B172: 15 | C172: 15 | D172: =SUM(C15:N15) | E172: Value
A173: 1A MAPa Y1 | B173: 18 | C173: 15 | D173: =SUM(C18:N18) | E173: Value
A174: 1A MAPa Y1 | B174: 20 | C174: 15 | D174: =SUM(C20:N20) | E174: Value
A175: 1A MAPa Y1 | B175: 22 | C175: 15 | D175: =SUM(C22:N22) | E175: Value
A176: 1A MAPa Y1 | B176: 24 | C176: 15 | D176: =SUM(C24:N24) | E176: Value
A177: 1A MAPa Y1 | B177: 27 | C177: 15 | D177: =SUM(C27:N27) | E177: Value
A178: 1A MAPa Y1 | B178: 29 | C178: 15 | D178: =SUM(C29:N29) | E178: Value
A179: 1A MAPa Y1 | B179: 32 | C179: 15 | D179: =SUM(C32:N32) | E179: Value
A180: 1A MAPa Y1 | B180: 34 | C180: 15 | D180: =SUM(C34:N34) | E180: Value
A181: 1A MAPa Y1 | B181: 36 | C181: 15 | D181: =SUM(C36:N36) | E181: Value
A182: 1A MAPa Y1 | B182: 38 | C182: 15 | D182: =SUM(C38:N38) | E182: Value
A183: 1A MAPa Y1 | B183: 40 | C183: 15 | D183: =SUM(C40:N40) | E183: Value
A184: 1A MAPa Y1 | B184: 42 | C184: 15 | D184: =SUM(C42:N42) | E184: Value
A185: 1A MAPa Y1 | B185: 44 | C185: 15 | D185: =SUM(C44:N44) | E185: Value
A186: 1A MAPa Y1 | B186: 45 | C186: 3 | D186: =SUM(C5,C7,C9,C11,C13,C15,C18,C20,C22,C24,C27,C29,C32,C34,C36,C38,C40,C42,C44) | E186: Value
A187: 1A MAPa Y1 | B187: 45 | C187: 4 | D187: =SUM(D5,D7,D9,D11,D13,D15,D18,D20,D22,D24,D27,D29,D32,D34,D36,D38,D40,D42,D44) | E187: Value
A188: 1A MAPa Y1 | B188: 45 | C188: 5 | D188: =SUM(E5,E7,E9,E11,E13,E15,E18,E20,E22,E24,E27,E29,E32,E34,E36,E38,E40,E42,E44) | E188: Value
A189: 1A MAPa Y1 | B189: 45 | C189: 6 | D189: =SUM(F5,F7,F9,F11,F13,F15,F18,F20,F22,F24,F27,F29,F32,F34,F36,F38,F40,F42,F44) | E189: Value
A190: 1A MAPa Y1 | B190: 45 | C190: 7 | D190: =SUM(G5,G7,G9,G11,G13,G15,G18,G20,G22,G24,G27,G29,G32,G34,G36,G38,G40,G42,G44) | E190: Value
A191: 1A MAPa Y1 | B191: 45 | C191: 8 | D191: =SUM(H5,H7,H9,H11,H13,H15,H18,H20,H22,H24,H27,H29,H32,H34,H36,H38,H40,H42,H44) | E191: Value
A192: 1A MAPa Y1 | B192: 45 | C192: 9 | D192: =SUM(I5,I7,I9,I11,I13,I15,I18,I20,I22,I24,I27,I29,I32,I34,I36,I38,I40,I42,I44) | E192: Value
A193: 1A MAPa Y1 | B193: 45 | C193: 10 | D193: =SUM(J5,J7,J9,J11,J13,J15,J18,J20,J22,J24,J27,J29,J32,J34,J36,J38,J40,J42,J44) | E193: Value
A194: 1A MAPa Y1 | B194: 45 | C194: 11 | D194: =SUM(K5,K7,K9,K11,K13,K15,K18,K20,K22,K24,K27,K29,K32,K34,K36,K38,K40,K42,K44) | E194: Value
A195: 1A MAPa Y1 | B195: 45 | C195: 12 | D195: =SUM(L5,L7,L9,L11,L13,L15,L18,L20,L22,L24,L27,L29,L32,L34,L36,L38,L40,L42,L44) | E195: Value
A196: 1A MAPa Y1 | B196: 45 | C196: 13 | D196: =SUM(M5,M7,M9,M11,M13,M15,M18,M20,M22,M24,M27,M29,M32,M34,M36,M38,M40,M42,M44) | E196: Value
A197: 1A MAPa Y1 | B197: 45 | C197: 14 | D197: =SUM(N5,N7,N9,N11,N13,N15,N18,N20,N22,N24,N27,N29,N32,N34,N36,N38,N40,N42,N44) | E197: Value
A198: 1A MAPa Y1 | B198: 45 | C198: 15 | D198: =SUM(C45:N45) | E198: Value
A199: 1B MAPb Y1 | B199: 2 | C199: 3 | D199: ='8A Cash flow Y1'!$C$3 | E199: Date
A200: 1B MAPb Y1 | B200: 2 | C200: 4 | D200: ='8A Cash flow Y1'!D3 | E200: Date
... 3250 more rows
